Workbook

Sheet 10個
G1: 7 | H1: 8 | J1: 10 | O1: 15 | T1: 20 | AE1: 31 | AF1: 32
I18: 100
K19: 10個の平均
B20: No | C20: 乱数 | F20: 対象列 | I20: =COUNTA(I21:I10020) -> 10000 | K20: 1000個の標本 | P20: =FREQUENCY(L21:L1020,N21:N42) -> 0
B21: 1 | C21: =RAND() -> 0.07788566141 | F21: 0.08414646168 | G21: =_xlfn.NORM.INV(F21,0,1) -> -1.377709739 | H21: =_xlfn.NORM.DIST(G21,0,1,FALSE) -> 0.1544352143 | I21: * | J21: =_xlfn.NORM.DIST(G21,0,1/SQRT(10),FALSE) -> 9.533947575e-05 | K21: -0.02734560914 | L21: -0.1293462618 | N21: -1.5 | O21: =P21/$I$18 -> 0 | P21: 0
B22: 2 | C22: 0.8821988204 | F22: 0.9525292577 | G22: 1.669888204 | H22: 0.09894394109 | I22: * | J22: =_xlfn.NORM.DIST(G22,0,1/SQRT(10),FALSE) -> 1.110967764e-06 | K22: -0.3216339002 | L22: -0.3175923952 | N22: -1 | O22: 0 | P22: 0
B23: 3 | C23: 0.537947293 | F23: 0.7103713306 | G23: 0.5544698432 | H23: 0.3420983751 | I23: * | J23: 0.2712186324 | K23: 0.09254852943 | L23: 0.03863982254 | N23: -0.9 | O23: 0.02 | P23: 2
B24: 4 | C24: 0.7544217898 | F24: 0.2811747854 | G24: -0.5793551342 | H24: 0.33730601 | I24: * | J24: 0.2355321529 | K24: -0.3435894285 | L24: -0.1719982003 | N24: -0.8 | O24: 0.05 | P24: 5
B25: 5 | C25: 0.9889536867 | F25: 0.5406016825 | G25: 0.1019496565 | H25: 0.3968744086 | I25: * | J25: 1.197678801 | K25: -0.06004349019 | L25: 0.07793278084 | N25: -0.7 | O25: 0.12 | P25: 12
B26: 6 | C26: 0.6988191017 | F26: 0.9232885681 | G26: 1.427545001 | H26: 0.144008796 | I26: * | J26: 4.739140691e-05 | K26: -0.08263749056 | L26: 0.07227622019 | N26: -0.6 | O26: 0.22 | P26: 22
B27: 7 | C27: 0.2851592284 | F27: 0.1260682825 | G27: -1.145175259 | H27: 0.2070796618 | I27: * | J27: =_xlfn.NORM.DIST(G27,0,1/SQRT(10),FALSE) -> 0.001791364146 | K27: 0.03479299662 | L27: 0.05280373905 | N27: -0.5 | O27: 0.5 | P27: 50
B28: 8 | C28: 0.4132496901 | F28: 0.6554128914 | G28: 0.3999759682 | H28: 0.3682736803 | I28: * | J28: 0.5669127528 | K28: 0.1942224562 | L28: 0.3399241708 | N28: -0.4 | O28: 0.7 | P28: 70
B29: 9 | C29: 0.2349547046 | F29: 0.2504946207 | G29: -0.6729340614 | H29: 0.3181098045 | I29: * | J29: 0.1310931367 | K29: -0.7157712791 | L29: -0.3843420055 | N29: -0.3 | O29: 0.83 | P29: 83
B30: 10 | C30: 0.7541884533 | F30: 0.6557666826 | G30: 0.4009368277 | H30: 0.3681320023 | I30: * | J30: 0.564735564 | K30: -0.01391683038 | L30: 0.3061175316 | N30: -0.2 | O30: 1.21 | P30: 121
B31: 11 | C31: 0.1578162147 | F31: 0.3504089128 | G31: -0.3842167218 | H31: 0.3705563412 | I31: * | J31: 0.6030480303 | K31: -0.339220622 | L31: -0.02265476202 | N31: -0.1 | O31: 1.47 | P31: 147
B32: 12 | C32: 0.6146186924 | F32: 0.0532825321 | G32: -1.613826503 | H32: 0.1084835724 | I32: * | J32: 2.789004339e-06 | K32: -0.1092802733 | L32: 0.0009118626079 | N32: 0 | O32: 1.39 | P32: 139
B33: 13 | C33: 0.2472491094 | F33: 0.528985647 | G33: 0.07272028515 | H33: 0.3978888225 | I33: * | J33: 1.228646079 | K33: 0.5207886936 | L33: -0.0981233463 | N33: 0.1 | O33: 1.26 | P33: 126
B34: 14 | C34: 0.7697033712 | F34: 0.7924681484 | G34: 0.8150150363 | H34: 0.2862003217 | I34: * | J34: 0.04555232866 | K34: 0.1910414807 | L34: 0.2174248184 | N34: 0.2 | O34: 0.89 | P34: 89
B35: 15 | C35: 0.3050691221 | F35: 0.7008925086 | G35: 0.5269691919 | H35: 0.3472234362 | I35: * | J35: 0.3147021532 | K35: -0.527682667 | L35: -0.4728701036 | N35: 0.3 | O35: 0.6 | P35: 60
B36: 16 | C36: 0.7480052642 | F36: 0.5457883608 | G36: 0.1150275587 | H36: 0.3963117211 | I36: * | J36: 1.180806072 | K36: 0.2857428921 | L36: 0.07428896049 | N36: 0.4 | O36: 0.38 | P36: 38
B37: 17 | C37: 0.4880332811 | F37: 0.443906745 | G37: -0.1410714597 | H37: 0.3949922591 | I37: * | J37: 1.142076652 | K37: 0.1367361065 | L37: 0.2013766026 | N37: 0.5 | O37: 0.24 | P37: 24
B38: 18 | C38: 0.1011582293 | F38: 0.02018385062 | G38: -2.049966487 | H38: 0.04879537075 | I38: * | J38: 9.453565316e-10 | K38: 0.05287298014 | L38: 0.008205170866 | N38: 0.6 | O38: 0.09 | P38: 9
B39: 19 | C39: 0.9666691354 | F39: 0.5130628404 | G39: 0.03274953828 | H39: 0.3987283985 | I39: * | J39: 1.254819016 | K39: -0.4055634155 | L39: -0.4485851744 | N39: 0.7 | O39: 0.02 | P39: 2
B40: 20 | C40: 0.9999627403 | F40: 0.2025775997 | G40: -0.832449628 | H40: 0.2821194476 | I40: * | J40: 0.03945841673 | K40: 0.40668993 | L40: 0.4264085895 | N40: 0.8 | O40: 0.01 | P40: 1
B41: 21 | C41: 0.1578025101 | F41: 0.3648322819 | G41: -0.3455717709 | H41: 0.3758186906 | I41: * | J41: 0.6943735332 | K41: 0.126885527 | L41: 0.09749147096 | N41: 0.9 | O41: 0 | P41: 0
B42: 22 | C42: 0.5532863082 | F42: 0.3738560663 | G42: -0.32165756 | H42: 0.378829014 | I42: * | J42: 0.7520413902 | K42: -0.3914758772 | L42: -0.1569285064 | N42: 1 | O42: 0 | P42: 0
B43: 23 | C43: 0.5637967588 | F43: 0.01538006138 | G43: -2.160162103 | H43: 0.03869330508 | I43: * | J43: 9.293251357e-11 | K43: 0.1853440379 | L43: -0.009233778531 | O43: =SUM(O21:O42) -> 10 | P43: =SUM(P21:P42) -> 1000
B44: 24 | C44: 0.003458960641 | F44: 0.6108057753 | G44: 0.2814197789 | H44: 0.3834534379 | I44: * | J44: 0.8490548863 | K44: 0.112224526 | L44: 0.08621992917
B45: 25 | C45: 0.7522580751 | F45: 0.9840717226 | G45: 2.146205903 | H45: 0.03987369596 | I45: * | J45: 1.255088463e-10 | K45: -0.1409289506 | L45: -0.04571798523
B46: 26 | C46: 0.3437223815 | F46: 0.6069329773 | G46: 0.2713341474 | H46: 0.3845237809 | I46: * | J46: 0.8730546852 | K46: 0.3480066766 | L46: -0.03156069591
B47: 27 | C47: 0.4630839115 | F47: 0.4317083458 | G47: -0.1720265049 | H47: 0.3930827646 | I47: * | J47: 1.088051434 | K47: 0.2474537754 | L47: 0.1825952051
B48: 28 | C48: 0.4591156332 | F48: 0.7681588699 | G48: 0.7327969853 | H48: 0.3050028238 | I48: * | J48: 0.0860692482 | K48: -0.3070969221 | L48: -0.3201061816
B49: 29 | C49: 0.7665291413 | F49: 0.6602686536 | G49: 0.4131964447 | H49: 0.3662994231 | I49: * | J49: 0.537244223 | K49: 0.271510394 | L49: 0.2005668342
B50: 30 | C50: 0.9590009521 | F50: 0.7513724551 | G50: 0.6788149976 | H50: 0.3168478991 | I50: * | J50: 0.1259846769 | K50: -0.2392170151 | L50: -0.4105491942
B51: 31 | C51: 0.888420313 | F51: 0.180174216 | G51: -0.9147013565 | H51: 0.2625594309 | I51: * | J51: 0.01923470952 | K51: 0.3438594636 | L51: 0.2822260062
B52: 32 | C52: 0.1434686869 | F52: 0.65804111 | G52: 0.407122825 | H52: 0.3672130688 | I52: * | J52: 0.5507958977 | K52: 0.3756872556 | L52: 0.1248084246
B53: 33 | C53: 0.7655033284 | F53: 0.3344607014 | G53: -0.4276287889 | H53: 0.3640836159 | I53: * | J53: 0.5056159489 | K53: -0.06460787847 | L53: -0.2093988438
B54: 34 | C54: 0.5553118463 | F54: 0.1846976063 | G54: -0.8976067997 | H54: 0.2666582197 | I54: * | J54: 0.02245738376 | K54: -0.3061917207 | L54: -0.137187388
B55: 35 | C55: 0.02864743993 | F55: 0.8229505879 | G55: 0.926668217 | H55: 0.2596825059 | I55: * | J55: 0.01722805862 | K55: -0.06031587083 | L55: -0.2470251712
B56: 36 | C56: 0.09894721243 | F56: 0.4037501771 | G56: -0.2436519964 | H56: 0.3872744435 | I56: * | J56: 0.9375572433 | K56: 0.1788608288 | L56: 0.4047570011
B57: 37 | C57: 0.4998927963 | F57: 0.7134205806 | G57: 0.5634054325 | H57: 0.3403940459 | I57: * | J57: 0.2580054956 | K57: -0.1958317422 | L57: -0.04251319878
B58: 38 | C58: 0.7223947852 | F58: 0.8925456927 | G58: 1.240180567 | H58: 0.1848958746 | I58: * | J58: 0.0005768748698 | K58: 0.2904533849 | L58: 0.3084777764
B59: 39 | C59: 0.02208638789 | F59: 0.4228891657 | G59: -0.1945077456 | H59: 0.3914665669 | I59: * | J59: 1.044133858 | K59: -0.2077328522 | L59: -0.09318776711
B60: 40 | C60: 0.4763514182 | F60: 0.1130110849 | G60: -1.210669308 | H60: 0.1917047943 | I60: * | J60: 0.0008282074819 | K60: -0.5411269938 | L60: -0.556262664
B61: 41 | C61: 0.3506945209 | F61: 0.1883148719 | G61: -0.8841231386 | H61: 0.2698806661 | I61: * | J61: 0.02532369887 | K61: -0.5687371689 | L61: -0.6161379007
B62: 42 | C62: 0.2053854383 | F62: 0.8765288196 | G62: 1.157808091 | H62: 0.2040891601 | I62: * | J62: 0.001548847977 | K62: 0.1574190795 | L62: 0.1950225593
B63: 43 | C63: 0.8064534657 | F63: 0.596248362 | G63: 0.2436482243 | H63: 0.3872747995 | I63: * | J63: 0.9375658601 | K63: 0.5734953539 | L63: 0.1497186524
B64: 44 | C64: 0.3853620408 | F64: 0.3705271273 | G64: -0.3304575608 | H64: 0.3777435953 | I64: * | J64: 0.7307696508 | K64: 0.3036839949 | L64: 0.1376672842
B65: 45 | C65: 0.8255483077 | F65: 0.9416696631 | G65: 1.568945349 | H65: 0.1165152296 | I65: * | J65: 5.696870694e-06 | K65: -0.4390486165 | L65: -0.3568902866
B66: 46 | C66: 0.301887715 | F66: 0.8601531098 | G66: 1.081007493 | H66: 0.22241125 | I66: * | J66: 0.003659122227 | K66: -0.05156896024 | L66: -0.03249095933
B67: 47 | C67: 0.02356323919 | F67: 0.8628354147 | G67: 1.09314721 | H67: 0.2194954128 | I67: * | J67: 0.00320674106 | K67: -0.2922785816 | L67: -0.1699436495
B68: 48 | C68: 0.2301514833 | F68: 0.3633115057 | G68: -0.3496211828 | H68: 0.3752900749 | I68: * | J68: 0.6846682641 | K68: -0.182795757 | L68: -0.2193027944
B69: 49 | C69: 0.8974484791 | F69: 0.2884237836 | G69: -0.5579953387 | H69: 0.3414281791 | I69: * | J69: 0.2659518566 | K69: -0.3643435178 | L69: -0.5514921154
B70: 50 | C70: 0.6748832655 | F70: 0.1672992381 | G70: -0.9648928636 | H70: 0.2504621038 | I70: * | J70: 0.01200133749 | K70: -0.387726611 | L70: -0.1636826095
B71: 51 | C71: 0.3137764708 | F71: 0.2541602843 | G71: -0.6614549932 | H71: 0.3205554883 | I71: * | J71: 0.1415277417 | K71: -0.4850617033 | L71: -0.3828321054
B72: 52 | C72: 0.4361519847 | F72: 0.2768886803 | G72: -0.5921093586 | H72: 0.3347955341 | I72: * | J72: 0.2185777595 | K72: 0.1388521741 | L72: -0.05353706587
B73: 53 | C73: 0.7842679948 | F73: 0.9823724464 | G73: 2.105416058 | H73: 0.04348553513 | I73: * | J73: 2.987153886e-10 | K73: 0.1165970802 | L73: 0.187983044
B74: 54 | C74: 0.4963709423 | F74: 0.7490017434 | G74: 0.6713516895 | H74: 0.3184483197 | I74: * | J74: 0.1324948581 | K74: -0.50256611 | L74: -0.63896969
B75: 55 | C75: 0.01238362224 | F75: 0.5226129014 | G75: 0.05671252429 | H75: 0.3983012349 | I75: * | J75: 1.241440577 | K75: 0.2513565149 | L75: 0.1609068646
B76: 56 | C76: 0.2473433773 | F76: 0.411623044 | G76: -0.22337188 | H76: 0.3891127889 | I76: * | J76: 0.9830247605 | K76: -0.2038673852 | L76: -0.2163141351
B77: 57 | C77: 0.9431272882 | F77: 0.03326015395 | G77: -1.834901348 | H77: 0.07409775738 | I77: * | J77: 6.163963343e-08 | K77: -0.04546320452 | L77: 0.3155543927
B78: 58 | C78: 0.5557235475 | F78: 0.6138677509 | G78: 0.2894141104 | H78: 0.3825795028 | I78: * | J78: 0.8299011985 | K78: 0.3780444251 | L78: 0.4294928434
B79: 59 | C79: 0.09657632605 | F79: 0.6913853275 | G79: 0.4997809227 | H79: 0.3521038852 | I79: * | J79: 0.3618408372 | K79: -0.2812777117 | L79: -0.3345067951
B80: 60 | C80: 0.1767382835 | F80: 0.1003181366 | G80: -1.279740905 | H80: 0.1759057523 | I80: * | J80: 0.0003504368948 | K80: 0.3280622478 | L80: 0.3995366586
B81: 61 | C81: 0.9167111325 | F81: 0.04291408788 | G81: -1.717826997 | H81: 0.09122709528 | I81: * | J81: 4.932281748e-07 | K81: 0.1005201351 | L81: 0.001743970114
B82: 62 | C82: 0.03159414613 | F82: 0.2202922967 | G82: -0.7712064132 | H82: 0.2963191491 | I82: * | J82: 0.06447726192 | K82: -0.1063469461 | L82: -0.3290115901
B83: 63 | C83: 0.8165583091 | F83: 0.4339756694 | G83: -0.1662612764 | H83: 0.3934662674 | I83: * | J83: 1.098713504 | K83: 0.2139509359 | L83: 0.08616876537
B84: 64 | C84: 0.3068511717 | F84: 0.5228037004 | G84: 0.05719156264 | H84: 0.3982903685 | I84: * | J84: 1.241101931 | K84: -0.1981187723 | L84: -0.0514091324
B85: 65 | C85: =RAND() -> 0.5969490733 | F85: 0.8328638125 | G85: =_xlfn.NORM.INV(F85,0,1) -> 0.9655440672 | H85: =_xlfn.NORM.DIST(G85,0,1,FALSE) -> 0.2503047243 | I85: * | J85: 0.01192613922 | K85: -0.3253196161 | L85: -0.2646501415
B86: 66 | C86: 0.2464586978 | F86: 0.9120651916 | G86: 1.353582488 | H86: 0.1596085044 | I86: * | J86: 0.0001325469346 | K86: -0.1495263875 | L86: -0.3249009785
B87: 67 | C87: 0.5415429531 | F87: 0.878390567 | G87: 1.166978961 | H87: 0.2019250923 | I87: * | J87: 0.00139223423 | K87: -0.09384926025 | L87: -0.2131407441
B88: 68 | C88: 0.9852938864 | F88: 0.7899651369 | G88: 0.8063002851 | H88: 0.2882293943 | I88: * | J88: 0.04888685487 | K88: 0.1425287194 | L88: -0.08700429946
B89: 69 | C89: 0.004099667246 | F89: 0.3784542801 | G89: -0.3095429312 | H89: 0.3802801936 | I89: * | J89: 0.7813515379 | K89: 0.04813947509 | L89: 0.02238397709
B90: 70 | C90: 0.06651677922 | F90: 0.8410670324 | G90: 0.998852942 | H90: 0.2422482788 | I90: * | J90: 0.008598375529 | K90: -0.1938530579 | L90: 0.1681490251
B91: 71 | C91: 0.04284523346 | F91: 0.9192316799 | G91: 1.399922124 | H91: 0.1497437903 | I91: * | J91: 7.003217694e-05 | K91: -0.1925630354 | L91: -0.1839350497
B92: 72 | C92: 0.1901972965 | F92: 0.0003101150374 | G92: -3.422609952 | H92: 0.001140751554 | I92: * | J92: 4.610203542e-26 | K92: 0.1662797613 | L92: 0.3694110393
B93: 73 | C93: 0.1030737114 | F93: 0.832371266 | G93: 0.9635781456 | H93: 0.2507798154 | I93: * | J93: 0.01215444661 | K93: -0.3552086455 | L93: -0.3345785023
B94: 74 | C94: 0.1347068639 | F94: 0.7184603121 | G94: 0.5782736584 | H94: 0.3375172209 | I94: * | J94: 0.2370111466 | K94: -0.5306571114 | L94: -0.2651999226
B95: 75 | C95: 0.3956064398 | F95: 0.7909511496 | G95: 0.8097259489 | H95: 0.2874326838 | I95: * | J95: 0.04755223211 | K95: 0.06791419279 | L95: 0.4177716546
B96: 76 | C96: 0.8950336212 | F96: 0.8612647664 | G96: 1.086019269 | H96: 0.2212067576 | I96: * | J96: 0.003465718692 | K96: -0.01637662294 | L96: -0.06904804846
B97: 77 | C97: 0.5371797082 | F97: 0.9136251501 | G97: 1.363421529 | H97: 0.1574893147 | I97: * | J97: 0.0001159632399 | K97: -0.0317766914 | L97: 0.151164883
B98: 78 | C98: 0.7624292823 | F98: 0.1600712703 | G98: -0.9941650082 | H98: 0.2433826057 | I98: * | J98: 0.009009584672 | K98: -0.5033027915 | L98: -0.3903872905
B99: 79 | C99: 0.6705069039 | F99: 0.1016471805 | G99: -1.272221696 | H99: 0.1776015795 | I99: * | J99: 0.0003857248742 | K99: -0.0111973083 | L99: 0.01508401119
B100: 80 | C100: 0.1813242261 | F100: 0.7716561525 | G100: 0.7443120797 | H100: 0.3024199184 | I100: * | J100: 0.0790520845 | K100: -0.04197385801 | L100: 0.2270393949
B101: 81 | C101: 0.2151885128 | F101: 0.6302320546 | G101: 0.332468011 | H101: 0.3774919548 | I101: * | J101: 0.7259160689 | K101: 0.4285456929 | L101: 0.3844610178
B102: 82 | C102: 0.4223031561 | F102: 0.704122031 | G102: 0.5362931876 | H102: 0.3455065338 | I102: * | J102: 0.2994829169 | K102: -0.03916812795 | L102: -0.05056185352
B103: 83 | C103: 0.6792254335 | F103: 0.759291561 | G103: 0.7040255247 | H103: 0.3113727589 | I103: * | J103: 0.105831647 | K103: 0.2949985933 | L103: 0.2318424
B104: 84 | C104: 0.1620850522 | F104: 0.4176838591 | G104: -0.2078223022 | H104: 0.3904194567 | I104: * | J104: 1.016538742 | K104: 0.1549328646 | L104: 0.1378465142
B105: 85 | C105: 0.7072415379 | F105: 0.77328842 | G105: 0.7497203309 | H105: 0.3012005911 | I105: * | J105: 0.07592199406 | K105: 0.05624462576 | L105: 0.003688762082
B106: 86 | C106: 0.07604885443 | F106: 0.1317507007 | G106: -1.118153591 | H106: 0.2135098611 | I106: * | J106: 0.002432141219 | K106: -0.4461527671 | L106: -0.4345776272
B107: 87 | C107: 0.8686053862 | F107: 0.4073603554 | G107: -0.2343404174 | H107: 0.3881372562 | I107: * | J107: 0.9586558396 | K107: 0.08358659825 | L107: 0.114912499
B108: 88 | C108: 0.7416348504 | F108: 0.7734938898 | G108: 0.750402675 | H108: 0.3010464761 | I108: * | J108: 0.07553441792 | K108: 0.2205095468 | L108: -0.00452748308
B109: 89 | C109: 0.2068507967 | F109: 0.9980788037 | G109: 2.890819077 | H109: 0.006112887687 | I109: * | J109: 9.000643759e-19 | K109: 0.7632435353 | L109: 0.4755600052
B110: 90 | C110: 0.9809274088 | F110: 0.351131139 | G110: -0.3822684178 | H110: 0.3708331289 | I110: * | J110: 0.6075676799 | K110: -0.5242191471 | L110: -0.4449972673
B111: 91 | C111: 0.8263849698 | F111: 0.2890268251 | G111: -0.5562299752 | H111: 0.3417641411 | I111: * | J111: 0.2685804149 | K111: 0.315297842 | L111: -0.2058283692
B112: 92 | C112: 0.7522855936 | F112: 0.01478479733 | G112: -2.175808342 | H112: 0.03740280775 | I112: * | J112: 6.619900441e-11 | K112: -0.2348418565 | L112: -0.4912135907
B113: 93 | C113: 0.1811695178 | F113: 0.9053874891 | G113: 1.312875149 | H113: 0.1685101806 | I113: * | J113: 0.0002280714098 | K113: 0.2027555125 | L113: 0.02327777838
B114: 94 | C114: 0.4818655311 | F114: 0.4829585046 | G114: -0.0427296936 | H114: 0.3985782469 | I114: * | J114: 1.250101665 | K114: -0.1311955236 | L114: -0.1928906771
B115: 95 | C115: 0.2246142937 | F115: 0.8480027275 | G115: 1.027904941 | H115: 0.2352202858 | I115: * | J115: 0.006405560563 | K115: 0.5415687476 | L115: 0.368689673
B116: 96 | C116: 0.4422384473 | F116: 0.255972978 | G116: -0.6558106612 | H116: 0.3217493847 | I116: * | J116: 0.1468881152 | K116: -0.3529396201 | L116: -0.3964515614
B117: 97 | C117: 0.9402570164 | F117: 0.5838074477 | G117: 0.2116435837 | H117: 0.3901066809 | I117: * | J117: 1.008424267 | K117: -0.1227760591 | L117: 0.1241960855
B118: 98 | C118: 0.6376315717 | F118: 0.1444244936 | G118: -1.060650008 | H118: 0.22731291 | I118: * | J118: 0.004550408911 | K118: 0.3923267786 | L118: 0.2809747571
B119: 99 | C119: 0.5617124788 | F119: 0.07128055207 | G119: -1.466320093 | H119: 0.1361516637 | I119: * | J119: 2.704200782e-05 | K119: 0.046368872 | L119: -0.187864202
B120: 100 | C120: 0.69263902 | F120: 0.1189034559 | G120: -1.18048616 | H120: 0.1987490471 | I120: * | J120: 0.001188119048 | K120: 0.2224873603 | L120: 0.1441177389
B121: 101 | C121: 0.4050830542 | F121: 0.4511595409 | G121: -0.1227323047 | H121: 0.3959488897 | I121: * | J121: 1.170039981 | K121: 0.3876716756 | L121: 0.210343374
B122: 102 | C122: 0.9117796585 | F122: 0.6368495049 | G122: 0.3500502448 | H122: 0.3752337476 | I122: * | J122: 0.6836413397 | K122: 0.168946752 | L122: 0.1849019608
B123: 103 | C123: 0.9974467091 | F123: 0.3277216389 | G123: -0.44621316 | H123: 0.3611392629 | I123: * | J123: 0.4661830516 | K123: 0.0981341783 | L123: 0.1207652959
B124: 104 | C124: 0.3444704331 | F124: 0.4737459844 | G124: -0.06585663139 | H124: 0.3980780923 | I124: * | J124: 1.234503091 | K124: 0.2333346854 | L124: 0.4798968994
B125: 105 | C125: 0.9225070112 | F125: 0.9734815502 | G125: 1.93462036 | H125: 0.06140177704 | I125: * | J125: 9.410632428e-09 | K125: 0.5763211463 | L125: 0.577831584
B126: 106 | C126: 0.4985617022 | F126: 0.9389937023 | G126: 1.546380937 | H126: 0.1206832983 | I126: * | J126: 8.096197976e-06 | K126: 0.2191248182 | L126: 0.1640447813
B127: 107 | C127: 0.3109188445 | F127: 0.07342961179 | G127: -1.450715048 | H127: 0.1392860415 | I127: * | J127: 3.395356391e-05 | K127: -0.1028667471 | L127: -0.1545496052
B128: 108 | C128: 0.4936012208 | F128: 0.992039631 | G128: 2.410727517 | H128: 0.02182406294 | I128: * | J128: 3.028066871e-13 | K128: 0.3290835616 | L128: 0.4177196982
B129: 109 | C129: 0.6532075093 | F129: 0.7299880226 | G129: 0.612776767 | H129: 0.3306528597 | I129: * | J129: 0.1929888589 | K129: 0.5853564167 | L129: 0.7375187627
B130: 110 | C130: 0.06255004388 | F130: 0.4415976654 | G130: -0.1469197907 | H130: 0.3946597626 | I130: * | J130: 1.132499219 | K130: 0.03407624585 | L130: -0.1353616507
B131: 111 | C131: 0.6346414506 | F131: 0.4360541338 | G131: -0.1609811241 | H131: 0.3938063475 | I131: * | J131: 1.108246905 | K131: -0.2888440839 | L131: -0.1247448341
B132: 112 | C132: 0.6554083839 | F132: 0.04440067154 | G132: -1.701754799 | H132: 0.09376878779 | I132: * | J132: 6.492207979e-07 | K132: 0.09252717846 | L132: 0.2153912008
B133: 113 | C133: 0.4536963805 | F133: 0.2309530378 | G133: -0.7357118516 | H133: 0.3043507385 | I133: * | J133: 0.08424672104 | K133: -0.2871867653 | L133: -0.00268460146
B134: 114 | C134: 0.7051230913 | F134: 0.6084338994 | G134: 0.2752395529 | H134: 0.3841135992 | I134: * | J134: 0.8637861572 | K134: -0.1155487527 | L134: -0.05572411182
B135: 115 | C135: 0.001492909736 | F135: 0.957266594 | G135: 1.719810947 | H135: 0.09091653601 | I135: * | J135: 4.766923823e-07 | K135: 0.3040876523 | L135: -0.08783287215
B136: 116 | C136: 0.1281721721 | F136: 0.5579134371 | G136: 0.1456811207 | H136: 0.3947312886 | I136: * | J136: 1.134553372 | K136: 0.1517886532 | L136: 0.2458536568
B137: 117 | C137: 0.5483621383 | F137: 0.2278139171 | G137: -0.7460655243 | H137: 0.3020250203 | I137: * | J137: 0.07802587165 | K137: 0.04438403485 | L137: -0.2204219713
B138: 118 | C138: 0.1858170561 | F138: 0.3090583675 | G138: -0.4985211937 | H138: 0.352325356 | I138: * | J138: 0.3641232428 | K138: 0.3664441341 | L138: 0.2873346751
B139: 119 | C139: 0.3064493174 | F139: 0.3565252981 | G139: -0.3677621471 | H139: 0.3728559856 | I139: * | J139: 0.6415353631 | K139: -0.1874042656 | L139: 0.06073871569
B140: 120 | C140: 0.9711640014 | F140: 0.2114978254 | G140: -0.801234934 | H140: 0.2894052734 | I140: * | J140: 0.05091829019 | K140: -0.274146902 | L140: -0.09175860008
B141: 121 | C141: 0.657685012 | F141: 0.3556754179 | G141: -0.3700424843 | H141: 0.3725424629 | I141: * | J141: 0.6361612642 | K141: -0.06149441885 | L141: 0.03862482197
B142: 122 | C142: 0.8517756596 | F142: 0.3398613368 | G142: -0.412841596 | H142: 0.3663531116 | I142: * | J142: 0.5380321816 | K142: 0.1243715292 | L142: 0.1395465568
B143: 123 | C143: 0.3630565663 | F143: 0.1917457525 | G143: -0.8714811297 | H143: 0.2728922602 | I143: * | J143: 0.02829577486 | K143: 0.3073145498 | L143: 0.2685335834
B144: 124 | C144: 0.5442594294 | F144: 0.3941328246 | G144: -0.2685634404 | H144: 0.3848114927 | I144: * | J144: 0.8796091708 | K144: 0.1726887494 | L144: 0.2383860716
B145: 125 | C145: 0.3087929527 | F145: 0.2879176857 | G145: -0.5594782492 | H145: 0.3411454037 | I145: * | J145: 0.2637573985 | K145: -0.2051689794 | L145: -0.1798301074
B146: 126 | C146: 0.7047066708 | F146: 0.2630984667 | G146: -0.6338220927 | H146: 0.3263438314 | I146: * | J146: 0.1692635667 | K146: 0.211171946 | L146: 0.1472868332
B147: 127 | C147: 0.04486027972 | F147: 0.5267263144 | G147: 0.06704312555 | H147: 0.3980467081 | I147: * | J147: 1.233530163 | K147: 0.003259481897 | L147: 0.1673560913
B148: 128 | C148: 0.1515211551 | F148: 0.2085851621 | G148: -0.8113402106 | H148: 0.2870568492 | I148: * | J148: 0.04693410543 | K148: 0.1431825992 | L148: 0.08568870029
B149: 129 | C149: =RAND() -> 0.8231942903 | F149: 0.5236037343 | G149: =_xlfn.NORM.INV(F149,0,1) -> 0.05920034923 | H149: =_xlfn.NORM.DIST(G149,0,1,FALSE) -> 0.3982438098 | I149: * | J149: 1.23965189 | K149: -0.3855148821 | L149: -0.5033066324
B150: 130 | C150: 0.4058721071 | F150: 0.758886698 | G150: 0.7027258673 | H150: 0.3116575296 | I150: * | J150: 0.1068035397 | K150: 0.02522560347 | L150: 0.07781357681
B151: 131 | C151: 0.4480853087 | F151: 0.7294658646 | G151: 0.6111983572 | H151: 0.3309724138 | I151: * | J151: 0.1948621008 | K151: -0.1365169824 | L151: -0.2675058023
B152: 132 | C152: 0.5944426295 | F152: 0.8957583751 | G152: 1.257747052 | H152: 0.1808834538 | I152: * | J152: 0.0004632312253 | K152: 0.1222302081 | L152: 0.08433106992
B153: 133 | C153: 0.3962692696 | F153: 0.1372569795 | G153: -1.092726368 | H153: 0.2195963938 | I153: * | J153: 0.003221524565 | K153: -0.3971568992 | L153: -0.3443949297
B154: 134 | C154: 0.3009660504 | F154: 0.173200946 | G154: -0.9415913657 | H154: 0.2560876057 | I154: * | J154: 0.01498632011 | K154: 0.4831396291 | L154: 0.1627265517
B155: 135 | C155: 0.3713024608 | F155: 0.3334112905 | G155: -0.4305129054 | H155: 0.3636333446 | I155: * | J155: 0.4993975558 | K155: 0.1613245371 | L155: 0.06178950112
B156: 136 | C156: 0.239843516 | F156: 0.009314369021 | G156: -2.352878138 | H156: 0.02504812513 | I156: * | J156: 1.201051553e-12 | K156: -0.06616187881 | L156: 0.2395037129
B157: 137 | C157: 0.2616974105 | F157: 0.673293708 | G157: 0.4490264392 | H157: 0.3606847738 | I157: * | J157: 0.4603493126 | K157: 0.07128604432 | L157: -0.1587587438
B158: 138 | C158: 0.8761108486 | F158: 0.7161155455 | G158: 0.5713404179 | H158: 0.3388650038 | I158: * | J158: 0.2466474346 | K158: -0.3869393221 | L158: -0.1007056199
B159: 139 | C159: 0.5882255361 | F159: 0.7071376451 | G159: 0.5450418866 | H159: 0.3438760995 | I159: * | J159: 0.2856467769 | K159: -0.6974524402 | L159: -0.4225914036
B160: 140 | C160: 0.804396913 | F160: 0.08386284957 | G160: -1.379548514 | H160: 0.1540442185 | I160: * | J160: 9.295300655e-05 | K160: -0.1846207972 | L160: -0.01799168087
B161: 141 | C161: 0.061852058 | F161: 0.8185347221 | G161: 0.9097951446 | H161: 0.2637371975 | I161: * | J161: 0.02011515009 | K161: -0.2480509136 | L161: -0.05355713399
B162: 142 | C162: 0.07902183471 | F162: 0.4820036635 | G162: -0.04512543612 | H162: 0.398536303 | I162: * | J162: 1.24878676 | K162: 0.1352150671 | L162: 0.1582609169
B163: 143 | C163: 0.175490655 | F163: 0.08776597639 | G163: -1.354641035 | H163: 0.159379887 | I163: * | J163: 0.0001306605712 | K163: 0.6009776246 | L163: 0.2241944563
B164: 144 | C164: 0.2726496192 | F164: 0.2699494417 | G164: -0.6129659061 | H164: 0.3306145333 | I164: * | J164: 0.1927652799 | K164: 0.07673321512 | L164: 0.1152153239
B165: 145 | C165: 0.3285771956 | F165: 0.813573751 | G165: 0.8911429273 | H165: 0.2682042688 | I165: * | J165: 0.0237939348 | K165: 0.1628294056 | L165: 0.2704317076
B166: 146 | C166: 0.1974552783 | F166: 0.9620310161 | G166: 1.774757311 | H166: 0.08259383081 | I166: * | J166: 1.825095124e-07 | K166: 0.1406015119 | L166: 0.2042659578
B167: 147 | C167: 0.1952614437 | F167: 0.1576805465 | G167: -1.00403635 | H167: 0.2409940513 | I167: * | J167: 0.008163429253 | K167: -0.1119792277 | L167: -0.1573077328
B168: 148 | C168: 0.5601215426 | F168: 0.1268880295 | G168: -1.141225588 | H168: 0.2080167957 | I168: * | J168: 0.001874102885 | K168: 0.6399354096 | L168: 0.5111217462
B169: 149 | C169: 0.4414235816 | F169: 0.2418885797 | G169: -0.7002404415 | H169: 0.3122013736 | I169: * | J169: 0.1086819702 | K169: 0.1879468144 | L169: 0.2722577104
B170: 150 | C170: 0.1794942983 | F170: 0.1478553625 | G170: -1.045675831 | H170: 0.2309261064 | I170: * | J170: 0.005327699719 | K170: -0.3832157737 | L170: -0.07532515978
B171: 151 | C171: 0.5243675268 | F171: 0.4999933562 | G171: -1.665346808e-05 | H171: 0.3989422803 | I171: * | J171: 1.261566259 | K171: -0.01305645406 | L171: 0.0930720492
B172: 152 | C172: 0.9020934981 | F172: 0.8555574316 | G172: 1.060570496 | H172: 0.2273320804 | I172: * | J172: 0.004554247936 | K172: 0.1374387365 | L172: 0.07093162702
B173: 153 | C173: 0.06039423499 | F173: 0.20864921 | G173: -0.8111171115 | H173: 0.2871088067 | I173: * | J173: 0.04701912573 | K173: 0.2593028094 | L173: -0.2081887831
B174: 154 | C174: 0.5640231693 | F174: 0.1950901756 | G174: -0.8592903422 | H174: 0.2757864404 | I174: * | J174: 0.03144405174 | K174: 0.1230662893 | L174: 0.2713316944
B175: 155 | C175: 0.7915421116 | F175: 0.6080847791 | G175: 0.2743307678 | H175: 0.3842095323 | I175: * | J175: 0.8659459051 | K175: -0.6039090437 | L175: -0.788555159
B176: 156 | C176: 0.5893462266 | F176: 0.2861961356 | G176: -0.5645317903 | H176: 0.3401778859 | I176: * | J176: 0.2563717606 | K176: 0.7163508419 | L176: 0.5153913575
B177: 157 | C177: 0.2828106967 | F177: 0.3940493376 | G177: -0.2687804024 | H177: 0.3847890621 | I177: * | J177: 0.8790965818 | K177: 0.3344943012 | L177: 0.1292270936
B178: 158 | C178: 0.5634238402 | F178: 0.6805890557 | G178: 0.4693466318 | H178: 0.3573349636 | I178: * | J178: 0.4193382981 | K178: -0.4587618485 | L178: -0.312656712
B179: 159 | C179: 0.8787119148 | F179: 0.330943301 | G179: -0.4373099201 | H179: 0.3625624599 | I179: * | J179: 0.4848838906 | K179: -0.1532597682 | L179: -0.4246995047
B180: 160 | C180: 0.2971544915 | F180: 0.9355446089 | G180: 1.518411151 | H180: 0.1259683309 | I180: * | J180: 1.242862709e-05 | K180: 0.2657596742 | L180: 0.2705218491
B181: 161 | C181: 0.05217174336 | F181: 0.8612179261 | G181: 1.085807545 | H181: 0.2212576222 | I181: * | J181: 0.003473696055 | K181: 0.3972345164 | L181: 0.4283124113
B182: 162 | C182: 0.2692122719 | F182: 0.9772581062 | G182: 2.000152607 | H182: 0.05397448963 | I182: * | J182: 2.592357258e-09 | K182: 0.1608294058 | L182: 0.0440950168
B183: 163 | C183: 0.01223009174 | F183: 0.4867300676 | G183: -0.03326892387 | H183: 0.3987215626 | I183: * | J183: 1.254603902 | K183: 0.387298661 | L183: 0.2438141693
B184: 164 | C184: 0.5305979654 | F184: 0.3511651259 | G184: -0.3821767693 | H184: 0.3708461195 | I184: * | J184: 0.6077805488 | K184: -0.2023627436 | L184: -0.152285509
B185: 165 | C185: 0.6052446553 | F185: 0.4628808563 | G185: -0.09317855273 | H185: 0.3972141772 | I185: * | J185: 1.207971854 | K185: 0.1353638031 | L185: 0.2297810827
B186: 166 | C186: 0.9875609106 | F186: 0.7963153217 | G186: 0.8285318649 | H186: 0.2830388649 | I186: * | J186: 0.0407633762 | K186: 0.7726802486 | L186: 0.3592304903
B187: 167 | C187: 0.8982628386 | F187: 0.5086775305 | G187: 0.02175305872 | H187: 0.3988479027 | I187: * | J187: 1.258584951 | K187: 0.5239346354 | L187: 0.2909879565
B188: 168 | C188: 0.2200056699 | F188: 0.8855437968 | G188: 1.20316518 | H188: 0.1934489243 | I188: * | J188: 0.0009067187565 | K188: 0.2925674735 | L188: 0.2531045071
B189: 169 | C189: 0.9641506091 | F189: 0.1174535525 | G189: -1.187812966 | H189: 0.1970321523 | I189: * | J189: 0.001089382566 | K189: -0.03883616024 | L189: -0.04864324555
B190: 170 | C190: 0.7606763307 | F190: 0.9692834098 | G190: 1.870364772 | H190: 0.06938596092 | I190: * | J190: 3.195401826e-08 | K190: -0.290315328 | L190: -0.03976928036
B191: 171 | C191: 0.7862370051 | F191: 0.2432351629 | G191: -0.6959337409 | H191: 0.3131414044 | I191: * | J191: 0.111999055 | K191: -0.06812758758 | L191: 0.02739325699
B192: 172 | C192: 0.4615537496 | F192: 0.6412639867 | G192: 0.3618394278 | H192: 0.3736624538 | I192: * | J192: 0.6555472838 | K192: 0.3556125299 | L192: 0.2419486784
B193: 173 | C193: 0.5864788635 | F193: 0.9283013487 | G193: 1.463256147 | H193: 0.13676409 | I193: * | J193: 2.828330832e-05 | K193: -0.4885350933 | L193: -0.0666116857
B194: 174 | C194: 0.617813493 | F194: 0.1990991217 | G194: -0.8448434645 | H194: 0.2792022713 | I194: * | J194: 0.03556303995 | K194: 0.4706261901 | L194: 0.1612747137
B195: 175 | C195: 0.437711397 | F195: 0.7038164998 | G195: 0.5354090979 | H195: 0.345670253 | I195: * | J195: 0.3009050545 | K195: -0.3892932398 | L195: -0.4309164899
B196: 176 | C196: 0.3410780319 | F196: 0.5558286744 | G196: 0.1404016538 | H196: 0.3950294952 | I196: * | J196: 1.143153751 | K196: -0.2062628793 | L196: -0.2165203535
B197: 177 | C197: 0.1702610981 | F197: 0.1418568862 | G197: -1.072013937 | H197: 0.2245750176 | I197: * | J197: 0.004031102406 | K197: 0.2619769509 | L197: 0.1142923623
B198: 178 | C198: 0.07627856928 | F198: 0.171836848 | G198: -0.946931479 | H198: 0.2547995437 | I198: * | J198: 0.01424937666 | K198: 0.1181882533 | L198: 0.2322679465
B199: 179 | C199: 0.0123235912 | F199: 0.2195144509 | G199: -0.7738341041 | H199: 0.2957182478 | I199: * | J199: 0.0631816044 | K199: -0.0322878281 | L199: 0.1588176768
B200: 180 | C200: 0.8836871764 | F200: 0.3135245689 | G200: -0.4858843883 | H200: 0.3545236035 | I200: * | J200: 0.3874904094 | K200: -0.4135529262 | L200: -0.131158591
B201: 181 | C201: 0.7125813698 | F201: 0.2177573881 | G201: -0.7797895197 | H201: 0.2943533447 | I201: * | J201: 0.06032525369 | K201: -0.02417765707 | L201: 0.0782019201
B202: 182 | C202: 0.3837938152 | F202: 0.8151927956 | G202: 0.8971958697 | H202: 0.2667565731 | I202: * | J202: 0.02254035254 | K202: -0.1602323254 | L202: -0.2662411807
B203: 183 | C203: 0.2433952741 | F203: 0.1271041522 | G203: -1.140187235 | H203: 0.2082633282 | I203: * | J203: 0.001896432777 | K203: 0.02998603623 | L203: -0.01247507034
B204: 184 | C204: 0.7832809683 | F204: 0.2901303042 | G204: -0.5530040915 | H204: 0.3423761489 | I204: * | J204: 0.2734289114 | K204: 0.1321303597 | L204: 0.3319760837
B205: 185 | C205: 0.489171135 | F205: 0.1115862981 | G205: -1.218135209 | H205: 0.189974538 | I205: * | J205: 0.0007564206512 | K205: -0.1725115052 | L205: -0.3263174742
B206: 186 | C206: 0.05649597594 | F206: 0.7792799871 | G206: 0.7697637848 | H206: 0.296648698 | I206: * | J206: 0.06519793981 | K206: -0.2353296883 | L206: -0.3274326674
B207: 187 | C207: 0.5633511777 | F207: 0.9253784973 | G207: 1.442210478 | H207: 0.141010057 | I207: * | J207: 3.83981489e-05 | K207: -0.5873154002 | L207: -0.3080472444
B208: 188 | C208: 0.1071107981 | F208: 0.3012123825 | G208: -0.5209167521 | H208: 0.3483262757 | I208: * | J208: 0.3248416975 | K208: -0.03670857865 | L208: -0.1426903053
B209: 189 | C209: 0.1696763426 | F209: 0.3812229716 | G209: -0.3022703971 | H209: 0.3811271511 | I209: * | J209: 0.798929197 | K209: 0.1599133536 | L209: 0.1297966441
B210: 190 | C210: 0.6256775941 | F210: 0.8572451252 | G210: 1.068023859 | H210: 0.2255358811 | I210: * | J210: 0.004206935509 | K210: 0.4023014884 | L210: 0.001211998023
B211: 191 | C211: 0.7450756624 | F211: 0.7387819906 | G211: 0.6395948695 | H211: 0.3251465316 | I211: * | J211: 0.163155104 | K211: 0.4738600185 | L211: 0.497992031
B212: 192 | C212: 0.2855943302 | F212: 0.6216283725 | G212: 0.3097602851 | H212: 0.3802546001 | I212: * | J212: 0.780825834 | K212: -0.1649047649 | L212: 0.07885391116
B213: 193 | C213: =RAND() -> 0.7543106551 | F213: 0.9384597753 | G213: =_xlfn.NORM.INV(F213,0,1) -> 1.541971788 | H213: =_xlfn.NORM.DIST(G213,0,1,FALSE) -> 0.1215077744 | I213: * | J213: 8.666626305e-06 | K213: -0.08455476437 | L213: -0.1691011728
B214: 194 | C214: 0.7047739982 | F214: 0.5664674502 | G214: 0.1673875768 | H214: 0.3933923443 | I214: * | J214: 1.096651021 | K214: 0.1023271987 | L214: 0.1223262492
B215: 195 | C215: 0.5230015323 | F215: 0.06779000751 | G215: -1.492454583 | H215: 0.1309880902 | I215: * | J215: 1.837077634e-05 | K215: -0.137356139 | L215: -0.3372845325
B216: 196 | C216: 0.3033655465 | F216: 0.9660016078 | G216: 1.825028131 | H216: 0.07544869635 | I216: * | J216: 7.384597166e-08 | K216: -0.60019611 | L216: -0.3173318846
... 4284 more rows

Sheet 20個
G1: 7 | H1: 8 | J1: 10 | O1: 15 | T1: 20 | AE1: 31 | AF1: 32
I18: 50
K19: 20個の平均
B20: No | C20: 乱数 | F20: 対象列 | I20: =COUNTA(I21:I10020) -> 10000 | K20: 500個の標本 | P20: =FREQUENCY(L21:L520,N21:N42) -> 0
B21: 1 | C21: =RAND() -> 0.8929198222 | F21: 0.08414646168 | G21: =_xlfn.NORM.INV(F21,0,1) -> -1.377709739 | H21: =_xlfn.NORM.DIST(G21,0,1,FALSE) -> 0.1544352143 | I21: * | J21: =_xlfn.NORM.DIST(G21,0,1/SQRT(20),FALSE) -> 1.018944316e-08 | K21: 0.7891241849 | L21: 0.2640724083 | N21: -1.5 | O21: =P21/$I$18 -> 0 | P21: 0
B22: 2 | C22: 0.7830213053 | F22: 0.9525292577 | G22: 1.669888204 | H22: 0.09894394109 | I22: * | J22: 1.383591379e-12 | K22: -0.5756121285 | L22: 0.02314083578 | N22: -1 | O22: 0 | P22: 0
B23: 3 | C23: 0.233523307 | F23: 0.7103713306 | G23: 0.5544698432 | H23: 0.3420983751 | I23: * | J23: 0.0824601225 | K23: -0.06648000911 | L23: -0.07682730976 | N23: -0.9 | O23: 0 | P23: 0
B24: 4 | C24: 0.4684761757 | F24: 0.2811747854 | G24: -0.5793551342 | H24: 0.33730601 | I24: * | J24: 0.0621878204 | K24: -0.6873917045 | L24: -0.2806550511 | N24: -0.8 | O24: 0 | P24: 0
B25: 5 | C25: 0.836373406 | F25: 0.5406016825 | G25: 0.1019496565 | H25: 0.3968744086 | I25: * | J25: 1.607998566 | K25: 0.260790939 | L25: -0.04366040528 | N25: -0.7 | O25: 0 | P25: 0
B26: 6 | C26: 0.1277808764 | F26: 0.9232885681 | G26: 1.427545001 | H26: 0.144008796 | I26: * | J26: 2.517700903e-09 | K26: -0.5639268619 | L26: -0.01629050919 | N26: -0.6 | O26: 0 | P26: 0
B27: 7 | C27: 0.3361036848 | F27: 0.1260682825 | G27: -1.145175259 | H27: 0.2070796618 | I27: * | J27: 3.597267114e-06 | K27: 0.2623275922 | L27: 0.05764461775 | N27: -0.5 | O27: 0.08 | P27: 4
B28: 8 | C28: 0.1121939961 | F28: 0.6554128914 | G28: 0.3999759682 | H28: 0.3682736803 | I28: * | J28: 0.3602777031 | K28: -0.2514313465 | L28: 0.05293028622 | N28: -0.4 | O28: 0.24 | P28: 12
B29: 9 | C29: 0.9950688883 | F29: 0.2504946207 | G29: -0.6729340614 | H29: 0.3181098045 | I29: * | J29: 0.01926481496 | K29: 0.3191769711 | L29: 0.08072895402 | N29: -0.3 | O29: 0.92 | P29: 46
B30: 10 | C30: 0.6265351555 | F30: 0.6557666826 | G30: 0.4009368277 | H30: 0.3681320023 | I30: * | J30: 0.3575157741 | K30: 0.2221917681 | L30: 0.07245311424 | N30: -0.2 | O30: 1.7 | P30: 85
B31: 11 | C31: 0.9681095725 | F31: 0.3504089128 | G31: -0.3842167218 | H31: 0.3705563412 | I31: * | J31: 0.4076699862 | K31: -0.6335442713 | L31: -0.1555278773 | N31: -0.1 | O31: 2.4 | P31: 120
B32: 12 | C32: 0.3216838113 | F32: 0.0532825321 | G32: -1.613826503 | H32: 0.1084835724 | I32: * | J32: 8.719735511e-12 | K32: 0.3828547985 | L32: 0.1319650545 | N32: 0 | O32: 2 | P32: 100
B33: 13 | C33: 0.7194856385 | F33: 0.528985647 | G33: 0.07272028515 | H33: 0.3978888225 | I33: * | J33: 1.692226648 | K33: 0.217681707 | L33: 0.1541782993 | N33: 0.1 | O33: 1.64 | P33: 82
B34: 14 | C34: 0.9809436621 | F34: 0.7924681484 | G34: 0.8150150363 | H34: 0.2862003217 | I34: * | J34: 0.002326087774 | K34: 0.6150106246 | L34: 0.1987003433 | N34: 0.2 | O34: 0.78 | P34: 39
B35: 15 | C35: 0.153362259 | F35: 0.7008925086 | G35: 0.5269691919 | H35: 0.3472234362 | I35: * | J35: 0.1110208021 | K35: 0.6922294381 | L35: 0.1987539684 | N35: 0.3 | O35: 0.2 | P35: 10
B36: 16 | C36: 0.7865409315 | F36: 0.5457883608 | G36: 0.1150275587 | H36: 0.3963117211 | I36: * | J36: 1.56301119 | K36: 0.1449522853 | L36: 0.05905057863 | N36: 0.4 | O36: 0.04 | P36: 2
B37: 17 | C37: 0.2828957612 | F37: 0.443906745 | G37: -0.1410714597 | H37: 0.3949922591 | I37: * | J37: 1.462161816 | K37: -0.08337413922 | L37: -0.2138080911 | N37: 0.5 | O37: 0 | P37: 0
B38: 18 | C38: 0.09150656294 | F38: 0.02018385062 | G38: -2.049966487 | H38: 0.04879537075 | I38: * | J38: 1.001834977e-18 | K38: 0.4928517234 | L38: 0.1688928404 | N38: 0.6 | O38: 0 | P38: 0
B39: 19 | C39: 0.5808235413 | F39: 0.5130628404 | G39: 0.03274953828 | H39: 0.3987283985 | I39: * | J39: 1.76509106 | K39: 0.488268105 | L39: 0.207724661 | N39: 0.7 | O39: 0 | P39: 0
B40: 20 | C40: 0.9915216551 | F40: 0.2025775997 | G40: -0.832449628 | H40: 0.2821194476 | I40: * | J40: 0.001745356881 | K40: 0.5752522202 | L40: 0.1213203423 | N40: 0.8 | O40: 0 | P40: 0
B41: 21 | C41: 0.4580116881 | F41: 0.3648322819 | G41: -0.3455717709 | H41: 0.3758186906 | I41: * | J41: 0.5404944636 | K41: 0.7036959779 | L41: 0.1503571331 | N41: 0.9 | O41: 0 | P41: 0
B42: 22 | C42: 0.6036265318 | F42: 0.3738560663 | G42: -0.32165756 | H42: 0.378829014 | I42: * | J42: 0.6339987757 | K42: 0.1055770381 | L42: 0.03177377181 | N42: 1 | O42: 0 | P42: 0
B43: 23 | C43: 0.8138171688 | F43: 0.01538006138 | G43: -2.160162103 | H43: 0.03869330508 | I43: * | J43: 9.681447607e-21 | K43: -0.6471805687 | L43: -0.2653246194 | O43: =SUM(O21:O42) -> 10 | P43: =SUM(P21:P42) -> 500
B44: 24 | C44: 0.203736066 | F44: 0.6108057753 | G44: 0.2814197789 | H44: 0.3834534379 | I44: * | J44: 0.8081211317 | K44: -0.3262071868 | L44: -0.2518055333
B45: 25 | C45: 0.7626085455 | F45: 0.9840717226 | G45: 2.146205903 | H45: 0.03987369596 | I45: * | J45: 1.765849174e-20 | K45: -0.1544132271 | L45: -0.08986943241
B46: 26 | C46: 0.9070241395 | F46: 0.6069329773 | G46: 0.2713341474 | H46: 0.3845237809 | I46: * | J46: 0.8544523068 | K46: -0.5947057686 | L46: -0.1496942296
B47: 27 | C47: 0.5321339524 | F47: 0.4317083458 | G47: -0.1720265049 | H47: 0.3930827646 | I47: * | J47: 1.32710041 | K47: 0.3525547418 | L47: 0.03281584609
B48: 28 | C48: 0.5119206794 | F48: 0.7681588699 | G48: 0.7327969853 | H48: 0.3050028238 | I48: * | J48: 0.008304260246 | K48: 0.06794345726 | L48: 0.02889863377
B49: 29 | C49: 0.5903692735 | F49: 0.6602686536 | G49: 0.4131964447 | H49: 0.3662994231 | I49: * | J49: 0.3235552421 | K49: 0.4040382622 | L49: 0.09633571296
B50: 30 | C50: 0.3225364665 | F50: 0.7513724551 | G50: 0.6788149976 | H50: 0.3168478991 | I50: * | J50: 0.01779263972 | K50: -0.03040916474 | L50: -0.2276002803
B51: 31 | C51: 0.919952825 | F51: 0.180174216 | G51: -0.9147013565 | H51: 0.2625594309 | I51: * | J51: 0.0004147402607 | K51: 0.01230901595 | L51: 0.01842206744
B52: 32 | C52: 0.8218510055 | F52: 0.65804111 | G52: 0.407122825 | H52: 0.3672130688 | I52: * | J52: 0.3400840986 | K52: 0.2309449119 | L52: 0.1168638627
B53: 33 | C53: 0.5892854658 | F53: 0.3344607014 | G53: -0.4276287889 | H53: 0.3640836159 | I53: * | J53: 0.2865803847 | K53: 0.5333684897 | L53: 0.2534857699
B54: 34 | C54: 0.876017856 | F54: 0.1846976063 | G54: -0.8976067997 | H54: 0.2666582197 | I54: * | J54: 0.0005653576236 | K54: 0.6006944642 | L54: 0.1113415581
B55: 35 | C55: 0.4041338173 | F55: 0.8229505879 | G55: 0.926668217 | H55: 0.2596825059 | I55: * | J55: 0.000332719009 | K55: 0.05531771883 | L55: 0.1625008911
B56: 36 | C56: 0.1561493916 | F56: 0.4037501771 | G56: -0.2436519964 | H56: 0.3872744435 | I56: * | J56: 0.985372684 | K56: 0.4743458804 | L56: 0.1258806995
B57: 37 | C57: 0.4476117619 | F57: 0.7134205806 | G57: 0.5634054325 | H57: 0.3403940459 | I57: * | J57: 0.07462130593 | K57: -0.08958262828 | L57: -0.042362
B58: 38 | C58: 0.5975485906 | F58: 0.8925456927 | G58: 1.240180567 | H58: 0.1848958746 | I58: * | J58: =_xlfn.NORM.DIST(G58,0,1/SQRT(20),FALSE) -> 3.730509693e-07 | K58: -0.6773238518 | L58: -0.2050557181
B59: 39 | C59: 0.1801341132 | F59: 0.4228891657 | G59: -0.1945077456 | H59: 0.3914665669 | I59: * | J59: 1.222129675 | K59: -0.1253158597 | L59: -0.003524234136
B60: 40 | C60: 0.3800129652 | F60: 0.1130110849 | G60: -1.210669308 | H60: 0.1917047943 | I60: * | J60: 7.689236717e-07 | K60: 0.2973885605 | L60: 0.2371006022
B61: 41 | C61: 0.621266388 | F61: 0.1883148719 | G61: -0.8841231386 | H61: 0.2698806661 | I61: * | J61: 0.0007188846546 | K61: 0.1444384416 | L61: 0.2191701791
B62: 42 | C62: 0.9552146448 | F62: 0.8765288196 | G62: 1.157808091 | H62: 0.2040891601 | I62: * | J62: 2.689196377e-06 | K62: -0.2906597994 | L62: -0.01293677816
B63: 43 | C63: 0.6976648733 | F63: 0.596248362 | G63: 0.2436482243 | H63: 0.3872747995 | I63: * | J63: 0.9853907966 | K63: -0.8962917986 | L63: -0.2008712794
B64: 44 | C64: 0.235791989 | F64: 0.3705271273 | G64: -0.3304575608 | H64: 0.3777435953 | I64: * | J64: 0.5986402826 | K64: -0.4706417635 | L64: -0.1121396649
B65: 45 | C65: 0.8373979845 | F65: 0.9416696631 | G65: 1.568945349 | H65: 0.1165152296 | I65: * | J65: 3.63812533e-11 | K65: 0.2131103328 | L65: 0.1225914601
B66: 46 | C66: 0.7362822444 | F66: 0.8601531098 | G66: 1.081007493 | H66: 0.22241125 | I66: * | J66: 1.500924219e-05 | K66: 1.267739227 | L66: 0.1864322563
B67: 47 | C67: 0.8984688898 | F67: 0.8628354147 | G67: 1.09314721 | H67: 0.2194954128 | I67: * | J67: 1.152743593e-05 | K67: 0.1987621388 | L67: 0.1023754185
B68: 48 | C68: 0.6911548993 | F68: 0.3633115057 | G68: -0.3496211828 | H68: 0.3752900749 | I68: * | J68: 0.5254910548 | K68: 0.2850925102 | L68: 0.07127585843
B69: 49 | C69: 0.6476350765 | F69: 0.2884237836 | G69: -0.5579953387 | H69: 0.3414281791 | I69: * | J69: 0.07928864296 | K69: -0.3805632637 | L69: -0.04761400036
B70: 50 | C70: 0.4480905263 | F70: 0.1672992381 | G70: -0.9648928636 | H70: 0.2504621038 | I70: * | J70: 0.0001614597328 | K70: -0.7007703741 | L70: -0.3999881803
B71: 51 | C71: 0.4251110559 | F71: 0.2541602843 | G71: -0.6614549932 | H71: 0.3205554883 | I71: * | J71: 0.02245370879 | K71: -0.05332446613 | L71: 0.02526536926
B72: 52 | C72: 0.02604292877 | F72: 0.2768886803 | G72: -0.5921093586 | H72: 0.3347955341 | I72: * | J72: 0.05355707767 | K72: -0.7235985974 | L72: -0.3034398047
B73: 53 | C73: 0.3522234374 | F73: 0.9823724464 | G73: 2.105416058 | H73: 0.04348553513 | I73: * | J73: 1.000276635e-19 | K73: -0.05773468306 | L73: -0.1458313391
B74: 54 | C74: 0.9056628573 | F74: 0.7490017434 | G74: 0.6713516895 | H74: 0.3184483197 | I74: * | J74: 0.01967899795 | K74: 0.1086213853 | L74: -0.01355682888
B75: 55 | C75: 0.367669009 | F75: 0.5226129014 | G75: 0.05671252429 | H75: 0.3983012349 | I75: * | J75: 1.727654139 | K75: 0.344350475 | L75: -0.004940914399
B76: 56 | C76: 0.6089777747 | F76: 0.411623044 | G76: -0.22337188 | H76: 0.3891127889 | I76: * | J76: 1.083262841 | K76: -0.2665320915 | L76: -0.1785040171
B77: 57 | C77: 0.9716427078 | F77: 0.03326015395 | G77: -1.834901348 | H77: 0.07409775738 | I77: * | J77: 4.259170508e-15 | K77: -0.4986250217 | L77: -0.3896377328
B78: 58 | C78: 0.3763535819 | F78: 0.6138677509 | G78: 0.2894141104 | H78: 0.3825795028 | I78: * | J78: 0.7720718453 | K78: 0.4399083162 | L78: 0.1876894663
B79: 59 | C79: 0.8400272858 | F79: 0.6913853275 | G79: 0.4997809227 | H79: 0.3521038852 | I79: * | J79: 0.1467709452 | K79: -0.4176482626 | L79: -0.006147397826
B80: 60 | C80: 0.09765321298 | F80: 0.1003181366 | G80: -1.279740905 | H80: 0.1759057523 | I80: * | J80: 1.376653296e-07 | K80: -0.3735167386 | L80: -0.1171910239
B81: 61 | C81: 0.02775581119 | F81: 0.04291408788 | G81: -1.717826997 | H81: 0.09122709528 | I81: * | J81: 2.727097629e-13 | K81: 0.2446310194 | L81: 0.125133892
B82: 62 | C82: 0.100187147 | F82: 0.2202922967 | G82: -0.7712064132 | H82: 0.2963191491 | I82: * | J82: 0.004660345396 | K82: -0.3072196123 | L82: -0.1025382616
B83: 63 | C83: 0.7312650542 | F83: 0.4339756694 | G83: -0.1662612764 | H83: 0.3934662674 | I83: * | J83: 1.353236977 | K83: -0.3796928093 | L83: -0.04726118481
B84: 64 | C84: 0.853904884 | F84: 0.5228037004 | G84: 0.05719156264 | H84: 0.3982903685 | I84: * | J84: 1.726711712 | K84: 0.6600109954 | L84: 0.07399999701
B85: 65 | C85: =RAND() -> 0.3744631812 | F85: 0.8328638125 | G85: =_xlfn.NORM.INV(F85,0,1) -> 0.9655440672 | H85: =_xlfn.NORM.DIST(G85,0,1,FALSE) -> 0.2503047243 | I85: * | J85: 0.0001594427152 | K85: -0.8305214348 | L85: -0.2869769313
B86: 66 | C86: 0.4696039966 | F86: 0.9120651916 | G86: 1.353582488 | H86: 0.1596085044 | I86: * | J86: 1.96944705e-08 | K86: 0.2458261318 | L86: 0.1291032184
B87: 67 | C87: 0.1834138881 | F87: 0.878390567 | G87: 1.166978961 | H87: 0.2019250923 | I87: * | J87: 2.172849001e-06 | K87: 0.3619011036 | L87: 0.0009652779356
B88: 68 | C88: 0.09014077208 | F88: 0.7899651369 | G88: 0.8063002851 | H88: 0.2882293943 | I88: * | J88: 0.002679101255 | K88: 0.371514035 | L88: 0.01144596961
B89: 69 | C89: 0.289456156 | F89: 0.3784542801 | G89: -0.3095429312 | H89: 0.3802801936 | I89: * | J89: 0.6843808905 | K89: -0.1070133483 | L89: -0.1352260696
B90: 70 | C90: 0.9526072145 | F90: 0.8410670324 | G90: 0.998852942 | H90: 0.2422482788 | I90: * | J90: 8.287771133e-05 | K90: 0.1955094623 | L90: -0.001580615539
B91: 71 | C91: 0.756552212 | F91: 0.9192316799 | G91: 1.399922124 | H91: 0.1497437903 | I91: * | J91: 5.497942394e-09 | K91: -0.1769208473 | L91: -0.08356138144
B92: 72 | C92: 0.7802514748 | F92: 0.0003101150374 | G92: -3.422609952 | H92: 0.001140751554 | I92: * | J92: 2.382567054e-51 | K92: 0.2308587562 | L92: 0.1708114263
B93: 73 | C93: 0.9082195086 | F93: 0.832371266 | G93: 0.9635781456 | H93: 0.2507798154 | I93: * | J93: 0.0001656057122 | K93: -0.5708037493 | L93: -0.3038558305
B94: 74 | C94: 0.8532103006 | F94: 0.7184603121 | G94: 0.5782736584 | H94: 0.3375172209 | I94: * | J94: 0.06297127326 | K94: 0.08569507853 | L94: -0.1436484466
B95: 75 | C95: 0.8598326942 | F95: 0.7909511496 | G95: 0.8097259489 | H95: 0.2874326838 | I95: * | J95: 0.002534817795 | K95: 0.2966772019 | L95: -0.07851732216
B96: 76 | C96: 0.4974505998 | F96: 0.8612647664 | G96: 1.086019269 | H96: 0.2212067576 | I96: * | J96: 1.346454088e-05 | K96: 0.1848058596 | L96: -0.01947243538
B97: 77 | C97: 0.7806585645 | F97: 0.9136251501 | G97: 1.363421529 | H97: 0.1574893147 | I97: * | J97: 1.507459362e-08 | K97: -0.2840736452 | L97: -0.1172625504
B98: 78 | C98: 0.4243601044 | F98: 0.1600712703 | G98: -0.9941650082 | H98: 0.2433826057 | I98: * | J98: 9.099435989e-05 | K98: -0.08730156726 | L98: -0.09807800777
B99: 79 | C99: 0.1753989291 | F99: 0.1016471805 | G99: -1.272221696 | H99: 0.1776015795 | I99: * | J99: 1.667862423e-07 | K99: 0.1208707296 | L99: -0.01306425709
B100: 80 | C100: 0.3054065084 | F100: 0.7716561525 | G100: 0.7443120797 | H100: 0.3024199184 | I100: * | J100: 0.007005378165 | K100: 0.3720022069 | L100: 0.133395023
B101: 81 | C101: 0.9836515216 | F101: 0.6302320546 | G101: 0.332468011 | H101: 0.3774919548 | I101: * | J101: 0.5907146642 | K101: -0.9152264655 | L101: -0.2045138217
B102: 82 | C102: 0.3696855669 | F102: 0.704122031 | G102: 0.5362931876 | H102: 0.3455065338 | I102: * | J102: 0.1005423521 | K102: 0.2654093878 | L102: 0.0899924146
B103: 83 | C103: 0.6172277573 | F103: 0.759291561 | G103: 0.7040255247 | H103: 0.3113727589 | I103: * | J103: 0.01255555866 | K103: 0.6695745896 | L103: 0.2594931972
B104: 84 | C104: 0.5034117264 | F104: 0.4176838591 | G104: -0.2078223022 | H104: 0.3904194567 | I104: * | J104: 1.158384672 | K104: 0.9191460623 | L104: 0.1842988298
B105: 85 | C105: 0.02413307926 | F105: 0.77328842 | G105: 0.7497203309 | H105: 0.3012005911 | I105: * | J105: 0.006461601108 | K105: -0.509461347 | L105: -0.1767827414
B106: 86 | C106: 0.7729915659 | F106: 0.1317507007 | G106: -1.118153591 | H106: 0.2135098611 | I106: * | J106: 6.631053135e-06 | K106: -0.2466113438 | L106: -0.1443424625
B107: 87 | C107: 0.05793066827 | F107: 0.4073603554 | G107: -0.2343404174 | H107: 0.3881372562 | I107: * | J107: 1.030220948 | K107: -0.2849309553 | L107: -0.2202699485
B108: 88 | C108: 0.3421122587 | F108: 0.7734938898 | G108: 0.750402675 | H108: 0.3010464761 | I108: * | J108: 0.006395797512 | K108: 0.2436769821 | L108: 0.2267544985
B109: 89 | C109: 0.6601253209 | F109: 0.9980788037 | G109: 2.890819077 | H109: 0.006112887687 | I109: * | J109: 9.081384792e-37 | K109: -0.6278000249 | L109: -0.1829279539
B110: 90 | C110: 0.7692670768 | F110: 0.351131139 | G110: -0.3822684178 | H110: 0.3708331289 | I110: * | J110: 0.4138035939 | K110: -0.1236350304 | L110: -0.04446699668
B111: 91 | C111: 0.588719694 | F111: 0.2890268251 | G111: -0.5562299752 | H111: 0.3417641411 | I111: * | J111: 0.08086370069 | K111: -0.3096418876 | L111: 0.06684853945
B112: 92 | C112: 0.7284043317 | F112: 0.01478479733 | G112: -2.175808342 | H112: 0.03740280775 | I112: * | J112: 4.912559777e-21 | K112: 0.02981017336 | L112: -0.008293445908
B113: 93 | C113: 0.5193900809 | F113: 0.9053874891 | G113: 1.312875149 | H113: 0.1685101806 | I113: * | J113: 5.831048129e-08 | K113: 0.01942076698 | L113: -0.0406022437
B114: 94 | C114: 0.9190182171 | F114: 0.4829585046 | G114: -0.0427296936 | H114: 0.3985782469 | I114: * | J114: 1.751844681 | K114: -0.7723665777 | L114: -0.3797795904
B115: 95 | C115: 0.3658826909 | F115: 0.8480027275 | G115: 1.027904941 | H115: 0.2352202858 | I115: * | J115: 4.599590999e-05 | K115: -0.7020244639 | L115: -0.2973084465
B116: 96 | C116: 0.2404347955 | F116: 0.255972978 | G116: -0.6558106612 | H116: 0.3217493847 | I116: * | J116: 0.02418679079 | K116: 0.1105836538 | L116: 0.1313517277
B117: 97 | C117: 0.9774572496 | F117: 0.5838074477 | G117: 0.2116435837 | H117: 0.3901066809 | I117: * | J117: 1.139964975 | K117: -0.3143896904 | L117: -0.06975008788
B118: 98 | C118: 0.702781114 | F118: 0.1444244936 | G118: -1.060650008 | H118: 0.22731291 | I118: * | J118: 2.321163765e-05 | K118: 0.1518835984 | L118: -0.04480856755
B119: 99 | C119: 0.05766043623 | F119: 0.07128055207 | G119: -1.466320093 | H119: 0.1361516637 | I119: * | J119: 8.197525948e-10 | K119: -0.5372903786 | L119: -0.0745580202
B120: 100 | C120: 0.4428593231 | F120: 0.1189034559 | G120: -1.18048616 | H120: 0.1987490471 | I120: * | J120: 1.582431245e-06 | K120: -0.143801411 | L120: 0.05283018883
B121: 101 | C121: 0.4756214059 | F121: 0.4511595409 | G121: -0.1227323047 | H121: 0.3959488897 | I121: * | J121: 1.534639373 | K121: -0.4112930556 | L121: 0.04911234538
B122: 102 | C122: 0.7383089148 | F122: 0.6368495049 | G122: 0.3500502448 | H122: 0.3752337476 | I122: * | J122: =_xlfn.NORM.DIST(G122,0,1/SQRT(20),FALSE) -> 0.5239158835 | K122: -0.1090853399 | L122: -0.1285147333
B123: 103 | C123: 0.3060592687 | F123: 0.3277216389 | G123: -0.44621316 | H123: 0.3611392629 | I123: * | J123: 0.243622779 | K123: 0.2626000231 | L123: -0.06170494569
B124: 104 | C124: 0.1268621193 | F124: 0.4737459844 | G124: -0.06585663139 | H124: 0.3980780923 | I124: * | J124: 1.708398949 | K124: -0.5449373475 | L124: -0.2513535216
B125: 105 | C125: 0.8511082114 | F125: 0.9734815502 | G125: 1.93462036 | H125: 0.06140177704 | I125: * | J125: 9.927560745e-17 | K125: 0.387296813 | L125: 0.2274302679
B126: 106 | C126: 0.3574427989 | F126: 0.9389937023 | G126: 1.546380937 | H126: 0.1206832983 | I126: * | J126: 7.347966553e-11 | K126: 0.07274623209 | L126: -0.08185165715
B127: 107 | C127: 0.1232701371 | F127: 0.07342961179 | G127: -1.450715048 | H127: 0.1392860415 | I127: * | J127: 1.292336662e-09 | K127: -0.5016637568 | L127: -0.2865226699
B128: 108 | C128: 0.0818440794 | F128: 0.992039631 | G128: 2.410727517 | H128: 0.02182406294 | I128: * | J128: 1.027864473e-25 | K128: -0.7435636063 | L128: -0.2274672054
B129: 109 | C129: 0.002478184285 | F129: 0.7299880226 | G129: 0.612776767 | H129: 0.3306528597 | I129: * | J129: 0.04175124287 | K129: 0.962851263 | L129: 0.3550760452
B130: 110 | C130: 0.7143391715 | F130: 0.4415976654 | G130: -0.1469197907 | H130: 0.3946597626 | I130: * | J130: 1.43774132 | K130: 0.07831039887 | L130: -0.04010518389
B131: 111 | C131: 0.9744450028 | F131: 0.4360541338 | G131: -0.1609811241 | H131: 0.3938063475 | I131: * | J131: 1.3768226 | K131: 0.1693190495 | L131: 0.07313309024
B132: 112 | C132: 0.4810208997 | F132: 0.04440067154 | G132: -1.701754799 | H132: 0.09376878779 | I132: * | J132: 4.724869089e-13 | K132: 0.1756452035 | L132: 0.1146344086
B133: 113 | C133: 0.1957388315 | F133: 0.2309530378 | G133: -0.7357118516 | H133: 0.3043507385 | I133: * | J133: 0.007956296249 | K133: -0.2110543478 | L133: -0.02944170235
B134: 114 | C134: 0.08579616681 | F134: 0.6084338994 | G134: 0.2752395529 | H134: 0.3841135992 | I134: * | J134: 0.8364065242 | K134: 0.594968842 | L134: 0.3806452486
B135: 115 | C135: 0.4252691632 | F135: 0.957266594 | G135: 1.719810947 | H135: 0.09091653601 | I135: * | J135: 2.54730739e-13 | K135: -0.177641205 | L135: 0.1211869127
B136: 116 | C136: 0.7571296488 | F136: 0.5579134371 | G136: 0.1456811207 | H136: 0.3947312886 | I136: * | J136: 1.442961666 | K136: 0.3912374005 | L136: 0.1097630533
B137: 117 | C137: 0.07269095456 | F137: 0.2278139171 | G137: -0.7460655243 | H137: 0.3020250203 | I137: * | J137: 0.006824678387 | K137: -0.08056211185 | L137: 0.0773261286
B138: 118 | C138: 0.1825395208 | F138: 0.3090583675 | G138: -0.4985211937 | H138: 0.352325356 | I138: * | J138: 0.148628377 | K138: -0.275196871 | L138: -0.2718632263
B139: 119 | C139: 0.7556322633 | F139: 0.3565252981 | G139: -0.3677621471 | H139: 0.3728559856 | I139: * | J139: 0.4613665814 | K139: 0.8014632252 | L139: 0.1814764726
B140: 120 | C140: 0.851966173 | F140: 0.2114978254 | G140: -0.801234934 | H140: 0.2894052734 | I140: * | J140: 0.002906381067 | K140: -0.2072992122 | L140: -0.06902900035
B141: 121 | C141: 0.4235137102 | F141: 0.3556754179 | G141: -0.3700424843 | H141: 0.3725424629 | I141: * | J141: 0.4536692828 | K141: 0.03395218342 | L141: -0.07383214313
B142: 122 | C142: 0.5453838762 | F142: 0.3398613368 | G142: -0.412841596 | H142: 0.3663531116 | I142: * | J142: 0.324505034 | K142: 1.071710274 | L142: 0.3866523159
B143: 123 | C143: 0.4559418826 | F143: 0.1917457525 | G143: -0.8714811297 | H143: 0.2728922602 | I143: * | J143: 0.0008975282243 | K143: 0.5175795671 | L143: -0.01871265903
B144: 124 | C144: 0.7598885817 | F144: 0.3941328246 | G144: -0.2685634404 | H144: 0.3848114927 | I144: * | J144: 0.8673301216 | K144: 0.9495273173 | L144: 0.3523189993
B145: 125 | C145: 0.4044735443 | F145: 0.2879176857 | G145: -0.5594782492 | H145: 0.3411454037 | I145: * | J145: 0.07798556683 | K145: -0.3709143501 | L145: -0.03418422391
B146: 126 | C146: 0.9080613814 | F146: 0.2630984667 | G146: -0.6338220927 | H146: 0.3263438314 | I146: * | J146: 0.03211677343 | K146: 0.6827661701 | L146: 0.1774822255
B147: 127 | C147: 0.3396256985 | F147: 0.5267263144 | G147: 0.06704312555 | H147: 0.3980467081 | I147: * | J147: 1.705707186 | K147: -0.1737987312 | L147: -0.00172226359
B148: 128 | C148: 0.1642057174 | F148: 0.2085851621 | G148: -0.8113402106 | H148: 0.2870568492 | I148: * | J148: 0.002469346424 | K148: -0.2555299058 | L148: 0.0229385513
B149: 129 | C149: =RAND() -> 0.6497922518 | F149: 0.5236037343 | G149: =_xlfn.NORM.INV(F149,0,1) -> 0.05920034923 | H149: =_xlfn.NORM.DIST(G149,0,1,FALSE) -> 0.3982438098 | I149: * | J149: 1.722679263 | K149: 0.2506396635 | L149: 0.09996718408
B150: 130 | C150: 0.5823941233 | F150: 0.758886698 | G150: 0.7027258673 | H150: 0.3116575296 | I150: * | J150: 0.01278722259 | K150: 0.3431747705 | L150: 0.1933786967
B151: 131 | C151: 0.5883793283 | F151: 0.7294658646 | G151: 0.6111983572 | H151: 0.3309724138 | I151: * | J151: 0.04256569148 | K151: -0.6236717208 | L151: -0.1586102375
B152: 132 | C152: 0.8860763056 | F152: 0.8957583751 | G152: 1.257747052 | H152: 0.1808834538 | I152: * | J152: 2.405473544e-07 | K152: 0.8031984826 | L152: 0.2437684172
B153: 133 | C153: 0.6520360777 | F153: 0.1372569795 | G153: -1.092726368 | H153: 0.2195963938 | I153: * | J153: 1.163396698e-05 | K153: -0.1001903931 | L153: -0.02670710593
B154: 134 | C154: 0.4591967011 | F154: 0.173200946 | G154: -0.9415913657 | H154: 0.2560876057 | I154: * | J154: 0.0002517647607 | K154: -0.03033806898 | L154: 0.07520322115
B155: 135 | C155: 0.4408852338 | F155: 0.3334112905 | G155: -0.4305129054 | H155: 0.3636333446 | I155: * | J155: 0.2795746288 | K155: 0.04366938204 | L155: 0.01273535522
B156: 136 | C156: 0.0157657943 | F156: 0.009314369021 | G156: -2.352878138 | H156: 0.02504812513 | I156: * | J156: 1.617067802e-24 | K156: 0.8106179388 | L156: 0.3466522353
B157: 137 | C157: 0.06985008781 | F157: 0.673293708 | G157: 0.4490264392 | H157: 0.3606847738 | I157: * | J157: 0.2375636176 | K157: 0.2961275749 | L157: 0.1038672877
B158: 138 | C158: 0.8024212509 | F158: 0.7161155455 | G158: 0.5713404179 | H158: 0.3388650038 | I158: * | J158: 0.0681958799 | K158: -0.4152150456 | L158: -0.1236232475
B159: 139 | C159: 0.675522853 | F159: 0.7071376451 | G159: 0.5450418866 | H159: 0.3438760995 | I159: * | J159: 0.09146682165 | K159: 0.6183981727 | L159: 0.2545255773
B160: 140 | C160: 0.8604389988 | F160: 0.08386284957 | G160: -1.379548514 | H160: 0.1540442185 | I160: * | J160: 9.68571788e-09 | K160: 0.07200538539 | L160: 0.01016963287
B161: 141 | C161: 0.3783066159 | F161: 0.8185347221 | G161: 0.9097951446 | H161: 0.2637371975 | I161: * | J161: 0.0004535774831 | K161: -0.4130868323 | L161: -0.3368613817
B162: 142 | C162: 0.2326415412 | F162: 0.4820036635 | G162: -0.04512543612 | H162: 0.398536303 | I162: * | J162: 1.748161307 | K162: -0.8380532305 | L162: -0.4186902388
B163: 143 | C163: 0.01314985085 | F163: 0.08776597639 | G163: -1.354641035 | H163: 0.159379887 | I163: * | J163: 1.913788924e-08 | K163: -0.1660413178 | L163: -0.03069931453
B164: 144 | C164: 0.7406823021 | F164: 0.2699494417 | G164: -0.6129659061 | H164: 0.3306145333 | I164: * | J164: 0.04165456067 | K164: 0.1978516014 | L164: 0.03209565987
B165: 145 | C165: 0.7202635513 | F165: 0.813573751 | G165: 0.8911429273 | H165: 0.2682042688 | I165: * | J165: 0.0006346546498 | K165: -0.09802932261 | L165: -0.1538548578
B166: 146 | C166: 0.5111181024 | F166: 0.9620310161 | G166: 1.774757311 | H166: 0.08259383081 | I166: * | J166: 3.734013997e-14 | K166: 0.163741688 | L166: 0.02985338299
B167: 147 | C167: 0.540595043 | F167: 0.1576805465 | G167: -1.00403635 | H167: 0.2409940513 | I167: * | J167: 7.470509093e-05 | K167: 0.5728844119 | L167: 0.1121527394
B168: 148 | C168: 0.655382457 | F168: 0.1268880295 | G168: -1.141225588 | H168: 0.2080167957 | I168: * | J168: 3.937239111e-06 | K168: -0.2521106749 | L168: -0.1544076896
B169: 149 | C169: 0.8156409487 | F169: 0.2418885797 | G169: -0.7002404415 | H169: 0.3122013736 | I169: * | J169: 0.01324097414 | K169: 0.3424327688 | L169: 0.1899888368
B170: 150 | C170: 0.3753471144 | F170: 0.1478553625 | G170: -1.045675831 | H170: 0.2309261064 | I170: * | J170: 3.181884493e-05 | K170: -0.0656087838 | L170: 0.07226142009
B171: 151 | C171: 0.9116607462 | F171: 0.4999933562 | G171: -1.665346808e-05 | H171: 0.3989422803 | I171: * | J171: 1.784124111 | K171: 0.6611526944 | L171: 0.03459893329
B172: 152 | C172: 0.008003854978 | F172: 0.8555574316 | G172: 1.060570496 | H172: 0.2273320804 | I172: * | J172: 2.325081991e-05 | K172: 0.1220843609 | L172: -0.06055747219
B173: 153 | C173: 0.9780188048 | F173: 0.20864921 | G173: -0.8111171115 | H173: 0.2871088067 | I173: * | J173: 0.002478300881 | K173: -0.0608813658 | L173: 0.1038298955
B174: 154 | C174: 0.3239411249 | F174: 0.1950901756 | G174: -0.8592903422 | H174: 0.2757864404 | I174: * | J174: 0.001108362788 | K174: -0.04953131959 | L174: -0.109209569
B175: 155 | C175: 0.4783322603 | F175: 0.6080847791 | G175: 0.2743307678 | H175: 0.3842095323 | I175: * | J175: 0.8405943329 | K175: -0.122635614 | L175: -0.09589574971
B176: 156 | C176: 0.2302566129 | F176: 0.2861961356 | G176: -0.5645317903 | H176: 0.3401778859 | I176: * | J176: 0.07367926821 | K176: -0.3760026998 | L176: -0.1311687397
B177: 157 | C177: 0.3270217805 | F177: 0.3940493376 | G177: -0.2687804024 | H177: 0.3847890621 | I177: * | J177: 0.8663195494 | K177: -0.515546121 | L177: -0.2080221799
B178: 158 | C178: 0.01779556899 | F178: 0.6805890557 | G178: 0.4693466318 | H178: 0.3573349636 | I178: * | J178: 0.1971214969 | K178: -0.2365854245 | L178: -0.04510555597
B179: 159 | C179: 0.102802857 | F179: 0.330943301 | G179: -0.4373099201 | H179: 0.3625624599 | I179: * | J179: 0.2635605732 | K179: -0.3915854092 | L179: -0.04090745014
B180: 160 | C180: 0.6559090533 | F180: 0.9355446089 | G180: 1.518411151 | H180: 0.1259683309 | I180: * | J180: 1.731614632e-10 | K180: -0.3947200632 | L180: -0.002222021798
B181: 161 | C181: 0.9547341627 | F181: 0.8612179261 | G181: 1.085807545 | H181: 0.2212576222 | I181: * | J181: 1.352659737e-05 | K181: 0.4241212206 | L181: 0.2164805262
B182: 162 | C182: 0.3101693224 | F182: 0.9772581062 | G182: 2.000152607 | H182: 0.05397448963 | I182: * | J182: 7.533462604e-18 | K182: -0.2562870532 | L182: -0.2331704903
B183: 163 | C183: 0.582919574 | F183: 0.4867300676 | G183: -0.03326892387 | H183: 0.3987215626 | I183: * | J183: 1.764485931 | K183: 0.1636285203 | L183: 0.07241351978
B184: 164 | C184: 0.8361745581 | F184: 0.3511651259 | G184: -0.3821767693 | H184: 0.3708461195 | I184: * | J184: 0.4140936072 | K184: 0.3353746855 | L184: -0.1383540978
B185: 165 | C185: 0.08843657862 | F185: 0.4628808563 | G185: -0.09317855273 | H185: 0.3972141772 | I185: * | J185: 1.635756154 | K185: 0.04922995801 | L185: 0.03859270281
B186: 166 | C186: 0.2557155228 | F186: 0.7963153217 | G186: 0.8285318649 | H186: 0.2830388649 | I186: * | J186: =_xlfn.NORM.DIST(G186,0,1/SQRT(20),FALSE) -> 0.001862709914 | K186: 0.3383120199 | L186: 0.2998332399
B187: 167 | C187: 0.7938228974 | F187: 0.5086775305 | G187: 0.02175305872 | H187: 0.3988479027 | I187: * | J187: 1.775701663 | K187: -0.6711803886 | L187: -0.182349963
B188: 168 | C188: 0.05104652791 | F188: 0.8855437968 | G188: 1.20316518 | H188: 0.1934489243 | I188: * | J188: 9.216162664e-07 | K188: -0.6202567985 | L188: -0.1457526625
B189: 169 | C189: 0.9504311725 | F189: 0.1174535525 | G189: -1.187812966 | H189: 0.1970321523 | I189: * | J189: 1.33034957e-06 | K189: -0.999720117 | L189: -0.3045872369
B190: 170 | C190: 0.2794702435 | F190: 0.9692834098 | G190: 1.870364772 | H190: 0.06938596092 | I190: * | J190: 1.144605663e-15 | K190: -0.5525165226 | L190: -0.1392705252
B191: 171 | C191: 0.04054923877 | F191: 0.2432351629 | G191: -0.6959337409 | H191: 0.3131414044 | I191: * | J191: 0.01406156467 | K191: 0.7051839403 | L191: 0.1617841286
B192: 172 | C192: 0.05159698323 | F192: 0.6412639867 | G192: 0.3618394278 | H192: 0.3736624538 | I192: * | J192: 0.4817402976 | K192: -0.1592443787 | L192: -0.05620818553
B193: 173 | C193: 0.04386486241 | F193: 0.9283013487 | G193: 1.463256147 | H193: 0.13676409 | I193: * | J193: 8.967375331e-10 | K193: -0.1469931722 | L193: -0.157585328
B194: 174 | C194: 0.7140348993 | F194: 0.1990991217 | G194: -0.8448434645 | H194: 0.2792022713 | I194: * | J194: 0.001417759896 | K194: 0.4502108101 | L194: 0.1788643258
B195: 175 | C195: 0.9257739422 | F195: 0.7038164998 | G195: 0.5354090979 | H195: 0.345670253 | I195: * | J195: 0.1014994989 | K195: 0.1285977892 | L195: 0.08197009029
B196: 176 | C196: 0.9754674535 | F196: 0.5558286744 | G196: 0.1404016538 | H196: 0.3950294952 | I196: * | J196: 1.464921064 | K196: -1.184887314 | L196: -0.245459981
B197: 177 | C197: 0.02983401313 | F197: 0.1418568862 | G197: -1.072013937 | H197: 0.2245750176 | I197: * | J197: 1.821598224e-05 | K197: -0.4067508475 | L197: -0.0951483755
B198: 178 | C198: 0.7621434371 | F198: 0.171836848 | G198: -0.946931479 | H198: 0.2547995437 | I198: * | J198: 0.0002276127914 | K198: 0.3975023963 | L198: 0.03123458643
B199: 179 | C199: 0.746418969 | F199: 0.2195144509 | G199: -0.7738341041 | H199: 0.2957182478 | I199: * | J199: 0.004474929853 | K199: 0.01993406739 | L199: 0.006970416567
B200: 180 | C200: 0.3152196225 | F200: 0.3135245689 | G200: -0.4858843883 | H200: 0.3545236035 | I200: * | J200: 0.1683165605 | K200: -0.3402408575 | L200: -0.07297846795
B201: 181 | C201: 0.389472166 | F201: 0.2177573881 | G201: -0.7797895197 | H201: 0.2943533447 | I201: * | J201: 0.004079465324 | K201: 0.06481020147 | L201: -0.01550487318
B202: 182 | C202: 0.8062659171 | F202: 0.8151927956 | G202: 0.8971958697 | H202: 0.2667565731 | I202: * | J202: 0.0005695427667 | K202: 0.7372210193 | L202: 0.08662331299
B203: 183 | C203: 0.0570383351 | F203: 0.1271041522 | G203: -1.140187235 | H203: 0.2082633282 | I203: * | J203: 4.031622292e-06 | K203: 0.5692487542 | L203: -0.02583422891
B204: 184 | C204: 0.1503743561 | F204: 0.2901303042 | G204: -0.5530040915 | H204: 0.3423761489 | I204: * | J204: 0.08380960595 | K204: 0.757421486 | L204: 0.2035245382
B205: 185 | C205: 0.06870854764 | F205: 0.1115862981 | G205: -1.218135209 | H205: 0.189974538 | I205: * | J205: 6.414040327e-07 | K205: -0.1336465797 | L205: 0.04930645597
B206: 186 | C206: 0.8736974634 | F206: 0.7792799871 | G206: 0.7697637848 | H206: 0.296648698 | I206: * | J206: 0.004765107222 | K206: -0.9143056887 | L206: -0.221084807
B207: 187 | C207: 0.6225553757 | F207: 0.9253784973 | G207: 1.442210478 | H207: 0.141010057 | I207: * | J207: 1.652819807e-09 | K207: -0.2630580553 | L207: -0.04908970938
B208: 188 | C208: 0.9632921272 | F208: 0.3012123825 | G208: -0.5209167521 | H208: 0.3483262757 | I208: * | J208: 0.1182901206 | K208: -0.3643958725 | L208: -0.1471789793
B209: 189 | C209: 0.7593162719 | F209: 0.3812229716 | G209: -0.3022703971 | H209: 0.3811271511 | I209: * | J209: 0.7155195718 | K209: 0.423257568 | L209: 0.141711361
B210: 190 | C210: 0.1817096088 | F210: 0.8572451252 | G210: 1.068023859 | H210: 0.2255358811 | I210: * | J210: 1.983977036e-05 | K210: -0.1951908009 | L210: 0.07818170778
B211: 191 | C211: 0.6383845113 | F211: 0.7387819906 | G211: 0.6395948695 | H211: 0.3251465316 | I211: * | J211: 0.02984051134 | K211: -0.7181330036 | L211: -0.1825955956
B212: 192 | C212: 0.3032948173 | F212: 0.6216283725 | G212: 0.3097602851 | H212: 0.3802546001 | I212: * | J212: 0.683460279 | K212: 0.4185011532 | L212: 0.07121453539
B213: 193 | C213: =RAND() -> 0.9026314933 | F213: 0.9384597753 | G213: =_xlfn.NORM.INV(F213,0,1) -> 1.541971788 | H213: =_xlfn.NORM.DIST(G213,0,1,FALSE) -> 0.1215077744 | I213: * | J213: 8.419863936e-11 | K213: 0.4236228192 | L213: 0.1646752303
B214: 194 | C214: 0.6487955557 | F214: 0.5664674502 | G214: 0.1673875768 | H214: 0.3933923443 | I214: * | J214: 1.348161207 | K214: -0.3873991234 | L214: -0.1749886926
B215: 195 | C215: 0.5115758613 | F215: 0.06779000751 | G215: -1.492454583 | H215: 0.1309880902 | I215: * | J215: 3.783205666e-10 | K215: 0.8093560582 | L215: 0.3581377834
B216: 196 | C216: 0.9959668753 | F216: 0.9660016078 | G216: 1.825028131 | H216: 0.07544869635 | I216: * | J216: 6.113058481e-15 | K216: 1.055607521 | L216: 0.4249185236
... 4284 more rows

Sheet 50個
G1: 7 | H1: 8 | J1: 10 | O1: 15 | T1: 20 | AE1: 31 | AF1: 32
I18: 10
K19: 50個の平均
B20: No | C20: 乱数 | F20: 対象列 | I20: =COUNTA(I21:I10020) -> 10000 | K20: 200個の標本 | P20: =FREQUENCY(L21:L220,N21:N47) -> 0
B21: 1 | C21: =RAND() -> 0.1014840921 | F21: 0.08414646168 | G21: =_xlfn.NORM.INV(F21,0,1) -> -1.377709739 | H21: =_xlfn.NORM.DIST(G21,0,1,FALSE) -> 0.1544352143 | I21: * | J21: =_xlfn.NORM.DIST(G21,0,1/SQRT(50),FALSE) -> 6.953581294e-21 | K21: 0.3632470858 | L21: -0.19367837 | N21: -2 | O21: =P21/$I$18 -> 0 | P21: 0
B22: 2 | C22: 0.2102696578 | F22: 0.9525292577 | G22: 1.669888204 | H22: 0.09894394109 | I22: * | J22: 1.494004919e-30 | K22: -0.9670132422 | L22: -0.345075392 | N22: -1.5 | O22: 0 | P22: 0
B23: 3 | C23: 0.3734568324 | F23: 0.7103713306 | G23: 0.5544698432 | H23: 0.3420983751 | I23: * | J23: 0.001295514708 | K23: 1.329636544 | L23: 0.5001114294 | N23: -1.3 | O23: 0 | P23: 0
B24: 4 | C24: 0.21895594 | F24: 0.2811747854 | G24: -0.5793551342 | H24: 0.33730601 | I24: * | J24: 0.0006398758919 | K24: -0.2145285852 | L24: 0.015362198 | N24: -1 | O24: 0 | P24: 0
B25: 5 | C25: 0.01534374011 | F25: 0.5406016825 | G25: 0.1019496565 | H25: 0.3968744086 | I25: * | J25: 2.175437205 | K25: 1.080374758 | L25: 0.3360482585 | N25: -0.9 | O25: 0 | P25: 0
B26: 6 | C26: 0.1123662707 | F26: 0.9232885681 | G26: 1.427545001 | H26: 0.144008796 | I26: * | J26: 2.11029295e-22 | K26: -0.6510510751 | L26: -0.2668978543 | N26: -0.8 | O26: 0 | P26: 0
B27: 7 | C27: 0.5411171047 | F27: 0.1260682825 | G27: -1.145175259 | H27: 0.2070796618 | I27: * | J27: 1.628411375e-14 | K27: 0.9407445258 | L27: 0.2898078028 | N27: -0.7 | O27: 0.2 | P27: 2
B28: 8 | C28: 0.2246215677 | F28: 0.6554128914 | G28: 0.3999759682 | H28: 0.3682736803 | I28: * | J28: 0.05169230189 | K28: 1.569624456 | L28: 0.2177212918 | N28: -0.6 | O28: 0.3 | P28: 3
B29: 9 | C29: 0.2506453353 | F29: 0.2504946207 | G29: -0.6729340614 | H29: 0.3181098045 | I29: * | J29: 3.417783223e-05 | K29: -0.2636908852 | L29: -0.09745842669 | N29: -0.5 | O29: 0.6 | P29: 6
B30: 10 | C30: 0.5297542906 | F30: 0.6557666826 | G30: 0.4009368277 | H30: 0.3681320023 | I30: * | J30: 0.05070729337 | K30: -0.3922014551 | L30: -0.02184969231 | N30: -0.4 | O30: 1.2 | P30: 12
B31: 11 | C31: 0.6849189423 | F31: 0.3504089128 | G31: -0.3842167218 | H31: 0.3705563412 | I31: * | J31: 0.070405122 | K31: 0.6304356936 | L31: 0.1251437098 | N31: -0.3 | O31: 2.5 | P31: 25
B32: 12 | C32: 0.01692831624 | F32: 0.0532825321 | G32: -1.613826503 | H32: 0.1084835724 | I32: * | J32: 1.489672117e-28 | K32: -0.3142078704 | L32: 0.006714105549 | N32: -0.2 | O32: 2.9 | P32: 29
B33: 13 | C33: 0.09199073214 | F33: 0.528985647 | G33: 0.07272028515 | H33: 0.3978888225 | I33: * | J33: 2.471603111 | K33: 1.086881577 | L33: 0.3089449764 | N33: -0.1 | O33: 2.8 | P33: 28
B34: 14 | C34: 0.2964668948 | F34: 0.7924681484 | G34: 0.8150150363 | H34: 0.2862003217 | I34: * | J34: 1.731400965e-07 | K34: -0.003883405032 | L34: -0.08977944857 | N34: 0 | O34: 2.8 | P34: 28
B35: 15 | C35: 0.2486780518 | F35: 0.7008925086 | G35: 0.5269691919 | H35: 0.3472234362 | I35: * | J35: 0.00272485446 | K35: -0.6515065831 | L35: -0.2652097865 | N35: 0.1 | O35: 2.8 | P35: 28
B36: 16 | C36: 0.6732657367 | F36: 0.5457883608 | G36: 0.1150275587 | H36: 0.3963117211 | I36: * | J36: 2.026458094 | K36: 0.3918543302 | L36: 0.05593927181 | N36: 0.2 | O36: 1.5 | P36: 15
B37: 17 | C37: 0.9881073295 | F37: 0.443906745 | G37: -0.1410714597 | H37: 0.3949922591 | I37: * | J37: 1.715224629 | K37: -0.852232279 | L37: -0.1283986712 | N37: 0.3 | O37: 1.5 | P37: 15
B38: 18 | C38: 0.6033267263 | F38: 0.02018385062 | G38: -2.049966487 | H38: 0.04879537075 | I38: * | J38: 6.665348853e-46 | K38: 0.06158855647 | L38: -0.1017006149 | N38: 0.4 | O38: 0.7 | P38: 7
B39: 19 | C39: 0.2223636654 | F39: 0.5130628404 | G39: 0.03274953828 | H39: 0.3987283985 | I39: * | J39: 2.746314039 | K39: -0.7803965419 | L39: -0.344041101 | N39: 0.5 | O39: 0.1 | P39: 1
B40: 20 | C40: 0.3002997334 | F40: 0.2025775997 | G40: -0.832449628 | H40: 0.2821194476 | I40: * | J40: 8.443898709e-08 | K40: 0.5314721554 | L40: 0.01033546626 | N40: 0.6 | O40: 0 | P40: 0
B41: 21 | C41: 0.6891141929 | F41: 0.3648322819 | G41: -0.3455717709 | H41: 0.3758186906 | I41: * | J41: 0.1424985789 | K41: -0.2540060331 | L41: -0.104553191 | N41: 0.7 | O41: 0.1 | P41: 1
B42: 22 | C42: 0.2283123461 | F42: 0.3738560663 | G42: -0.32165756 | H42: 0.378829014 | I42: * | J42: 0.2123505826 | K42: -0.0406259465 | L42: -0.007979295143 | N42: 0.8 | O42: 0 | P42: 0
B43: 23 | C43: 0.5987006025 | F43: 0.01538006138 | G43: -2.160162103 | H43: 0.03869330508 | I43: * | J43: 6.119038105e-51 | K43: -0.6855188296 | L43: -0.2518383484 | N43: 0.9 | O43: 0 | P43: 0
B44: 24 | C44: 0.4089506666 | F44: 0.6108057753 | G44: 0.2814197789 | H44: 0.3834534379 | I44: * | J44: 0.3895144444 | K44: -0.2592331675 | L44: -0.1914075984 | N44: 1 | O44: 0 | P44: 0
B45: 25 | C45: 0.8169518676 | F45: 0.9840717226 | G45: 2.146205903 | H45: 0.03987369596 | I45: * | J45: 2.749263875e-50 | K45: 0.5211101302 | L45: 0.1889773311 | N45: 1.3 | O45: 0 | P45: 0
B46: 26 | C46: 0.9913631126 | F46: 0.6069329773 | G46: 0.2713341474 | H46: 0.3845237809 | I46: * | J46: 0.4477668887 | K46: -0.08128233461 | L46: 0.1360106781 | N46: 1.5 | O46: 0 | P46: 0
B47: 27 | C47: 0.1503952041 | F47: 0.4317083458 | G47: -0.1720265049 | H47: 0.3930827646 | I47: * | J47: 1.346145077 | K47: -0.6494709038 | L47: -0.0986792135 | N47: 2 | O47: 0 | P47: 0
B48: 28 | C48: 0.3858151913 | F48: 0.7681588699 | G48: 0.7327969853 | H48: 0.3050028238 | I48: * | J48: 4.169507759e-06 | K48: -0.5965609669 | L48: -0.4632830001 | O48: =SUM(O22:O47) -> 20 | P48: =SUM(P22:P47) -> 200
B49: 29 | C49: 0.9940042627 | F49: 0.6602686536 | G49: 0.4131964447 | H49: 0.3662994231 | I49: * | J49: 0.0395096798 | K49: 0.6974625179 | L49: 0.4550146804
B50: 30 | C50: 0.9259241133 | F50: 0.7513724551 | G50: 0.6788149976 | H50: 0.3168478991 | I50: * | J50: 2.801775744e-05 | K50: -0.2473101496 | L50: 0.2074123991
B51: 31 | C51: 0.8686906369 | F51: 0.180174216 | G51: -0.9147013565 | H51: 0.2625594309 | I51: * | J51: 2.324196804e-09 | K51: 0.5695658479 | L51: 0.1110681616
B52: 32 | C52: 0.8736871615 | F52: 0.65804111 | G52: 0.407122825 | H52: 0.3672130688 | I52: * | J52: 0.04475053419 | K52: 0.6192038131 | L52: 0.2506550491
B53: 33 | C53: 0.7710485472 | F53: 0.3344607014 | G53: -0.4276287889 | H53: 0.3640836159 | I53: * | J53: =_xlfn.NORM.DIST(G53,0,1/SQRT(50),FALSE) -> 0.02917081495 | K53: -0.3757068709 | L53: 0.1052003518
B54: 34 | C54: 0.665396585 | F54: 0.1846976063 | G54: -0.8976067997 | H54: 0.2666582197 | I54: * | J54: 5.042437696e-09 | K54: 1.177049293 | L54: 0.3389602898
B55: 35 | C55: 0.5058987649 | F55: 0.8229505879 | G55: 0.926668217 | H55: 0.2596825059 | I55: * | J55: 1.33975826e-09 | K55: -0.01129754961 | L55: -0.1237375531
B56: 36 | C56: 0.733188983 | F56: 0.4037501771 | G56: -0.2436519964 | H56: 0.3872744435 | I56: * | J56: 0.6394899238 | K56: -0.9729806235 | L56: -0.3076145209
B57: 37 | C57: 0.7626159407 | F57: 0.7134205806 | G57: 0.5634054325 | H57: 0.3403940459 | I57: * | J57: 0.001009228537 | K57: 0.02796856995 | L57: -0.1071742529
B58: 38 | C58: 0.819888009 | F58: 0.8925456927 | G58: 1.240180567 | H58: 0.1848958746 | I58: * | J58: 5.63965894e-17 | K58: -0.9335433834 | L58: -0.1500085453
B59: 39 | C59: 0.07816384526 | F59: 0.4228891657 | G59: -0.1945077456 | H59: 0.3914665669 | I59: * | J59: 1.095533426 | K59: -0.2244284082 | L59: -0.1983783427
B60: 40 | C60: 0.2116068997 | F60: 0.1130110849 | G60: -1.210669308 | H60: 0.1917047943 | I60: * | J60: 3.439857775e-16 | K60: 0.4650437697 | L60: -0.0003763851101
B61: 41 | C61: 0.02796274786 | F61: 0.1883148719 | G61: -0.8841231386 | H61: 0.2698806661 | I61: * | J61: 9.193490717e-09 | K61: 0.6230613499 | L61: 0.3196052811
B62: 42 | C62: 0.9843218769 | F62: 0.8765288196 | G62: 1.157808091 | H62: 0.2040891601 | I62: * | J62: 7.868441178e-15 | K62: 0.3078527218 | L62: -0.07655935495
B63: 43 | C63: 0.1887097348 | F63: 0.596248362 | G63: 0.2436482243 | H63: 0.3872747995 | I63: * | J63: 0.6395193112 | K63: 0.4443423576 | L63: 0.1919803726
B64: 44 | C64: 0.4533699925 | F64: 0.3705271273 | G64: -0.3304575608 | H64: 0.3777435953 | I64: * | J64: 0.1839701032 | K64: -0.9927159544 | L64: -0.1446637336
B65: 45 | C65: 0.1184310222 | F65: 0.9416696631 | G65: 1.568945349 | H65: 0.1165152296 | I65: * | J65: 5.29695824e-27 | K65: 0.2167717271 | L65: -0.1499099701
B66: 46 | C66: 0.4746714047 | F66: 0.8601531098 | G66: 1.081007493 | H66: 0.22241125 | I66: * | J66: 5.79067675e-13 | K66: -0.4239117536 | L66: -0.2826946278
B67: 47 | C67: 0.4165048864 | F67: 0.8628354147 | G67: 1.09314721 | H67: 0.2194954128 | I67: * | J67: 2.993396192e-13 | K67: -0.5670582405 | L67: -0.3282119544
B68: 48 | C68: 0.7740465174 | F68: 0.3633115057 | G68: -0.3496211828 | H68: 0.3752900749 | I68: * | J68: 0.1328145722 | K68: -0.5589966822 | L68: -0.2394962067
B69: 49 | C69: 0.02902126314 | F69: 0.2884237836 | G69: -0.5579953387 | H69: 0.3414281791 | I69: * | J69: 0.001174518525 | K69: 0.8602606827 | L69: 0.329637057
B70: 50 | C70: 0.1322610132 | F70: 0.1672992381 | G70: -0.9648928636 | H70: 0.2504621038 | I70: * | J70: 2.19782436e-10 | K70: -0.2034599537 | L70: -0.05823097337
B71: 51 | C71: 0.916598506 | F71: 0.2541602843 | G71: -0.6614549932 | H71: 0.3205554883 | I71: * | J71: 5.01247966e-05 | K71: 1.40768856 | L71: 0.3344890755
B72: 52 | C72: 0.8081026317 | F72: 0.2768886803 | G72: -0.5921093586 | H72: 0.3347955341 | I72: * | J72: 0.0004404276625 | K72: 0.4059409741 | L72: 0.2061954655
B73: 53 | C73: 0.4494302613 | F73: 0.9823724464 | G73: 2.105416058 | H73: 0.04348553513 | I73: * | J73: 2.099581418e-48 | K73: -0.4198003871 | L73: -0.2648309391
B74: 54 | C74: 0.6649628665 | F74: 0.7490017434 | G74: 0.6713516895 | H74: 0.3184483197 | I74: * | J74: 3.604457092e-05 | K74: 1.469487505 | L74: 0.2669302027
B75: 55 | C75: 0.1513184743 | F75: 0.5226129014 | G75: 0.05671252429 | H75: 0.3983012349 | I75: * | J75: 2.603001518 | K75: 0.2443682325 | L75: 0.2992091671
B76: 56 | C76: 0.1282165765 | F76: 0.411623044 | G76: -0.22337188 | H76: 0.3891127889 | I76: * | J76: 0.8103395275 | K76: -0.4587391773 | L76: -0.3207833955
B77: 57 | C77: 0.8255783242 | F77: 0.03326015395 | G77: -1.834901348 | H77: 0.07409775738 | I77: * | J77: 7.854978043e-37 | K77: -1.023428922 | L77: -0.6355842544
B78: 58 | C78: 0.3602824756 | F78: 0.6138677509 | G78: 0.2894141104 | H78: 0.3825795028 | I78: * | J78: 0.3475175148 | K78: 1.31635196 | L78: 0.3552960113
B79: 59 | C79: 0.6619300907 | F79: 0.6913853275 | G79: 0.4997809227 | H79: 0.3521038852 | I79: * | J79: 0.005475611621 | K79: -0.1878520999 | L79: -0.1793146
B80: 60 | C80: 0.703240897 | F80: 0.1003181366 | G80: -1.279740905 | H80: 0.1759057523 | I80: * | J80: 4.665453398e-18 | K80: -1.348979542 | L80: -0.4401729076
B81: 61 | C81: 0.5096743981 | F81: 0.04291408788 | G81: -1.717826997 | H81: 0.09122709528 | I81: * | J81: 2.576820243e-32 | K81: -0.6743012268 | L81: -0.2018602977
B82: 62 | C82: 0.6337441008 | F82: 0.2202922967 | G82: -0.7712064132 | H82: 0.2963191491 | I82: * | J82: 9.837339768e-07 | K82: 0.2915345405 | L82: -0.01057477381
B83: 63 | C83: 0.2223760193 | F83: 0.4339756694 | G83: -0.1662612764 | H83: 0.3934662674 | I83: * | J83: 1.413406388 | K83: -0.0716843615 | L83: 0.3612188248
B84: 64 | C84: 0.6733666675 | F84: 0.5228037004 | G84: 0.05719156264 | H84: 0.3982903685 | I84: * | J84: 2.599453157 | K84: -0.9335269456 | L84: -0.2256781907
B85: 65 | C85: =RAND() -> 0.5334310737 | F85: 0.8328638125 | G85: =_xlfn.NORM.INV(F85,0,1) -> 0.9655440672 | H85: =_xlfn.NORM.DIST(G85,0,1,FALSE) -> 0.2503047243 | I85: * | J85: =_xlfn.NORM.DIST(G85,0,1/SQRT(50),FALSE) -> 2.129825941e-10 | K85: 0.5675008465 | L85: 0.152572528
B86: 66 | C86: 0.5731959514 | F86: 0.9120651916 | G86: 1.353582488 | H86: 0.1596085044 | I86: * | J86: 3.611546252e-20 | K86: -0.4547041208 | L86: -0.3291394471
B87: 67 | C87: 0.03940670574 | F87: 0.878390567 | G87: 1.166978961 | H87: 0.2019250923 | I87: * | J87: 4.617493319e-15 | K87: 1.211813148 | L87: 0.3099539632
B88: 68 | C88: 0.6776731572 | F88: 0.7899651369 | G88: 0.8063002851 | H88: 0.2882293943 | I88: * | J88: 2.46493362e-07 | K88: -0.8683309886 | L88: -0.4816477317
B89: 69 | C89: 0.6072601431 | F89: 0.3784542801 | G89: -0.3095429312 | H89: 0.3802801936 | I89: * | J89: 0.2570852116 | K89: 0.3201171184 | L89: 0.1398644995
B90: 70 | C90: 0.9334966887 | F90: 0.8410670324 | G90: 0.998852942 | H90: 0.2422482788 | I90: * | J90: 4.148840917e-11 | K90: 0.8402838764 | L90: 0.3474602458
B91: 71 | C91: 0.8016535022 | F91: 0.9192316799 | G91: 1.399922124 | H91: 0.1497437903 | I91: * | J91: 1.487074997e-21 | K91: 0.1525762096 | L91: 0.0365631798
B92: 72 | C92: 0.3985785149 | F92: 0.0003101150374 | G92: -3.422609952 | H92: 0.001140751554 | I92: * | J92: 1.83842213e-127 | K92: -0.1372730761 | L92: -0.2005152049
B93: 73 | C93: 0.717620456 | F93: 0.832371266 | G93: 0.9635781456 | H93: 0.2507798154 | I93: * | J93: 2.341643034e-10 | K93: 1.476152585 | L93: 0.1077335008
B94: 74 | C94: 0.7405476168 | F94: 0.7184603121 | G94: 0.5782736584 | H94: 0.3375172209 | I94: * | J94: 0.0006602198774 | K94: -1.534861583 | L94: -0.5334986758
B95: 75 | C95: 0.441586551 | F95: 0.7909511496 | G95: 0.8097259489 | H95: 0.2874326838 | I95: * | J95: 2.146343745e-07 | K95: 0.08895501304 | L95: -0.003749628639
B96: 76 | C96: 0.2275264398 | F96: 0.8612647664 | G96: 1.086019269 | H96: 0.2212067576 | I96: * | J96: 4.413786094e-13 | K96: -0.2968144021 | L96: -0.2060963828
B97: 77 | C97: 0.6050617133 | F97: 0.9136251501 | G97: 1.363421529 | H97: 0.1574893147 | I97: * | J97: 1.851170591e-20 | K97: 0.4928037373 | L97: 0.009904083035
B98: 78 | C98: 0.202209498 | F98: 0.1600712703 | G98: -0.9941650082 | H98: 0.2433826057 | I98: * | J98: 5.240450155e-11 | K98: 0.4740860202 | L98: 0.1876281087
B99: 79 | C99: 0.6451438943 | F99: 0.1016471805 | G99: -1.272221696 | H99: 0.1776015795 | I99: * | J99: 7.537597959e-18 | K99: -0.8286370637 | L99: -0.2364437656
B100: 80 | C100: 0.9499473077 | F100: 0.7716561525 | G100: 0.7443120797 | H100: 0.3024199184 | I100: * | J100: 2.725281511e-06 | K100: -0.2136264149 | L100: -0.09350586426
B101: 81 | C101: 0.6873117968 | F101: 0.6302320546 | G101: 0.332468011 | H101: 0.3774919548 | I101: * | J101: 0.1779413123 | K101: 1.583095342 | L101: 0.4429834
B102: 82 | C102: 0.3847566644 | F102: 0.704122031 | G102: 0.5362931876 | H102: 0.3455065338 | I102: * | J102: 0.002126694025 | K102: -0.4226791552 | L102: 0.08865610064
B103: 83 | C103: 0.1280616739 | F103: 0.759291561 | G103: 0.7040255247 | H103: 0.3113727589 | I103: * | J103: 1.171986239e-05 | K103: 0.1000072102 | L103: 0.170315513
B104: 84 | C104: 0.2718458852 | F104: 0.4176838591 | G104: -0.2078223022 | H104: 0.3904194567 | I104: * | J104: 0.958218198 | K104: 0.8437596127 | L104: 0.09220378548
B105: 85 | C105: 0.8342264237 | F105: 0.77328842 | G105: 0.7497203309 | H105: 0.3012005911 | I105: * | J105: 2.226807984e-06 | K105: -0.4736838598 | L105: -0.2375873993
B106: 86 | C106: 0.05075570791 | F106: 0.1317507007 | G106: -1.118153591 | H106: 0.2135098611 | I106: * | J106: 7.512572544e-14 | K106: 0.2914830258 | L106: -0.07820390784
B107: 87 | C107: 0.6070693014 | F107: 0.4073603554 | G107: -0.2343404174 | H107: 0.3881372562 | I107: * | J107: 0.7147568881 | K107: -1.129622677 | L107: -0.6067637387
B108: 88 | C108: 0.7901097131 | F108: 0.7734938898 | G108: 0.750402675 | H108: 0.3010464761 | I108: * | J108: 2.170546894e-06 | K108: 0.1039578173 | L108: -0.08008642578
B109: 89 | C109: 0.1753072951 | F109: 0.9980788037 | G109: 2.890819077 | H109: 0.006112887687 | I109: * | J109: 5.214499177e-91 | K109: 0.4630663685 | L109: 0.06982126689
B110: 90 | C110: 0.8056283353 | F110: 0.351131139 | G110: -0.3822684178 | H110: 0.3708331289 | I110: * | J110: 0.07308328405 | K110: -0.0507234386 | L110: -0.0448519156
B111: 91 | C111: 0.187627612 | F111: 0.2890268251 | G111: -0.5562299752 | H111: 0.3417641411 | I111: * | J111: 0.001233719533 | K111: -0.7673996875 | L111: -0.4219275943
B112: 92 | C112: 0.5701590992 | F112: 0.01478479733 | G112: -2.175808342 | H112: 0.03740280775 | I112: * | J112: 1.122282081e-51 | K112: -1.536241734 | L112: -0.4612435031
B113: 93 | C113: 0.0411835315 | F113: 0.9053874891 | G113: 1.312875149 | H113: 0.1685101806 | I113: * | J113: 5.447521764e-19 | K113: 0.7959171471 | L113: 0.3252714999
B114: 94 | C114: 0.1585958083 | F114: 0.4829585046 | G114: -0.0427296936 | H114: 0.3985782469 | I114: * | J114: 2.695078418 | K114: 1.518696305 | L114: 0.7197200496
B115: 95 | C115: 0.2912105582 | F115: 0.8480027275 | G115: 1.027904941 | H115: 0.2352202858 | I115: * | J115: 9.519857494e-12 | K115: 0.7257076399 | L115: 0.1986589022
B116: 96 | C116: 0.5725392447 | F116: 0.255972978 | G116: -0.6558106612 | H116: 0.3217493847 | I116: * | J116: 6.036400261e-05 | K116: -0.536068546 | L116: -0.09906794648
B117: 97 | C117: 0.6477942232 | F117: 0.5838074477 | G117: 0.2116435837 | H117: 0.3901066809 | I117: * | J117: =_xlfn.NORM.DIST(G117,0,1/SQRT(50),FALSE) -> 0.9205792441 | K117: -0.8644409352 | L117: -0.4635767735
B118: 98 | C118: 0.5521133334 | F118: 0.1444244936 | G118: -1.060650008 | H118: 0.22731291 | I118: * | J118: 1.722252662e-12 | K118: 0.1865362173 | L118: 0.1061035915
B119: 99 | C119: 0.9452865211 | F119: 0.07128055207 | G119: -1.466320093 | H119: 0.1361516637 | I119: * | J119: 1.276554641e-23 | K119: 0.5868815321 | L119: 0.2189400976
B120: 100 | C120: 0.5478719679 | F120: 0.1189034559 | G120: -1.18048616 | H120: 0.1987490471 | I120: * | J120: 2.08999156e-15 | K120: -0.477754826 | L120: -0.1896281927
B121: 101 | C121: 0.3662045532 | F121: 0.4511595409 | G121: -0.1227323047 | H121: 0.3959488897 | I121: * | J121: 1.935745462 | K121: -0.4707529335 | L121: 0.03387667505
B122: 102 | C122: 0.5626658236 | F122: 0.6368495049 | G122: 0.3500502448 | H122: 0.3752337476 | I122: * | J122: 0.131821522 | K122: 0.2880446507 | L122: -0.1115482571
B123: 103 | C123: 0.9570614229 | F123: 0.3277216389 | G123: -0.44621316 | H123: 0.3611392629 | I123: * | J123: 0.0194369063 | K123: -0.405726474 | L123: -0.1169402418
B124: 104 | C124: 0.9722398335 | F124: 0.4737459844 | G124: -0.06585663139 | H124: 0.3980780923 | I124: * | J124: 2.531078691 | K124: -0.164059238 | L124: -0.08785922879
B125: 105 | C125: 0.8150513455 | F125: 0.9734815502 | G125: 1.93462036 | H125: 0.06140177704 | I125: * | J125: =_xlfn.NORM.DIST(G125,0,1/SQRT(50),FALSE) -> 6.515365617e-41 | K125: 1.233579411 | L125: 0.3085613806
B126: 106 | C126: 0.6730307299 | F126: 0.9389937023 | G126: 1.546380937 | H126: 0.1206832983 | I126: * | J126: 3.070791543e-26 | K126: 0.7189350532 | L126: 0.3246580245
B127: 107 | C127: 0.05874836205 | F127: 0.07342961179 | G127: -1.450715048 | H127: 0.1392860415 | I127: * | J127: 3.983561911e-23 | K127: -0.5663796329 | L127: -0.09057292349
B128: 108 | C128: 0.7344270315 | F128: 0.992039631 | G128: 2.410727517 | H128: 0.02182406294 | I128: * | J128: 2.2473569e-63 | K128: 0.07638136015 | L128: 0.02466368648
B129: 109 | C129: 0.05695219988 | F129: 0.7299880226 | G129: 0.612776767 | H129: 0.3306528597 | I129: * | J129: 0.0002363229665 | K129: -0.1226085112 | L129: -0.1101377016
B130: 110 | C130: 0.750423776 | F130: 0.4415976654 | G130: -0.1469197907 | H130: 0.3946597626 | I130: * | J130: 1.64450158 | K130: -0.3335843363 | L130: -0.1296258368
B131: 111 | C131: 0.7971158158 | F131: 0.4360541338 | G131: -0.1609811241 | H131: 0.3938063475 | I131: * | J131: 1.475799551 | K131: -0.5535460525 | L131: -0.1746031171
B132: 112 | C132: 0.5100184496 | F132: 0.04440067154 | G132: -1.701754799 | H132: 0.09376878779 | I132: * | J132: 1.018138498e-31 | K132: 0.374199152 | L132: -0.2110230729
B133: 113 | C133: 0.9603148821 | F133: 0.2309530378 | G133: -0.7357118516 | H133: 0.3043507385 | I133: * | J133: 3.746362284e-06 | K133: -0.4555124724 | L133: -0.2950201826
B134: 114 | C134: 0.2066223108 | F134: 0.6084338994 | G134: 0.2752395529 | H134: 0.3841135992 | I134: * | J134: 0.4244982834 | K134: 0.5804394229 | L134: -0.2047655827
B135: 115 | C135: 0.4833848903 | F135: 0.957266594 | G135: 1.719810947 | H135: 0.09091653601 | I135: * | J135: 2.172880277e-32 | K135: 0.4629232903 | L135: 0.1716585656
B136: 116 | C136: 0.08484870209 | F136: 0.5579134371 | G136: 0.1456811207 | H136: 0.3947312886 | I136: * | J136: 1.659469954 | K136: -0.5240714055 | L136: -0.08974252969
B137: 117 | C137: 0.4116142434 | F137: 0.2278139171 | G137: -0.7460655243 | H137: 0.3020250203 | I137: * | J137: 2.552923987e-06 | K137: 0.2657097435 | L137: -0.1159078244
B138: 118 | C138: 0.4389581999 | F138: 0.3090583675 | G138: -0.4985211937 | H138: 0.352325356 | I138: * | J138: 0.005650498288 | K138: -0.732905238 | L138: -0.1518011825
B139: 119 | C139: 0.6580200137 | F139: 0.3565252981 | G139: -0.3677621471 | H139: 0.3728559856 | I139: * | J139: 0.09592851976 | K139: 0.3304668333 | L139: -0.1216168011
B140: 120 | C140: 0.5778120126 | F140: 0.2114978254 | G140: -0.801234934 | H140: 0.2894052734 | I140: * | J140: 3.021438774e-07 | K140: 0.2158056131 | L140: -0.08271032281
B141: 121 | C141: 0.4314855912 | F141: 0.3556754179 | G141: -0.3700424843 | H141: 0.3725424629 | I141: * | J141: 0.09197734011 | K141: 0.8183212998 | L141: 0.1376242728
B142: 122 | C142: 0.19682517 | F142: 0.3398613368 | G142: -0.412841596 | H142: 0.3663531116 | I142: * | J142: 0.03980026875 | K142: 0.6033637103 | L142: 0.07723515593
B143: 123 | C143: 0.1027595801 | F143: 0.1917457525 | G143: -0.8714811297 | H143: 0.2728922602 | I143: * | J143: 1.601226229e-08 | K143: -0.5302177567 | L143: -0.2173346751
B144: 124 | C144: 0.8395683736 | F144: 0.3941328246 | G144: -0.2685634404 | H144: 0.3848114927 | I144: * | J144: 0.4648292857 | K144: 0.1711753855 | L144: 0.3053283431
B145: 125 | C145: 0.6208989766 | F145: 0.2879176857 | G145: -0.5594782492 | H145: 0.3411454037 | I145: * | J145: 0.001126854885 | K145: 0.1389366735 | L145: 0.1327594692
B146: 126 | C146: 0.8016644402 | F146: 0.2630984667 | G146: -0.6338220927 | H146: 0.3263438314 | I146: * | J146: 0.0001226484824 | K146: 0.9774692202 | L146: 0.1420793307
B147: 127 | C147: 0.3637140585 | F147: 0.5267263144 | G147: 0.06704312555 | H147: 0.3980467081 | I147: * | J147: 2.521120517 | K147: 0.4216039713 | L147: -0.1464470084
B148: 128 | C148: 0.5431258685 | F148: 0.2085851621 | G148: -0.8113402106 | H148: 0.2870568492 | I148: * | J148: 2.010423082e-07 | K148: 0.7463092547 | L148: 0.01772313127
B149: 129 | C149: =RAND() -> 0.1025358258 | F149: 0.5236037343 | G149: =_xlfn.NORM.INV(F149,0,1) -> 0.05920034923 | H149: =_xlfn.NORM.DIST(G149,0,1,FALSE) -> 0.3982438098 | I149: * | J149: 2.58430325 | K149: -0.8411703867 | L149: -0.2529590597
B150: 130 | C150: 0.5621841341 | F150: 0.758886698 | G150: 0.7027258673 | H150: 0.3116575296 | I150: * | J150: 1.226797751e-05 | K150: 0.3341789844 | L150: 0.07659899612
B151: 131 | C151: 0.327394752 | F151: 0.7294658646 | G151: 0.6111983572 | H151: 0.3309724138 | I151: * | J151: 0.0002480171091 | K151: 0.6232445692 | L151: -0.1344073786
B152: 132 | C152: 0.1476424547 | F152: 0.8957583751 | G152: 1.257747052 | H152: 0.1808834538 | I152: * | J152: 1.882928682e-17 | K152: 0.7718042023 | L152: 0.2328258402
B153: 133 | C153: 0.02223715113 | F153: 0.1372569795 | G153: -1.092726368 | H153: 0.2195963938 | I153: * | J153: 3.063035115e-13 | K153: 0.2991578691 | L153: -0.1953602123
B154: 134 | C154: 0.1298203591 | F154: 0.173200946 | G154: -0.9415913657 | H154: 0.2560876057 | I154: * | J154: 6.672979093e-10 | K154: -0.4644690392 | L154: -0.02885446056
B155: 135 | C155: 0.2483596553 | F155: 0.3334112905 | G155: -0.4305129054 | H155: 0.3636333446 | I155: * | J155: 0.02742059038 | K155: -0.09713731288 | L155: 0.02518361782
B156: 136 | C156: 0.329426765 | F156: 0.009314369021 | G156: -2.352878138 | H156: 0.02504812513 | I156: * | J156: 2.206241165e-60 | K156: -0.6501848792 | L156: -0.378847978
B157: 137 | C157: 0.4599434425 | F157: 0.673293708 | G157: 0.4490264392 | H157: 0.3606847738 | I157: * | J157: 0.01825081379 | K157: 0.1308325454 | L157: 0.01386272584
B158: 138 | C158: 0.6644777808 | F158: 0.7161155455 | G158: 0.5713404179 | H158: 0.3388650038 | I158: * | J158: 0.0008058009073 | K158: 0.2153626696 | L158: 0.1587793125
B159: 139 | C159: 0.3447854664 | F159: 0.7071376451 | G159: 0.5450418866 | H159: 0.3438760995 | I159: * | J159: 0.001678770694 | K159: -0.2734660456 | L159: 0.1852685426
B160: 140 | C160: 0.648982221 | F160: 0.08386284957 | G160: -1.379548514 | H160: 0.1540442185 | I160: * | J160: 6.125787769e-21 | K160: 0.1126985963 | L160: 0.1028727761
B161: 141 | C161: 0.9184896242 | F161: 0.8185347221 | G161: 0.9097951446 | H161: 0.2637371975 | I161: * | J161: 2.907107729e-09 | K161: -0.01766495127 | L161: -0.2609288883
B162: 142 | C162: 0.005972547143 | F162: 0.4820036635 | G162: -0.04512543612 | H162: 0.398536303 | I162: * | J162: 2.680934278 | K162: -0.2868052583 | L162: -0.293229047
B163: 143 | C163: 0.1040520176 | F163: 0.08776597639 | G163: -1.354641035 | H163: 0.159379887 | I163: * | J163: 3.361766158e-20 | K163: -0.5133177212 | L163: -0.07368198016
B164: 144 | C164: 0.6354773164 | F164: 0.2699494417 | G164: -0.6129659061 | H164: 0.3306145333 | I164: * | J164: 0.0002349572253 | K164: 0.5666734533 | L164: 0.2678637989
B165: 145 | C165: 0.7505823219 | F165: 0.813573751 | G165: 0.8911429273 | H165: 0.2682042688 | I165: * | J165: 6.732495542e-09 | K165: 0.2644982364 | L165: -0.318308704
B166: 146 | C166: 0.3568462851 | F166: 0.9620310161 | G166: 1.774757311 | H166: 0.08259383081 | I166: * | J166: 1.78760789e-34 | K166: -0.8430030493 | L166: -0.2598380561
B167: 147 | C167: 0.07319497147 | F167: 0.1576805465 | G167: -1.00403635 | H167: 0.2409940513 | I167: * | J167: 3.200426853e-11 | K167: -1.412788903 | L167: -0.3842607238
B168: 148 | C168: 0.6407460685 | F168: 0.1268880295 | G168: -1.141225588 | H168: 0.2080167957 | I168: * | J168: 2.040853757e-14 | K168: -0.3644019053 | L168: 0.1112113444
B169: 149 | C169: 0.5610492369 | F169: 0.2418885797 | G169: -0.7002404415 | H169: 0.3122013736 | I169: * | J169: 1.338542768e-05 | K169: -0.5230913124 | L169: -0.1243283072
B170: 150 | C170: 0.7832177223 | F170: 0.1478553625 | G170: -1.045675831 | H170: 0.2309261064 | I170: * | J170: 3.789164276e-12 | K170: 0.03071532453 | L170: -0.2668673603
B171: 151 | C171: 0.1529731481 | F171: 0.4999933562 | G171: -1.665346808e-05 | H171: 0.3989422803 | I171: * | J171: 2.820947898 | K171: 0.5515716536 | L171: -0.1317619086
B172: 152 | C172: 0.09765790817 | F172: 0.8555574316 | G172: 1.060570496 | H172: 0.2273320804 | I172: * | J172: 1.729529961e-12 | K172: 0.4637882741 | L172: 0.0395996301
B173: 153 | C173: 0.1500417634 | F173: 0.20864921 | G173: -0.8111171115 | H173: 0.2871088067 | I173: * | J173: 2.028698402e-07 | K173: -0.712090926 | L173: -0.2977196848
B174: 154 | C174: 0.8734133464 | F174: 0.1950901756 | G174: -0.8592903422 | H174: 0.2757864404 | I174: * | J174: 2.713546386e-08 | K174: 0.4314713131 | L174: -0.09892238104
B175: 155 | C175: 0.6314742374 | F175: 0.6080847791 | G175: 0.2743307678 | H175: 0.3842095323 | I175: * | J175: 0.4298318106 | K175: 1.560814357 | L175: 0.4345912265
B176: 156 | C176: 0.6095453281 | F176: 0.2861961356 | G176: -0.5645317903 | H176: 0.3401778859 | I176: * | J176: 0.0009776776074 | K176: 1.021828121 | L176: 0.1530415989
B177: 157 | C177: 0.5137092391 | F177: 0.3940493376 | G177: -0.2687804024 | H177: 0.3847890621 | I177: * | J177: 0.4634764757 | K177: 0.1435871589 | L177: 0.2313174153
B178: 158 | C178: 0.8124604811 | F178: 0.6805890557 | G178: 0.4693466318 | H178: 0.3573349636 | I178: * | J178: 0.01144635945 | K178: -0.8210576666 | L178: -0.1842664796
B179: 159 | C179: 0.998436446 | F179: 0.330943301 | G179: -0.4373099201 | H179: 0.3625624599 | I179: * | J179: 0.02366102297 | K179: 0.6278948254 | L179: 0.037857623
B180: 160 | C180: 0.9604979266 | F180: 0.9355446089 | G180: 1.518411151 | H180: 0.1259683309 | I180: * | J180: 2.617945049e-25 | K180: 1.242112956 | L180: 0.3580324986
B181: 161 | C181: 0.327554803 | F181: 0.8612179261 | G181: 1.085807545 | H181: 0.2212576222 | I181: * | J181: 4.464818575e-13 | K181: -0.884918947 | L181: 0.09731074045
B182: 162 | C182: 0.3969564024 | F182: 0.9772581062 | G182: 2.000152607 | H182: 0.05397448963 | I182: * | J182: 1.033520275e-43 | K182: -0.8018017107 | L182: -0.3393821279
B183: 163 | C183: 0.3456457869 | F183: 0.4867300676 | G183: -0.03326892387 | H183: 0.3987215626 | I183: * | J183: 2.743960836 | K183: 0.8940073989 | L183: 0.4300928622
B184: 164 | C184: 0.73380589 | F184: 0.3511651259 | G184: -0.3821767693 | H184: 0.3708461195 | I184: * | J184: 0.07321140198 | K184: 0.6204490841 | L184: 0.06052490946
B185: 165 | C185: 0.4279907786 | F185: 0.4628808563 | G185: -0.09317855273 | H185: 0.3972141772 | I185: * | J185: 2.270538214 | K185: -0.3043743214 | L185: 0.0115707617
B186: 166 | C186: 0.03370418873 | F186: 0.7963153217 | G186: 0.8285318649 | H186: 0.2830388649 | I186: * | J186: 9.935631455e-08 | K186: -1.570308293 | L186: -0.5685682274
B187: 167 | C187: 0.2009404791 | F187: 0.5086775305 | G187: 0.02175305872 | H187: 0.3988479027 | I187: * | J187: 2.787773031 | K187: 0.6786496402 | L187: 0.1870612924
B188: 168 | C188: 0.1422126867 | F188: 0.8855437968 | G188: 1.20316518 | H188: 0.1934489243 | I188: * | J188: 5.410130454e-16 | K188: 1.296603267 | L188: 0.4351608301
B189: 169 | C189: 0.5085793974 | F189: 0.1174535525 | G189: -1.187812966 | H189: 0.1970321523 | I189: * | J189: =_xlfn.NORM.DIST(G189,0,1/SQRT(50),FALSE) -> 1.354399682e-15 | K189: 0.0202149868 | L189: 0.2240400401
B190: 170 | C190: 0.3910497524 | F190: 0.9692834098 | G190: 1.870364772 | H190: 0.06938596092 | I190: * | J190: 2.940844993e-38 | K190: 0.09802746346 | L190: 0.06492782607
B191: 171 | C191: 0.02693213496 | F191: 0.2432351629 | G191: -0.6959337409 | H191: 0.3131414044 | I191: * | J191: 1.555666609e-05 | K191: -0.1252110519 | L191: -0.1191091038
B192: 172 | C192: 0.3431841807 | F192: 0.6412639867 | G192: 0.3618394278 | H192: 0.3736624538 | I192: * | J192: 0.1068722248 | K192: -1.286307691 | L192: -0.2309305295
B193: 173 | C193: 0.0805687474 | F193: 0.9283013487 | G193: 1.463256147 | H193: 0.13676409 | I193: * | J193: 1.597701997e-23 | K193: 0.3214373744 | L193: 0.2513903447
B194: 174 | C194: 0.1619160309 | F194: 0.1990991217 | G194: -0.8448434645 | H194: 0.2792022713 | I194: * | J194: 5.021565444e-08 | K194: -0.1525917926 | L194: -0.2881417399
B195: 175 | C195: 0.4966629402 | F195: 0.7038164998 | G195: 0.5354090979 | H195: 0.345670253 | I195: * | J195: 0.002177670429 | K195: 0.3334731982 | L195: 0.01854798033
B196: 176 | C196: 0.6206619684 | F196: 0.5558286744 | G196: 0.1404016538 | H196: 0.3950294952 | I196: * | J196: 1.723328095 | K196: -0.2012229454 | L196: 0.06121640502
B197: 177 | C197: 0.9794821334 | F197: 0.1418568862 | G197: -1.072013937 | H197: 0.2245750176 | I197: * | J197: 9.396451884e-13 | K197: 0.5595855142 | L197: 0.290369873
B198: 178 | C198: 0.464731783 | F198: 0.171836848 | G198: -0.946931479 | H198: 0.2547995437 | I198: * | J198: 5.185899202e-10 | K198: -0.271595908 | L198: 0.04134083315
B199: 179 | C199: 0.7986820184 | F199: 0.2195144509 | G199: -0.7738341041 | H199: 0.2957182478 | I199: * | J199: 8.887876036e-07 | K199: -0.349831859 | L199: 0.0489506156
B200: 180 | C200: 0.5694009476 | F200: 0.3135245689 | G200: -0.4858843883 | H200: 0.3545236035 | I200: * | J200: 0.007711689383 | K200: -0.9668669165 | L200: -0.5399594095
B201: 181 | C201: 0.9655870545 | F201: 0.2177573881 | G201: -0.7797895197 | H201: 0.2943533447 | I201: * | J201: 7.052458248e-07 | K201: 0.7106845046 | L201: 0.2213536023
B202: 182 | C202: 0.08248636788 | F202: 0.8151927956 | G202: 0.8971958697 | H202: 0.2667565731 | I202: * | J202: 5.136274909e-09 | K202: 0.3608107093 | L202: 0.124346813
B203: 183 | C203: 0.5716059883 | F203: 0.1271041522 | G203: -1.140187235 | H203: 0.2082633282 | I203: * | J203: 2.165369441e-14 | K203: 0.3784178614 | L203: 0.1154489186
B204: 184 | C204: 0.1859892853 | F204: 0.2901303042 | G204: -0.5530040915 | H204: 0.3423761489 | I204: * | J204: 0.001349170714 | K204: 0.2230154543 | L204: -0.09479283245
B205: 185 | C205: 0.2126889567 | F205: 0.1115862981 | G205: -1.218135209 | H205: 0.189974538 | I205: * | J205: 2.186057718e-16 | K205: -0.6629280147 | L205: 0.1329519332
B206: 186 | C206: 0.3109121632 | F206: 0.7792799871 | G206: 0.7697637848 | H206: 0.296648698 | I206: * | J206: 1.039953934e-06 | K206: -0.5994346175 | L206: -0.07433617739
B207: 187 | C207: 0.4810595864 | F207: 0.9253784973 | G207: 1.442210478 | H207: 0.141010057 | I207: * | J207: 7.368790012e-23 | K207: 0.5458741054 | L207: 0.1356042612
B208: 188 | C208: 0.566977754 | F208: 0.3012123825 | G208: -0.5209167521 | H208: 0.3483262757 | I208: * | J208: 0.003193034384 | K208: 0.7698513136 | L208: 0.1013570297
B209: 189 | C209: 0.08607834444 | F209: 0.3812229716 | G209: -0.3022703971 | H209: 0.3811271511 | I209: * | J209: 0.2873334602 | K209: -0.548142561 | L209: -0.06093884697
B210: 190 | C210: 0.4236660878 | F210: 0.8572451252 | G210: 1.068023859 | H210: 0.2255358811 | I210: * | J210: 1.163252545e-12 | K210: -0.7380831342 | L210: -0.04666758859
B211: 191 | C211: 0.7629861336 | F211: 0.7387819906 | G211: 0.6395948695 | H211: 0.3251465316 | I211: * | J211: 0.0001020582368 | K211: 0.1284596265 | L211: -0.1355219259
B212: 192 | C212: 0.6332154118 | F212: 0.6216283725 | G212: 0.3097602851 | H212: 0.3802546001 | I212: * | J212: 0.2562215226 | K212: -0.9192518371 | L212: -0.0905093808
B213: 193 | C213: =RAND() -> 0.9335104959 | F213: 0.9384597753 | G213: =_xlfn.NORM.INV(F213,0,1) -> 1.541971788 | H213: =_xlfn.NORM.DIST(G213,0,1,FALSE) -> 0.1215077744 | I213: * | J213: 4.316135719e-26 | K213: 1.013499127 | L213: 0.4506110498
B214: 194 | C214: 0.436224397 | F214: 0.5664674502 | G214: 0.1673875768 | H214: 0.3933923443 | I214: * | J214: 1.400190009 | K214: 0.3527295856 | L214: 0.04732845789
B215: 195 | C215: 0.8815555878 | F215: 0.06779000751 | G215: -1.492454583 | H215: 0.1309880902 | I215: * | J215: 1.847065461e-24 | K215: -1.324671605 | L215: -0.3168043415
B216: 196 | C216: 0.476226384 | F216: 0.9660016078 | G216: 1.825028131 | H216: 0.07544869635 | I216: * | J216: 1.938557937e-36 | K216: -0.8575010811 | L216: -0.2396176476
... 4284 more rows

Sheet 5000個
G1: 7 | H1: 8 | J1: 10 | O1: 15 | T1: 20 | AE1: 31 | AF1: 32
I18: 0.4
K19: 10個の平均
B20: No | C20: 乱数 | F20: 対象列 | I20: =COUNTA(I21:I10020) -> 10000 | K20: 1000個の標本 | P20: =FREQUENCY(L21:L60,N21:N47) -> 0
B21: 1 | C21: =RAND() -> 0.937018173 | F21: 0.08414646168 | G21: =_xlfn.NORM.INV(F21,0,1) -> -1.377709739 | H21: =_xlfn.NORM.DIST(G21,0,1,FALSE) -> 0.1544352143 | I21: * | J21: =_xlfn.NORM.DIST(G21,0,1/SQRT(5000),FALSE) -> 0 | K21: -3.065439775 | L21: -0.2515009969 | N21: -2 | O21: =P21/$I$18 -> 0 | P21: 0
B22: 2 | C22: 0.4592935846 | F22: 0.9525292577 | G22: 1.669888204 | H22: 0.09894394109 | I22: * | J22: 0 | K22: 7.985819291 | L22: 0.06303508937 | N22: -1.5 | O22: 0 | P22: 0
B23: 3 | C23: 0.9510317801 | F23: 0.7103713306 | G23: 0.5544698432 | H23: 0.3420983751 | I23: * | J23: 0 | N23: -1.3 | O23: 0 | P23: 0
B24: 4 | C24: 0.0805969309 | F24: 0.2811747854 | G24: -0.5793551342 | H24: 0.33730601 | I24: * | J24: 0 | N24: -1 | O24: 0 | P24: 0
B25: 5 | C25: 0.3436612571 | F25: 0.5406016825 | G25: 0.1019496565 | H25: 0.3968744086 | I25: * | J25: 1.464007948e-10 | N25: -0.9 | O25: 0 | P25: 0
B26: 6 | C26: 0.5315784693 | F26: 0.9232885681 | G26: 1.427545001 | H26: 0.144008796 | I26: * | J26: 0 | N26: -0.8 | O26: 0 | P26: 0
B27: 7 | C27: 0.2226313833 | F27: 0.1260682825 | G27: -1.145175259 | H27: 0.2070796618 | I27: * | J27: 0 | N27: -0.7 | O27: 0 | P27: 0
B28: 8 | C28: 0.9557532414 | F28: 0.6554128914 | G28: 0.3999759682 | H28: 0.3682736803 | I28: * | J28: 5.668595514e-173 | N28: -0.6 | O28: 0 | P28: 0
B29: 9 | C29: 0.4610080901 | F29: 0.2504946207 | G29: -0.6729340614 | H29: 0.3181098045 | I29: * | J29: 0 | N29: -0.5 | O29: 0 | P29: 0
B30: 10 | C30: 0.9802396852 | F30: 0.6557666826 | G30: 0.4009368277 | H30: 0.3681320023 | I30: * | J30: 8.278110698e-174 | N30: -0.4 | O30: 0 | P30: 0
B31: 11 | C31: 0.06880956836 | F31: 0.3504089128 | G31: -0.3842167218 | H31: 0.3705563412 | I31: * | J31: 1.483589694e-159 | N31: -0.3 | O31: 2.5 | P31: 1
B32: 12 | C32: 0.4023860432 | F32: 0.0532825321 | G32: -1.613826503 | H32: 0.1084835724 | I32: * | J32: 0 | N32: -0.2 | O32: 0 | P32: 0
B33: 13 | C33: 0.7408705729 | F33: 0.528985647 | G33: 0.07272028515 | H33: 0.3978888225 | I33: * | J33: 5.114010079e-05 | N33: -0.1 | O33: 0 | P33: 0
B34: 14 | C34: 0.1483137214 | F34: 0.7924681484 | G34: 0.8150150363 | H34: 0.2862003217 | I34: * | J34: 0 | N34: 0 | O34: 2.5 | P34: 1
B35: 15 | C35: 0.1927444442 | F35: 0.7008925086 | G35: 0.5269691919 | H35: 0.3472234362 | I35: * | J35: 8.814939674e-301 | N35: 0.1 | O35: 0 | P35: 0
B36: 16 | C36: 0.5290618487 | F36: 0.5457883608 | G36: 0.1150275587 | H36: 0.3963117211 | I36: * | J36: 1.21520905e-13 | N36: 0.2 | O36: 0 | P36: 0
B37: 17 | C37: 0.9386999885 | F37: 0.443906745 | G37: -0.1410714597 | H37: 0.3949922591 | I37: * | J37: 6.966083626e-21 | N37: 0.3 | O37: 0 | P37: 0
B38: 18 | C38: 0.4569158197 | F38: 0.02018385062 | G38: -2.049966487 | H38: 0.04879537075 | I38: * | J38: 0 | N38: 0.4 | O38: 0 | P38: 0
B39: 19 | C39: 0.9726563193 | F39: 0.5130628404 | G39: 0.03274953828 | H39: 0.3987283985 | I39: * | J39: 1.931558941 | N39: 0.5 | O39: 0 | P39: 0
B40: 20 | C40: 0.06039872604 | F40: 0.2025775997 | G40: -0.832449628 | H40: 0.2821194476 | I40: * | J40: 0 | N40: 0.6 | O40: 0 | P40: 0
B41: 21 | C41: 0.3096186691 | F41: 0.3648322819 | G41: -0.3455717709 | H41: 0.3758186906 | I41: * | J41: 6.193577768e-129 | N41: 0.7 | O41: 0 | P41: 0
B42: 22 | C42: 0.3044045927 | F42: 0.3738560663 | G42: -0.32165756 | H42: 0.378829014 | I42: * | J42: 1.306874708e-111 | N42: 0.8 | O42: 0 | P42: 0
B43: 23 | C43: 0.9764461743 | F43: 0.01538006138 | G43: -2.160162103 | H43: 0.03869330508 | I43: * | J43: 0 | N43: 0.9 | O43: 0 | P43: 0
B44: 24 | C44: 0.3463417796 | F44: 0.6108057753 | G44: 0.2814197789 | H44: 0.3834534379 | I44: * | J44: 2.905661373e-85 | N44: 1 | O44: 0 | P44: 0
B45: 25 | C45: 0.7938799895 | F45: 0.9840717226 | G45: 2.146205903 | H45: 0.03987369596 | I45: * | J45: 0 | N45: 1.3 | O45: 0 | P45: 0
B46: 26 | C46: 0.4676018981 | F46: 0.6069329773 | G46: 0.2713341474 | H46: 0.3845237809 | I46: * | J46: 3.281601241e-79 | N46: 1.5 | O46: 0 | P46: 0
B47: 27 | C47: 0.3731466283 | F47: 0.4317083458 | G47: -0.1720265049 | H47: 0.3930827646 | I47: * | J47: 2.089657011e-31 | N47: 2 | O47: =P47/I18 -> 0 | P47: 0
B48: 28 | C48: 0.1511268868 | F48: 0.7681588699 | G48: 0.7327969853 | H48: 0.3050028238 | I48: * | J48: 0 | P48: =SUM(P22:P47) -> 2
B49: 29 | C49: 0.3895483127 | F49: 0.6602686536 | G49: 0.4131964447 | H49: 0.3662994231 | I49: * | J49: 1.205700017e-184
B50: 30 | C50: 0.924995957 | F50: 0.7513724551 | G50: 0.6788149976 | H50: 0.3168478991 | I50: * | J50: 0
B51: 31 | C51: 0.5492831988 | F51: 0.180174216 | G51: -0.9147013565 | H51: 0.2625594309 | I51: * | J51: 0
B52: 32 | C52: 0.2565030965 | F52: 0.65804111 | G52: 0.407122825 | H52: 0.3672130688 | I52: * | J52: 3.095356346e-179
B53: 33 | C53: 0.7815544257 | F53: 0.3344607014 | G53: -0.4276287889 | H53: 0.3640836159 | I53: * | J53: =_xlfn.NORM.DIST(G53,0,1/SQRT(5000),FALSE) -> 8.04904767e-198
B54: 34 | C54: 0.8496641959 | F54: 0.1846976063 | G54: -0.8976067997 | H54: 0.2666582197 | I54: * | J54: 0
B55: 35 | C55: 0.5006357985 | F55: 0.8229505879 | G55: 0.926668217 | H55: 0.2596825059 | I55: * | J55: 0
B56: 36 | C56: 0.385004449 | F56: 0.4037501771 | G56: -0.2436519964 | H56: 0.3872744435 | I56: * | J56: 9.868675155e-64
B57: 37 | C57: 0.2110269454 | F57: 0.7134205806 | G57: 0.5634054325 | H57: 0.3403940459 | I57: * | J57: 0
B58: 38 | C58: 0.3650417376 | F58: 0.8925456927 | G58: 1.240180567 | H58: 0.1848958746 | I58: * | J58: 0
B59: 39 | C59: 0.4519149556 | F59: 0.4228891657 | G59: -0.1945077456 | H59: 0.3914665669 | I59: * | J59: 2.36293387e-40
B60: 40 | C60: 0.3105704146 | F60: 0.1130110849 | G60: -1.210669308 | H60: 0.1917047943 | I60: * | J60: 0
B61: 41 | C61: 0.9099465092 | F61: 0.1883148719 | G61: -0.8841231386 | H61: 0.2698806661 | I61: * | J61: 0
B62: 42 | C62: 0.8423371577 | F62: 0.8765288196 | G62: 1.157808091 | H62: 0.2040891601 | I62: * | J62: 0
B63: 43 | C63: 0.9518798645 | F63: 0.596248362 | G63: 0.2436482243 | H63: 0.3872747995 | I63: * | J63: 9.914129457e-64
B64: 44 | C64: 0.9692535573 | F64: 0.3705271273 | G64: -0.3304575608 | H64: 0.3777435953 | I64: * | J64: 7.684461953e-118
B65: 45 | C65: 0.9156050655 | F65: 0.9416696631 | G65: 1.568945349 | H65: 0.1165152296 | I65: * | J65: 0
B66: 46 | C66: 0.3981692142 | F66: 0.8601531098 | G66: 1.081007493 | H66: 0.22241125 | I66: * | J66: 0
B67: 47 | C67: 0.0669634996 | F67: 0.8628354147 | G67: 1.09314721 | H67: 0.2194954128 | I67: * | J67: 0
B68: 48 | C68: 0.6748580728 | F68: 0.3633115057 | G68: -0.3496211828 | H68: 0.3752900749 | I68: * | J68: 5.438273593e-132
B69: 49 | C69: 0.2451643792 | F69: 0.2884237836 | G69: -0.5579953387 | H69: 0.3414281791 | I69: * | J69: 0
B70: 50 | C70: 0.3372976152 | F70: 0.1672992381 | G70: -0.9648928636 | H70: 0.2504621038 | I70: * | J70: 0
B71: 51 | C71: 0.7646177596 | F71: 0.2541602843 | G71: -0.6614549932 | H71: 0.3205554883 | I71: * | J71: 0
B72: 52 | C72: 0.7500289544 | F72: 0.2768886803 | G72: -0.5921093586 | H72: 0.3347955341 | I72: * | J72: 0
B73: 53 | C73: 0.002774503501 | F73: 0.9823724464 | G73: 2.105416058 | H73: 0.04348553513 | I73: * | J73: 0
B74: 54 | C74: 0.4155932725 | F74: 0.7490017434 | G74: 0.6713516895 | H74: 0.3184483197 | I74: * | J74: 0
B75: 55 | C75: 0.7972091493 | F75: 0.5226129014 | G75: 0.05671252429 | H75: 0.3983012349 | I75: * | J75: 0.009085114565
B76: 56 | C76: 0.531104131 | F76: 0.411623044 | G76: -0.22337188 | H76: 0.3891127889 | I76: * | J76: 1.894919024e-53
B77: 57 | C77: 0.4356493609 | F77: 0.03326015395 | G77: -1.834901348 | H77: 0.07409775738 | I77: * | J77: 0
B78: 58 | C78: 0.3650644066 | F78: 0.6138677509 | G78: 0.2894141104 | H78: 0.3825795028 | I78: * | J78: =_xlfn.NORM.DIST(G78,0,1/SQRT(5000),FALSE) -> 3.225210411e-90
B79: 59 | C79: 0.112610314 | F79: 0.6913853275 | G79: 0.4997809227 | H79: 0.3521038852 | I79: * | J79: 1.795361563e-270
B80: 60 | C80: 0.2436860754 | F80: 0.1003181366 | G80: -1.279740905 | H80: 0.1759057523 | I80: * | J80: 0
B81: 61 | C81: 0.7542824906 | F81: 0.04291408788 | G81: -1.717826997 | H81: 0.09122709528 | I81: * | J81: 0
B82: 62 | C82: 0.1622396712 | F82: 0.2202922967 | G82: -0.7712064132 | H82: 0.2963191491 | I82: * | J82: 0
B83: 63 | C83: 0.8417726586 | F83: 0.4339756694 | G83: -0.1662612764 | H83: 0.3934662674 | I83: * | J83: 2.73900768e-29
B84: 64 | C84: 0.3988771558 | F84: 0.5228037004 | G84: 0.05719156264 | H84: 0.3982903685 | I84: * | J84: 0.007926616292
B85: 65 | C85: =RAND() -> 0.1886063117 | F85: 0.8328638125 | G85: =_xlfn.NORM.INV(F85,0,1) -> 0.9655440672 | H85: =_xlfn.NORM.DIST(G85,0,1,FALSE) -> 0.2503047243 | I85: * | J85: 0
B86: 66 | C86: 0.3578539517 | F86: 0.9120651916 | G86: 1.353582488 | H86: 0.1596085044 | I86: * | J86: 0
B87: 67 | C87: 0.5756078549 | F87: 0.878390567 | G87: 1.166978961 | H87: 0.2019250923 | I87: * | J87: 0
B88: 68 | C88: 0.04953142699 | F88: 0.7899651369 | G88: 0.8063002851 | H88: 0.2882293943 | I88: * | J88: 0
B89: 69 | C89: 0.3539137708 | F89: 0.3784542801 | G89: -0.3095429312 | H89: 0.3802801936 | I89: * | J89: 2.621789341e-103
B90: 70 | C90: 0.4256594415 | F90: 0.8410670324 | G90: 0.998852942 | H90: 0.2422482788 | I90: * | J90: 0
B91: 71 | C91: 0.5277398333 | F91: 0.9192316799 | G91: 1.399922124 | H91: 0.1497437903 | I91: * | J91: 0
B92: 72 | C92: 0.06957954363 | F92: 0.0003101150374 | G92: -3.422609952 | H92: 0.001140751554 | I92: * | J92: 0
B93: 73 | C93: 0.2898340223 | F93: 0.832371266 | G93: 0.9635781456 | H93: 0.2507798154 | I93: * | J93: 0
B94: 74 | C94: 0.5061380795 | F94: 0.7184603121 | G94: 0.5782736584 | H94: 0.3375172209 | I94: * | J94: 0
B95: 75 | C95: 0.7037031301 | F95: 0.7909511496 | G95: 0.8097259489 | H95: 0.2874326838 | I95: * | J95: 0
B96: 76 | C96: 0.4160066177 | F96: 0.8612647664 | G96: 1.086019269 | H96: 0.2212067576 | I96: * | J96: 0
B97: 77 | C97: 0.3404160455 | F97: 0.9136251501 | G97: 1.363421529 | H97: 0.1574893147 | I97: * | J97: 0
B98: 78 | C98: 0.8444484468 | F98: 0.1600712703 | G98: -0.9941650082 | H98: 0.2433826057 | I98: * | J98: 0
B99: 79 | C99: 0.6048509844 | F99: 0.1016471805 | G99: -1.272221696 | H99: 0.1776015795 | I99: * | J99: 0
B100: 80 | C100: 0.4072012877 | F100: 0.7716561525 | G100: 0.7443120797 | H100: 0.3024199184 | I100: * | J100: 0
B101: 81 | C101: 0.4346036858 | F101: 0.6302320546 | G101: 0.332468011 | H101: 0.3774919548 | I101: * | J101: 2.74515701e-119
B102: 82 | C102: 0.3904429219 | F102: 0.704122031 | G102: 0.5362931876 | H102: 0.3455065338 | I102: * | J102: 0
B103: 83 | C103: 0.2477124941 | F103: 0.759291561 | G103: 0.7040255247 | H103: 0.3113727589 | I103: * | J103: 0
B104: 84 | C104: 0.6320969572 | F104: 0.4176838591 | G104: -0.2078223022 | H104: 0.3904194567 | I104: * | J104: 3.608525021e-46
B105: 85 | C105: 0.8104253352 | F105: 0.77328842 | G105: 0.7497203309 | H105: 0.3012005911 | I105: * | J105: 0
B106: 86 | C106: 0.5258336815 | F106: 0.1317507007 | G106: -1.118153591 | H106: 0.2135098611 | I106: * | J106: 0
B107: 87 | C107: 0.6602973489 | F107: 0.4073603554 | G107: -0.2343404174 | H107: 0.3881372562 | I107: * | J107: 6.710010593e-59
B108: 88 | C108: 0.5861778055 | F108: 0.7734938898 | G108: 0.750402675 | H108: 0.3010464761 | I108: * | J108: 0
B109: 89 | C109: 0.239579796 | F109: 0.9980788037 | G109: 2.890819077 | H109: 0.006112887687 | I109: * | J109: 0
B110: 90 | C110: 0.2601328387 | F110: 0.351131139 | G110: -0.3822684178 | H110: 0.3708331289 | I110: * | J110: 6.204313212e-158
B111: 91 | C111: 0.2032116851 | F111: 0.2890268251 | G111: -0.5562299752 | H111: 0.3417641411 | I111: * | J111: 0
B112: 92 | C112: 0.08861684284 | F112: 0.01478479733 | G112: -2.175808342 | H112: 0.03740280775 | I112: * | J112: 0
B113: 93 | C113: 0.5121963905 | F113: 0.9053874891 | G113: 1.312875149 | H113: 0.1685101806 | I113: * | J113: 0
B114: 94 | C114: 0.1772725914 | F114: 0.4829585046 | G114: -0.0427296936 | H114: 0.3985782469 | I114: * | J114: 0.2937845142
B115: 95 | C115: 0.1830031021 | F115: 0.8480027275 | G115: 1.027904941 | H115: 0.2352202858 | I115: * | J115: 0
B116: 96 | C116: 0.3906235979 | F116: 0.255972978 | G116: -0.6558106612 | H116: 0.3217493847 | I116: * | J116: 0
B117: 97 | C117: 0.507149518 | F117: 0.5838074477 | G117: 0.2116435837 | H117: 0.3901066809 | I117: * | J117: 6.56154558e-48
B118: 98 | C118: 0.647559347 | F118: 0.1444244936 | G118: -1.060650008 | H118: 0.22731291 | I118: * | J118: 0
B119: 99 | C119: 0.8742125631 | F119: 0.07128055207 | G119: -1.466320093 | H119: 0.1361516637 | I119: * | J119: 0
B120: 100 | C120: 0.9109957021 | F120: 0.1189034559 | G120: -1.18048616 | H120: 0.1987490471 | I120: * | J120: 0
B121: 101 | C121: 0.9872771306 | F121: 0.4511595409 | G121: -0.1227323047 | H121: 0.3959488897 | I121: * | J121: 1.246560206e-15
B122: 102 | C122: 0.569987395 | F122: 0.6368495049 | G122: 0.3500502448 | H122: 0.3752337476 | I122: * | J122: 2.567558979e-132
B123: 103 | C123: 0.4296731678 | F123: 0.3277216389 | G123: -0.44621316 | H123: 0.3611392629 | I123: * | J123: 1.877596923e-215
B124: 104 | C124: 0.5790158722 | F124: 0.4737459844 | G124: -0.06585663139 | H124: 0.3980780923 | I124: * | J124: 0.0005513825638
B125: 105 | C125: 0.6654507017 | F125: 0.9734815502 | G125: 1.93462036 | H125: 0.06140177704 | I125: * | J125: 0
B126: 106 | C126: 0.6895575122 | F126: 0.9389937023 | G126: 1.546380937 | H126: 0.1206832983 | I126: * | J126: 0
B127: 107 | C127: 0.2972379929 | F127: 0.07342961179 | G127: -1.450715048 | H127: 0.1392860415 | I127: * | J127: 0
B128: 108 | C128: 0.4766163167 | F128: 0.992039631 | G128: 2.410727517 | H128: 0.02182406294 | I128: * | J128: 0
B129: 109 | C129: 0.2828860903 | F129: 0.7299880226 | G129: 0.612776767 | H129: 0.3306528597 | I129: * | J129: 0
B130: 110 | C130: 0.9206869764 | F130: 0.4415976654 | G130: -0.1469197907 | H130: 0.3946597626 | I130: * | J130: 1.033517341e-22
B131: 111 | C131: 0.4373315069 | F131: 0.4360541338 | G131: -0.1609811241 | H131: 0.3938063475 | I131: * | J131: 2.058854569e-27
B132: 112 | C132: 0.1670836814 | F132: 0.04440067154 | G132: -1.701754799 | H132: 0.09376878779 | I132: * | J132: 0
B133: 113 | C133: 0.2778616458 | F133: 0.2309530378 | G133: -0.7357118516 | H133: 0.3043507385 | I133: * | J133: 0
B134: 114 | C134: 0.7685071053 | F134: 0.6084338994 | G134: 0.2752395529 | H134: 0.3841135992 | I134: * | J134: 1.579363527e-81
B135: 115 | C135: 0.004910907529 | F135: 0.957266594 | G135: 1.719810947 | H135: 0.09091653601 | I135: * | J135: 0
B136: 116 | C136: 0.131030852 | F136: 0.5579134371 | G136: 0.1456811207 | H136: 0.3947312886 | I136: * | J136: 2.557570502e-22
B137: 117 | C137: 0.4881297328 | F137: 0.2278139171 | G137: -0.7460655243 | H137: 0.3020250203 | I137: * | J137: 0
B138: 118 | C138: 0.1267440979 | F138: 0.3090583675 | G138: -0.4985211937 | H138: 0.352325356 | I138: * | J138: 4.164501613e-269
B139: 119 | C139: 0.8914775778 | F139: 0.3565252981 | G139: -0.3677621471 | H139: 0.3728559856 | I139: * | J139: 4.033319035e-146
B140: 120 | C140: 0.6822294416 | F140: 0.2114978254 | G140: -0.801234934 | H140: 0.2894052734 | I140: * | J140: 0
B141: 121 | C141: 0.1975960034 | F141: 0.3556754179 | G141: -0.3700424843 | H141: 0.3725424629 | I141: * | J141: 6.011361945e-148
B142: 122 | C142: 0.2591818782 | F142: 0.3398613368 | G142: -0.412841596 | H142: 0.3663531116 | I142: * | J142: =_xlfn.NORM.DIST(G142,0,1/SQRT(5000),FALSE) -> 2.508931088e-184
B143: 123 | C143: 0.0131082746 | F143: 0.1917457525 | G143: -0.8714811297 | H143: 0.2728922602 | I143: * | J143: 0
B144: 124 | C144: 0.8703853198 | F144: 0.3941328246 | G144: -0.2685634404 | H144: 0.3848114927 | I144: * | J144: 1.381136131e-77
B145: 125 | C145: 0.3491111919 | F145: 0.2879176857 | G145: -0.5594782492 | H145: 0.3411454037 | I145: * | J145: 0
B146: 126 | C146: 0.8885769605 | F146: 0.2630984667 | G146: -0.6338220927 | H146: 0.3263438314 | I146: * | J146: 0
B147: 127 | C147: 0.9336828152 | F147: 0.5267263144 | G147: 0.06704312555 | H147: 0.3980467081 | I147: * | J147: 0.0003717482631
B148: 128 | C148: 0.9698344604 | F148: 0.2085851621 | G148: -0.8113402106 | H148: 0.2870568492 | I148: * | J148: 0
B149: 129 | C149: =RAND() -> 0.6088264356 | F149: 0.5236037343 | G149: =_xlfn.NORM.INV(F149,0,1) -> 0.05920034923 | H149: =_xlfn.NORM.DIST(G149,0,1,FALSE) -> 0.3982438098 | I149: * | J149: 0.004418101017
B150: 130 | C150: 0.9217505173 | F150: 0.758886698 | G150: 0.7027258673 | H150: 0.3116575296 | I150: * | J150: 0
B151: 131 | C151: 0.2620220862 | F151: 0.7294658646 | G151: 0.6111983572 | H151: 0.3309724138 | I151: * | J151: 0
B152: 132 | C152: 0.5669475846 | F152: 0.8957583751 | G152: 1.257747052 | H152: 0.1808834538 | I152: * | J152: 0
B153: 133 | C153: 0.9816584064 | F153: 0.1372569795 | G153: -1.092726368 | H153: 0.2195963938 | I153: * | J153: 0
B154: 134 | C154: 0.4060467511 | F154: 0.173200946 | G154: -0.9415913657 | H154: 0.2560876057 | I154: * | J154: 0
B155: 135 | C155: 0.950266259 | F155: 0.3334112905 | G155: -0.4305129054 | H155: 0.3636333446 | I155: * | J155: 1.654125198e-200
B156: 136 | C156: 0.8218043822 | F156: 0.009314369021 | G156: -2.352878138 | H156: 0.02504812513 | I156: * | J156: 0
B157: 137 | C157: 0.06637808896 | F157: 0.673293708 | G157: 0.4490264392 | H157: 0.3606847738 | I157: * | J157: 3.460283409e-218
B158: 138 | C158: 0.365624519 | F158: 0.7161155455 | G158: 0.5713404179 | H158: 0.3388650038 | I158: * | J158: 0
B159: 139 | C159: 0.9120456638 | F159: 0.7071376451 | G159: 0.5450418866 | H159: 0.3438760995 | I159: * | J159: 0
B160: 140 | C160: 0.8872152359 | F160: 0.08386284957 | G160: -1.379548514 | H160: 0.1540442185 | I160: * | J160: 0
B161: 141 | C161: 0.430129759 | F161: 0.8185347221 | G161: 0.9097951446 | H161: 0.2637371975 | I161: * | J161: 0
B162: 142 | C162: 0.8737627076 | F162: 0.4820036635 | G162: -0.04512543612 | H162: 0.398536303 | I162: * | J162: 0.1735821333
B163: 143 | C163: 0.5296318993 | F163: 0.08776597639 | G163: -1.354641035 | H163: 0.159379887 | I163: * | J163: 0
B164: 144 | C164: 0.9108871439 | F164: 0.2699494417 | G164: -0.6129659061 | H164: 0.3306145333 | I164: * | J164: 0
B165: 145 | C165: 0.2349887648 | F165: 0.813573751 | G165: 0.8911429273 | H165: 0.2682042688 | I165: * | J165: 0
B166: 146 | C166: 0.7514295474 | F166: 0.9620310161 | G166: 1.774757311 | H166: 0.08259383081 | I166: * | J166: 0
B167: 147 | C167: 0.8379303768 | F167: 0.1576805465 | G167: -1.00403635 | H167: 0.2409940513 | I167: * | J167: 0
B168: 148 | C168: 0.1586417886 | F168: 0.1268880295 | G168: -1.141225588 | H168: 0.2080167957 | I168: * | J168: 0
B169: 149 | C169: 0.1647172051 | F169: 0.2418885797 | G169: -0.7002404415 | H169: 0.3122013736 | I169: * | J169: 0
B170: 150 | C170: 0.3228354614 | F170: 0.1478553625 | G170: -1.045675831 | H170: 0.2309261064 | I170: * | J170: 0
B171: 151 | C171: 0.8220714192 | F171: 0.4999933562 | G171: -1.665346808e-05 | H171: 0.3989422803 | I171: * | J171: 28.20945962
B172: 152 | C172: 0.4980178129 | F172: 0.8555574316 | G172: 1.060570496 | H172: 0.2273320804 | I172: * | J172: 0
B173: 153 | C173: 0.2180976128 | F173: 0.20864921 | G173: -0.8111171115 | H173: 0.2871088067 | I173: * | J173: 0
B174: 154 | C174: 0.3262955959 | F174: 0.1950901756 | G174: -0.8592903422 | H174: 0.2757864404 | I174: * | J174: 0
B175: 155 | C175: 0.7078782024 | F175: 0.6080847791 | G175: 0.2743307678 | H175: 0.3842095323 | I175: * | J175: 5.504825988e-81
B176: 156 | C176: 0.2102409776 | F176: 0.2861961356 | G176: -0.5645317903 | H176: 0.3401778859 | I176: * | J176: 0
B177: 157 | C177: 0.1921272566 | F177: 0.3940493376 | G177: -0.2687804024 | H177: 0.3847890621 | I177: * | J177: 1.031948116e-77
B178: 158 | C178: 0.4067720804 | F178: 0.6805890557 | G178: 0.4693466318 | H178: 0.3573349636 | I178: * | J178: 1.895074459e-238
B179: 159 | C179: 0.3492228146 | F179: 0.330943301 | G179: -0.4373099201 | H179: 0.3625624599 | I179: * | J179: 6.519885797e-207
B180: 160 | C180: 0.3064805424 | F180: 0.9355446089 | G180: 1.518411151 | H180: 0.1259683309 | I180: * | J180: 0
B181: 161 | C181: 0.1516438969 | F181: 0.8612179261 | G181: 1.085807545 | H181: 0.2212576222 | I181: * | J181: 0
B182: 162 | C182: 0.6605614021 | F182: 0.9772581062 | G182: 2.000152607 | H182: 0.05397448963 | I182: * | J182: 0
B183: 163 | C183: 0.1123922735 | F183: 0.4867300676 | G183: -0.03326892387 | H183: 0.3987215626 | I183: * | J183: 1.77287908
B184: 164 | C184: 0.1277115445 | F184: 0.3511651259 | G184: -0.3821767693 | H184: 0.3708461195 | I184: * | J184: 7.39197727e-158
B185: 165 | C185: 0.5254527146 | F185: 0.4628808563 | G185: -0.09317855273 | H185: 0.3972141772 | I185: * | J185: 1.056257587e-08
B186: 166 | C186: 0.8341857824 | F186: 0.7963153217 | G186: 0.8285318649 | H186: 0.2830388649 | I186: * | J186: 0
B187: 167 | C187: 0.7332523878 | F187: 0.5086775305 | G187: 0.02175305872 | H187: 0.3988479027 | I187: * | J187: 8.64230348
B188: 168 | C188: 0.7724312991 | F188: 0.8855437968 | G188: 1.20316518 | H188: 0.1934489243 | I188: * | J188: 0
B189: 169 | C189: 0.1364729132 | F189: 0.1174535525 | G189: -1.187812966 | H189: 0.1970321523 | I189: * | J189: 0
B190: 170 | C190: 0.5040316596 | F190: 0.9692834098 | G190: 1.870364772 | H190: 0.06938596092 | I190: * | J190: 0
B191: 171 | C191: 0.2656972738 | F191: 0.2432351629 | G191: -0.6959337409 | H191: 0.3131414044 | I191: * | J191: 0
B192: 172 | C192: 0.978294495 | F192: 0.6412639867 | G192: 0.3618394278 | H192: 0.3736624538 | I192: * | J192: 1.983231009e-141
B193: 173 | C193: 0.3504545367 | F193: 0.9283013487 | G193: 1.463256147 | H193: 0.13676409 | I193: * | J193: 0
B194: 174 | C194: 0.2936007401 | F194: 0.1990991217 | G194: -0.8448434645 | H194: 0.2792022713 | I194: * | J194: 0
B195: 175 | C195: 0.9723665558 | F195: 0.7038164998 | G195: 0.5354090979 | H195: 0.345670253 | I195: * | J195: 0
B196: 176 | C196: 0.2927198566 | F196: 0.5558286744 | G196: 0.1404016538 | H196: 0.3950294952 | I196: * | J196: 1.116053698e-20
B197: 177 | C197: 0.9980229911 | F197: 0.1418568862 | G197: -1.072013937 | H197: 0.2245750176 | I197: * | J197: 0
B198: 178 | C198: 0.9436320832 | F198: 0.171836848 | G198: -0.946931479 | H198: 0.2547995437 | I198: * | J198: 0
B199: 179 | C199: 0.1468939451 | F199: 0.2195144509 | G199: -0.7738341041 | H199: 0.2957182478 | I199: * | J199: 0
B200: 180 | C200: 0.8419197298 | F200: 0.3135245689 | G200: -0.4858843883 | H200: 0.3545236035 | I200: * | J200: 1.336106604e-255
B201: 181 | C201: 0.796925646 | F201: 0.2177573881 | G201: -0.7797895197 | H201: 0.2943533447 | I201: * | J201: 0
B202: 182 | C202: 0.7923183606 | F202: 0.8151927956 | G202: 0.8971958697 | H202: 0.2667565731 | I202: * | J202: 0
B203: 183 | C203: 0.4261305379 | F203: 0.1271041522 | G203: -1.140187235 | H203: 0.2082633282 | I203: * | J203: 0
B204: 184 | C204: 0.7834816225 | F204: 0.2901303042 | G204: -0.5530040915 | H204: 0.3423761489 | I204: * | J204: 0
B205: 185 | C205: 0.5886555606 | F205: 0.1115862981 | G205: -1.218135209 | H205: 0.189974538 | I205: * | J205: 0
B206: 186 | C206: 0.3800309185 | F206: 0.7792799871 | G206: 0.7697637848 | H206: 0.296648698 | I206: * | J206: =_xlfn.NORM.DIST(G206,0,1/SQRT(5000),FALSE) -> 0
B207: 187 | C207: 0.8773562304 | F207: 0.9253784973 | G207: 1.442210478 | H207: 0.141010057 | I207: * | J207: 0
B208: 188 | C208: 0.7343811642 | F208: 0.3012123825 | G208: -0.5209167521 | H208: 0.3483262757 | I208: * | J208: 6.780282606e-294
B209: 189 | C209: 0.08137317902 | F209: 0.3812229716 | G209: -0.3022703971 | H209: 0.3811271511 | I209: * | J209: 1.776268283e-98
B210: 190 | C210: 0.8408003811 | F210: 0.8572451252 | G210: 1.068023859 | H210: 0.2255358811 | I210: * | J210: 0
B211: 191 | C211: 0.4050682111 | F211: 0.7387819906 | G211: 0.6395948695 | H211: 0.3251465316 | I211: * | J211: 0
B212: 192 | C212: 0.2379794533 | F212: 0.6216283725 | G212: 0.3097602851 | H212: 0.3802546001 | I212: * | J212: 1.872617328e-103
B213: 193 | C213: =RAND() -> 0.09064340639 | F213: 0.9384597753 | G213: =_xlfn.NORM.INV(F213,0,1) -> 1.541971788 | H213: =_xlfn.NORM.DIST(G213,0,1,FALSE) -> 0.1215077744 | I213: * | J213: 0
B214: 194 | C214: 0.5594806591 | F214: 0.5664674502 | G214: 0.1673875768 | H214: 0.3933923443 | I214: * | J214: 1.070497646e-29
B215: 195 | C215: 0.9257928441 | F215: 0.06779000751 | G215: -1.492454583 | H215: 0.1309880902 | I215: * | J215: 0
B216: 196 | C216: 0.1376344263 | F216: 0.9660016078 | G216: 1.825028131 | H216: 0.07544869635 | I216: * | J216: 0
... 4284 more rows

Sheet 10000個
G1: 7 | H1: 8 | J1: 10 | O1: 15 | T1: 20 | AE1: 31 | AF1: 32
I18: 0.4
K19: 10個の平均
B20: No | C20: 乱数 | F20: 対象列 | I20: =COUNTA(I21:I10020) -> 10000 | K20: 1000個の標本 | P20: =FREQUENCY(L21:L60,N21:N47) -> 0
B21: 1 | C21: =RAND() -> 0.2024386472 | F21: 0.08414646168 | G21: =_xlfn.NORM.INV(F21,0,1) -> -1.377709739 | H21: =_xlfn.NORM.DIST(G21,0,1,FALSE) -> 0.1544352143 | I21: * | J21: =_xlfn.NORM.DIST(G21,0,1/100,FALSE) -> 0 | K21: 4.920379517 | L21: -0.1884659075 | N21: -2 | O21: =P21/$I$18 -> 0 | P21: 0
B22: 2 | C22: 0.6006772829 | F22: 0.9525292577 | G22: 1.669888204 | H22: 0.09894394109 | I22: * | J22: =_xlfn.NORM.DIST(G22,0,1/100,FALSE) -> 0 | N22: -1.5 | O22: 0 | P22: 0
B23: 3 | C23: 0.3201394325 | F23: 0.7103713306 | G23: 0.5544698432 | H23: 0.3420983751 | I23: * | J23: =_xlfn.NORM.DIST(G23,0,1/100,FALSE) -> 0 | N23: -1.3 | O23: 0 | P23: 0
B24: 4 | C24: 0.8572465123 | F24: 0.2811747854 | G24: -0.5793551342 | H24: 0.33730601 | I24: * | J24: =_xlfn.NORM.DIST(G24,0,1/100,FALSE) -> 0 | N24: -1 | O24: 0 | P24: 0
B25: 5 | C25: 0.1966222413 | F25: 0.5406016825 | G25: 0.1019496565 | H25: 0.3968744086 | I25: * | J25: =_xlfn.NORM.DIST(G25,0,1/100,FALSE) -> 1.074500938e-21 | N25: -0.9 | O25: 0 | P25: 0
B26: 6 | C26: 0.4608178216 | F26: 0.9232885681 | G26: 1.427545001 | H26: 0.144008796 | I26: * | J26: =_xlfn.NORM.DIST(G26,0,1/100,FALSE) -> 0 | N26: -0.8 | O26: 0 | P26: 0
B27: 7 | C27: 0.9458178483 | F27: 0.1260682825 | G27: -1.145175259 | H27: 0.2070796618 | I27: * | J27: =_xlfn.NORM.DIST(G27,0,1/100,FALSE) -> 0 | N27: -0.7 | O27: 0 | P27: 0
B28: 8 | C28: 0.02201842999 | F28: 0.6554128914 | G28: 0.3999759682 | H28: 0.3682736803 | I28: * | J28: =_xlfn.NORM.DIST(G28,0,1/100,FALSE) -> 0 | N28: -0.6 | O28: 0 | P28: 0
B29: 9 | C29: 0.8968665964 | F29: 0.2504946207 | G29: -0.6729340614 | H29: 0.3181098045 | I29: * | J29: =_xlfn.NORM.DIST(G29,0,1/100,FALSE) -> 0 | N29: -0.5 | O29: 0 | P29: 0
B30: 10 | C30: 0.542591649 | F30: 0.6557666826 | G30: 0.4009368277 | H30: 0.3681320023 | I30: * | J30: =_xlfn.NORM.DIST(G30,0,1/100,FALSE) -> 0 | N30: -0.4 | O30: 0 | P30: 0
B31: 11 | C31: 0.1966065948 | F31: 0.3504089128 | G31: -0.3842167218 | H31: 0.3705563412 | I31: * | J31: =_xlfn.NORM.DIST(G31,0,1/100,FALSE) -> 0 | N31: -0.3 | O31: 0 | P31: 0
B32: 12 | C32: 0.8632335591 | F32: 0.0532825321 | G32: -1.613826503 | H32: 0.1084835724 | I32: * | J32: =_xlfn.NORM.DIST(G32,0,1/100,FALSE) -> 0 | N32: -0.2 | O32: 2.5 | P32: 1
B33: 13 | C33: 0.05387850281 | F33: 0.528985647 | G33: 0.07272028515 | H33: 0.3978888225 | I33: * | J33: =_xlfn.NORM.DIST(G33,0,1/100,FALSE) -> 1.311121953e-10 | N33: -0.1 | O33: 0 | P33: 0
B34: 14 | C34: 0.008504867114 | F34: 0.7924681484 | G34: 0.8150150363 | H34: 0.2862003217 | I34: * | J34: =_xlfn.NORM.DIST(G34,0,1/100,FALSE) -> 0 | N34: 0 | O34: 0 | P34: 0
B35: 15 | C35: 0.2748822398 | F35: 0.7008925086 | G35: 0.5269691919 | H35: 0.3472234362 | I35: * | J35: =_xlfn.NORM.DIST(G35,0,1/100,FALSE) -> 0 | N35: 0.1 | O35: 0 | P35: 0
B36: 16 | C36: 0.600164337 | F36: 0.5457883608 | G36: 0.1150275587 | H36: 0.3963117211 | I36: * | J36: =_xlfn.NORM.DIST(G36,0,1/100,FALSE) -> 7.403241556e-28 | N36: 0.2 | O36: 0 | P36: 0
B37: 17 | C37: 0.5667124995 | F37: 0.443906745 | G37: -0.1410714597 | H37: 0.3949922591 | I37: * | J37: =_xlfn.NORM.DIST(G37,0,1/100,FALSE) -> 2.43274897e-42 | N37: 0.3 | O37: 0 | P37: 0
B38: 18 | C38: 0.926981813 | F38: 0.02018385062 | G38: -2.049966487 | H38: 0.04879537075 | I38: * | J38: =_xlfn.NORM.DIST(G38,0,1/100,FALSE) -> 0 | N38: 0.4 | O38: 0 | P38: 0
B39: 19 | C39: 0.4626691812 | F39: 0.5130628404 | G39: 0.03274953828 | H39: 0.3987283985 | I39: * | J39: =_xlfn.NORM.DIST(G39,0,1/100,FALSE) -> 0.1870405883 | N39: 0.5 | O39: 0 | P39: 0
B40: 20 | C40: 0.2858439147 | F40: 0.2025775997 | G40: -0.832449628 | H40: 0.2821194476 | I40: * | J40: =_xlfn.NORM.DIST(G40,0,1/100,FALSE) -> 0 | N40: 0.6 | O40: 0 | P40: 0
B41: 21 | C41: 0.3022117103 | F41: 0.3648322819 | G41: -0.3455717709 | H41: 0.3758186906 | I41: * | J41: =_xlfn.NORM.DIST(G41,0,1/100,FALSE) -> 1.923105545e-258 | N41: 0.7 | O41: 0 | P41: 0
B42: 22 | C42: 0.3478344796 | F42: 0.3738560663 | G42: -0.32165756 | H42: 0.378829014 | I42: * | J42: =_xlfn.NORM.DIST(G42,0,1/100,FALSE) -> 8.56224866e-224 | N42: 0.8 | O42: 0 | P42: 0
B43: 23 | C43: 0.2705792838 | F43: 0.01538006138 | G43: -2.160162103 | H43: 0.03869330508 | I43: * | J43: =_xlfn.NORM.DIST(G43,0,1/100,FALSE) -> 0 | N43: 0.9 | O43: 0 | P43: 0
B44: 24 | C44: 0.7517583682 | F44: 0.6108057753 | G44: 0.2814197789 | H44: 0.3834534379 | I44: * | J44: =_xlfn.NORM.DIST(G44,0,1/100,FALSE) -> 4.232626337e-171 | N44: 1 | O44: 0 | P44: 0
B45: 25 | C45: 0.02472578622 | F45: 0.9840717226 | G45: 2.146205903 | H45: 0.03987369596 | I45: * | J45: =_xlfn.NORM.DIST(G45,0,1/100,FALSE) -> 0 | N45: 1.3 | O45: 0 | P45: 0
B46: 26 | C46: 0.09248705935 | F46: 0.6069329773 | G46: 0.2713341474 | H46: 0.3845237809 | I46: * | J46: =_xlfn.NORM.DIST(G46,0,1/100,FALSE) -> 5.398729206e-159 | N46: 1.5 | O46: 0 | P46: 0
B47: 27 | C47: 0.00119799361 | F47: 0.4317083458 | G47: -0.1720265049 | H47: 0.3930827646 | I47: * | J47: =_xlfn.NORM.DIST(G47,0,1/100,FALSE) -> 2.189121904e-63 | N47: 2 | O47: =P47/I18 -> 0 | P47: 0
B48: 28 | C48: 0.486812501 | F48: 0.7681588699 | G48: 0.7327969853 | H48: 0.3050028238 | I48: * | J48: =_xlfn.NORM.DIST(G48,0,1/100,FALSE) -> 0 | P48: =SUM(P22:P47) -> 1
B49: 29 | C49: 0.7963985145 | F49: 0.6602686536 | G49: 0.4131964447 | H49: 0.3662994231 | I49: * | J49: =_xlfn.NORM.DIST(G49,0,1/100,FALSE) -> 0
B50: 30 | C50: 0.3293955758 | F50: 0.7513724551 | G50: 0.6788149976 | H50: 0.3168478991 | I50: * | J50: =_xlfn.NORM.DIST(G50,0,1/100,FALSE) -> 0
B51: 31 | C51: 0.8679253811 | F51: 0.180174216 | G51: -0.9147013565 | H51: 0.2625594309 | I51: * | J51: =_xlfn.NORM.DIST(G51,0,1/100,FALSE) -> 0
B52: 32 | C52: 0.5053121308 | F52: 0.65804111 | G52: 0.407122825 | H52: 0.3672130688 | I52: * | J52: =_xlfn.NORM.DIST(G52,0,1/100,FALSE) -> 0
B53: 33 | C53: 0.599806145 | F53: 0.3344607014 | G53: -0.4276287889 | H53: 0.3640836159 | I53: * | J53: =_xlfn.NORM.DIST(G53,0,1/100,FALSE) -> 0
B54: 34 | C54: 0.9216837286 | F54: 0.1846976063 | G54: -0.8976067997 | H54: 0.2666582197 | I54: * | J54: =_xlfn.NORM.DIST(G54,0,1/100,FALSE) -> 0
B55: 35 | C55: 0.9729243864 | F55: 0.8229505879 | G55: 0.926668217 | H55: 0.2596825059 | I55: * | J55: =_xlfn.NORM.DIST(G55,0,1/100,FALSE) -> 0
B56: 36 | C56: 0.6938049727 | F56: 0.4037501771 | G56: -0.2436519964 | H56: 0.3872744435 | I56: * | J56: =_xlfn.NORM.DIST(G56,0,1/100,FALSE) -> 4.882448118e-128
B57: 37 | C57: 0.5907098268 | F57: 0.7134205806 | G57: 0.5634054325 | H57: 0.3403940459 | I57: * | J57: =_xlfn.NORM.DIST(G57,0,1/100,FALSE) -> 0
B58: 38 | C58: 0.1343243821 | F58: 0.8925456927 | G58: 1.240180567 | H58: 0.1848958746 | I58: * | J58: =_xlfn.NORM.DIST(G58,0,1/100,FALSE) -> 0
B59: 39 | C59: 0.3994507667 | F59: 0.4228891657 | G59: -0.1945077456 | H59: 0.3914665669 | I59: * | J59: =_xlfn.NORM.DIST(G59,0,1/100,FALSE) -> 2.799129973e-81
B60: 40 | C60: 0.5880503246 | F60: 0.1130110849 | G60: -1.210669308 | H60: 0.1917047943 | I60: * | J60: =_xlfn.NORM.DIST(G60,0,1/100,FALSE) -> 0
B61: 41 | C61: 0.9006628575 | F61: 0.1883148719 | G61: -0.8841231386 | H61: 0.2698806661 | I61: * | J61: =_xlfn.NORM.DIST(G61,0,1/100,FALSE) -> 0
B62: 42 | C62: 0.0890718884 | F62: 0.8765288196 | G62: 1.157808091 | H62: 0.2040891601 | I62: * | J62: =_xlfn.NORM.DIST(G62,0,1/100,FALSE) -> 0
B63: 43 | C63: 0.07984769665 | F63: 0.596248362 | G63: 0.2436482243 | H63: 0.3872747995 | I63: * | J63: =_xlfn.NORM.DIST(G63,0,1/100,FALSE) -> 4.927528002e-128
B64: 44 | C64: 0.7016099868 | F64: 0.3705271273 | G64: -0.3304575608 | H64: 0.3777435953 | I64: * | J64: =_xlfn.NORM.DIST(G64,0,1/100,FALSE) -> 2.960375894e-236
B65: 45 | C65: 0.01468153658 | F65: 0.9416696631 | G65: 1.568945349 | H65: 0.1165152296 | I65: * | J65: =_xlfn.NORM.DIST(G65,0,1/100,FALSE) -> 0
B66: 46 | C66: 0.07060020727 | F66: 0.8601531098 | G66: 1.081007493 | H66: 0.22241125 | I66: * | J66: =_xlfn.NORM.DIST(G66,0,1/100,FALSE) -> 0
B67: 47 | C67: 0.8931697526 | F67: 0.8628354147 | G67: 1.09314721 | H67: 0.2194954128 | I67: * | J67: =_xlfn.NORM.DIST(G67,0,1/100,FALSE) -> 0
B68: 48 | C68: 0.4958283398 | F68: 0.3633115057 | G68: -0.3496211828 | H68: 0.3752900749 | I68: * | J68: =_xlfn.NORM.DIST(G68,0,1/100,FALSE) -> 1.482661584e-264
B69: 49 | C69: 0.8531752553 | F69: 0.2884237836 | G69: -0.5579953387 | H69: 0.3414281791 | I69: * | J69: =_xlfn.NORM.DIST(G69,0,1/100,FALSE) -> 0
B70: 50 | C70: 0.583201852 | F70: 0.1672992381 | G70: -0.9648928636 | H70: 0.2504621038 | I70: * | J70: =_xlfn.NORM.DIST(G70,0,1/100,FALSE) -> 0
B71: 51 | C71: 0.3249857641 | F71: 0.2541602843 | G71: -0.6614549932 | H71: 0.3205554883 | I71: * | J71: =_xlfn.NORM.DIST(G71,0,1/100,FALSE) -> 0
B72: 52 | C72: 0.7641198486 | F72: 0.2768886803 | G72: -0.5921093586 | H72: 0.3347955341 | I72: * | J72: =_xlfn.NORM.DIST(G72,0,1/100,FALSE) -> 0
B73: 53 | C73: 0.9407794607 | F73: 0.9823724464 | G73: 2.105416058 | H73: 0.04348553513 | I73: * | J73: =_xlfn.NORM.DIST(G73,0,1/100,FALSE) -> 0
B74: 54 | C74: 0.3823680185 | F74: 0.7490017434 | G74: 0.6713516895 | H74: 0.3184483197 | I74: * | J74: =_xlfn.NORM.DIST(G74,0,1/100,FALSE) -> 0
B75: 55 | C75: 0.266797655 | F75: 0.5226129014 | G75: 0.05671252429 | H75: 0.3983012349 | I75: * | J75: =_xlfn.NORM.DIST(G75,0,1/100,FALSE) -> 4.137907197e-06
B76: 56 | C76: 0.777669917 | F76: 0.411623044 | G76: -0.22337188 | H76: 0.3891127889 | I76: * | J76: =_xlfn.NORM.DIST(G76,0,1/100,FALSE) -> 1.800119107e-107
B77: 57 | C77: 0.8011301835 | F77: 0.03326015395 | G77: -1.834901348 | H77: 0.07409775738 | I77: * | J77: =_xlfn.NORM.DIST(G77,0,1/100,FALSE) -> 0
B78: 58 | C78: 0.3611128378 | F78: 0.6138677509 | G78: 0.2894141104 | H78: 0.3825795028 | I78: * | J78: =_xlfn.NORM.DIST(G78,0,1/100,FALSE) -> 5.214780536e-181
B79: 59 | C79: 0.7054074254 | F79: 0.6913853275 | G79: 0.4997809227 | H79: 0.3521038852 | I79: * | J79: =_xlfn.NORM.DIST(G79,0,1/100,FALSE) -> 0
B80: 60 | C80: 0.5741406847 | F80: 0.1003181366 | G80: -1.279740905 | H80: 0.1759057523 | I80: * | J80: =_xlfn.NORM.DIST(G80,0,1/100,FALSE) -> 0
B81: 61 | C81: 0.3828338987 | F81: 0.04291408788 | G81: -1.717826997 | H81: 0.09122709528 | I81: * | J81: =_xlfn.NORM.DIST(G81,0,1/100,FALSE) -> 0
B82: 62 | C82: 0.7833270726 | F82: 0.2202922967 | G82: -0.7712064132 | H82: 0.2963191491 | I82: * | J82: =_xlfn.NORM.DIST(G82,0,1/100,FALSE) -> 0
B83: 63 | C83: 0.5647100099 | F83: 0.4339756694 | G83: -0.1662612764 | H83: 0.3934662674 | I83: * | J83: =_xlfn.NORM.DIST(G83,0,1/100,FALSE) -> 3.761026815e-59
B84: 64 | C84: 0.392520307 | F84: 0.5228037004 | G84: 0.05719156264 | H84: 0.3982903685 | I84: * | J84: =_xlfn.NORM.DIST(G84,0,1/100,FALSE) -> 3.149891547e-06
B85: 65 | C85: =RAND() -> 0.7097934989 | F85: 0.8328638125 | G85: =_xlfn.NORM.INV(F85,0,1) -> 0.9655440672 | H85: =_xlfn.NORM.DIST(G85,0,1,FALSE) -> 0.2503047243 | I85: * | J85: =_xlfn.NORM.DIST(G85,0,1/100,FALSE) -> 0
B86: 66 | C86: 0.9172647759 | F86: 0.9120651916 | G86: 1.353582488 | H86: 0.1596085044 | I86: * | J86: =_xlfn.NORM.DIST(G86,0,1/100,FALSE) -> 0
B87: 67 | C87: 0.5279398362 | F87: 0.878390567 | G87: 1.166978961 | H87: 0.2019250923 | I87: * | J87: =_xlfn.NORM.DIST(G87,0,1/100,FALSE) -> 0
B88: 68 | C88: 0.1727166634 | F88: 0.7899651369 | G88: 0.8063002851 | H88: 0.2882293943 | I88: * | J88: =_xlfn.NORM.DIST(G88,0,1/100,FALSE) -> 0
B89: 69 | C89: 0.08056674086 | F89: 0.3784542801 | G89: -0.3095429312 | H89: 0.3802801936 | I89: * | J89: =_xlfn.NORM.DIST(G89,0,1/100,FALSE) -> 3.446001935e-207
B90: 70 | C90: 0.5124095251 | F90: 0.8410670324 | G90: 0.998852942 | H90: 0.2422482788 | I90: * | J90: =_xlfn.NORM.DIST(G90,0,1/100,FALSE) -> 0
B91: 71 | C91: 0.1232278177 | F91: 0.9192316799 | G91: 1.399922124 | H91: 0.1497437903 | I91: * | J91: =_xlfn.NORM.DIST(G91,0,1/100,FALSE) -> 0
B92: 72 | C92: 0.768337929 | F92: 0.0003101150374 | G92: -3.422609952 | H92: 0.001140751554 | I92: * | J92: =_xlfn.NORM.DIST(G92,0,1/100,FALSE) -> 0
B93: 73 | C93: 0.8487146157 | F93: 0.832371266 | G93: 0.9635781456 | H93: 0.2507798154 | I93: * | J93: =_xlfn.NORM.DIST(G93,0,1/100,FALSE) -> 0
B94: 74 | C94: 0.4850957454 | F94: 0.7184603121 | G94: 0.5782736584 | H94: 0.3375172209 | I94: * | J94: =_xlfn.NORM.DIST(G94,0,1/100,FALSE) -> 0
B95: 75 | C95: 0.5790702327 | F95: 0.7909511496 | G95: 0.8097259489 | H95: 0.2874326838 | I95: * | J95: =_xlfn.NORM.DIST(G95,0,1/100,FALSE) -> 0
B96: 76 | C96: 0.155583374 | F96: 0.8612647664 | G96: 1.086019269 | H96: 0.2212067576 | I96: * | J96: =_xlfn.NORM.DIST(G96,0,1/100,FALSE) -> 0
B97: 77 | C97: 0.9576602037 | F97: 0.9136251501 | G97: 1.363421529 | H97: 0.1574893147 | I97: * | J97: =_xlfn.NORM.DIST(G97,0,1/100,FALSE) -> 0
B98: 78 | C98: 0.564351192 | F98: 0.1600712703 | G98: -0.9941650082 | H98: 0.2433826057 | I98: * | J98: =_xlfn.NORM.DIST(G98,0,1/100,FALSE) -> 0
B99: 79 | C99: 0.3684382509 | F99: 0.1016471805 | G99: -1.272221696 | H99: 0.1776015795 | I99: * | J99: =_xlfn.NORM.DIST(G99,0,1/100,FALSE) -> 0
B100: 80 | C100: 0.7362462105 | F100: 0.7716561525 | G100: 0.7443120797 | H100: 0.3024199184 | I100: * | J100: =_xlfn.NORM.DIST(G100,0,1/100,FALSE) -> 0
B101: 81 | C101: 0.5416567844 | F101: 0.6302320546 | G101: 0.332468011 | H101: 0.3774919548 | I101: * | J101: =_xlfn.NORM.DIST(G101,0,1/100,FALSE) -> 3.777933491e-239
B102: 82 | C102: 0.2396833171 | F102: 0.704122031 | G102: 0.5362931876 | H102: 0.3455065338 | I102: * | J102: =_xlfn.NORM.DIST(G102,0,1/100,FALSE) -> 0
B103: 83 | C103: 0.03833885067 | F103: 0.759291561 | G103: 0.7040255247 | H103: 0.3113727589 | I103: * | J103: =_xlfn.NORM.DIST(G103,0,1/100,FALSE) -> 0
B104: 84 | C104: 0.4069961774 | F104: 0.4176838591 | G104: -0.2078223022 | H104: 0.3904194567 | I104: * | J104: =_xlfn.NORM.DIST(G104,0,1/100,FALSE) -> 6.527988368e-93
B105: 85 | C105: 0.7711956872 | F105: 0.77328842 | G105: 0.7497203309 | H105: 0.3012005911 | I105: * | J105: =_xlfn.NORM.DIST(G105,0,1/100,FALSE) -> 0
B106: 86 | C106: 0.6424208311 | F106: 0.1317507007 | G106: -1.118153591 | H106: 0.2135098611 | I106: * | J106: =_xlfn.NORM.DIST(G106,0,1/100,FALSE) -> 0
B107: 87 | C107: 0.8976700691 | F107: 0.4073603554 | G107: -0.2343404174 | H107: 0.3881372562 | I107: * | J107: =_xlfn.NORM.DIST(G107,0,1/100,FALSE) -> 2.257180769e-118
B108: 88 | C108: 0.4426432774 | F108: 0.7734938898 | G108: 0.750402675 | H108: 0.3010464761 | I108: * | J108: =_xlfn.NORM.DIST(G108,0,1/100,FALSE) -> 0
B109: 89 | C109: 0.6451221969 | F109: 0.9980788037 | G109: 2.890819077 | H109: 0.006112887687 | I109: * | J109: =_xlfn.NORM.DIST(G109,0,1/100,FALSE) -> 0
B110: 90 | C110: 0.384362949 | F110: 0.351131139 | G110: -0.3822684178 | H110: 0.3708331289 | I110: * | J110: =_xlfn.NORM.DIST(G110,0,1/100,FALSE) -> 0
B111: 91 | C111: 0.968224207 | F111: 0.2890268251 | G111: -0.5562299752 | H111: 0.3417641411 | I111: * | J111: =_xlfn.NORM.DIST(G111,0,1/100,FALSE) -> 0
B112: 92 | C112: 0.8588445387 | F112: 0.01478479733 | G112: -2.175808342 | H112: 0.03740280775 | I112: * | J112: =_xlfn.NORM.DIST(G112,0,1/100,FALSE) -> 0
B113: 93 | C113: 0.5468569363 | F113: 0.9053874891 | G113: 1.312875149 | H113: 0.1685101806 | I113: * | J113: =_xlfn.NORM.DIST(G113,0,1/100,FALSE) -> 0
B114: 94 | C114: 0.5621899863 | F114: 0.4829585046 | G114: -0.0427296936 | H114: 0.3985782469 | I114: * | J114: =_xlfn.NORM.DIST(G114,0,1/100,FALSE) -> 0.004326908678
B115: 95 | C115: 0.03800633083 | F115: 0.8480027275 | G115: 1.027904941 | H115: 0.2352202858 | I115: * | J115: =_xlfn.NORM.DIST(G115,0,1/100,FALSE) -> 0
B116: 96 | C116: 0.7664829714 | F116: 0.255972978 | G116: -0.6558106612 | H116: 0.3217493847 | I116: * | J116: =_xlfn.NORM.DIST(G116,0,1/100,FALSE) -> 0
B117: 97 | C117: 0.9665264157 | F117: 0.5838074477 | G117: 0.2116435837 | H117: 0.3901066809 | I117: * | J117: =_xlfn.NORM.DIST(G117,0,1/100,FALSE) -> 2.158401479e-96
B118: 98 | C118: 0.2425317467 | F118: 0.1444244936 | G118: -1.060650008 | H118: 0.22731291 | I118: * | J118: =_xlfn.NORM.DIST(G118,0,1/100,FALSE) -> 0
B119: 99 | C119: 0.1263413764 | F119: 0.07128055207 | G119: -1.466320093 | H119: 0.1361516637 | I119: * | J119: =_xlfn.NORM.DIST(G119,0,1/100,FALSE) -> 0
B120: 100 | C120: 0.1997669478 | F120: 0.1189034559 | G120: -1.18048616 | H120: 0.1987490471 | I120: * | J120: =_xlfn.NORM.DIST(G120,0,1/100,FALSE) -> 0
B121: 101 | C121: 0.1836623674 | F121: 0.4511595409 | G121: -0.1227323047 | H121: 0.3959488897 | I121: * | J121: =_xlfn.NORM.DIST(G121,0,1/100,FALSE) -> 7.79016125e-32
B122: 102 | C122: 0.9380163906 | F122: 0.6368495049 | G122: 0.3500502448 | H122: 0.3752337476 | I122: * | J122: 3.304918748e-265
B123: 103 | C123: 0.3852089481 | F123: 0.3277216389 | G123: -0.44621316 | H123: 0.3611392629 | I123: * | J123: 0
B124: 104 | C124: 0.4698084992 | F124: 0.4737459844 | G124: -0.06585663139 | H124: 0.3980780923 | I124: * | J124: 1.52414395e-08
B125: 105 | C125: 0.5415475818 | F125: 0.9734815502 | G125: 1.93462036 | H125: 0.06140177704 | I125: * | J125: 0
B126: 106 | C126: 0.2242879216 | F126: 0.9389937023 | G126: 1.546380937 | H126: 0.1206832983 | I126: * | J126: 0
B127: 107 | C127: 0.9639723579 | F127: 0.07342961179 | G127: -1.450715048 | H127: 0.1392860415 | I127: * | J127: 0
B128: 108 | C128: 0.9597128037 | F128: 0.992039631 | G128: 2.410727517 | H128: 0.02182406294 | I128: * | J128: 0
B129: 109 | C129: 0.1875233716 | F129: 0.7299880226 | G129: 0.612776767 | H129: 0.3306528597 | I129: * | J129: 0
B130: 110 | C130: 0.5650029046 | F130: 0.4415976654 | G130: -0.1469197907 | H130: 0.3946597626 | I130: * | J130: 5.354950561e-46
B131: 111 | C131: 0.4457876237 | F131: 0.4360541338 | G131: -0.1609811241 | H131: 0.3938063475 | I131: * | J131: 2.125060363e-55
B132: 112 | C132: 0.3981663628 | F132: 0.04440067154 | G132: -1.701754799 | H132: 0.09376878779 | I132: * | J132: 0
B133: 113 | C133: 0.5773055134 | F133: 0.2309530378 | G133: -0.7357118516 | H133: 0.3043507385 | I133: * | J133: 0
B134: 114 | C134: 0.4869180971 | F134: 0.6084338994 | G134: 0.2752395529 | H134: 0.3841135992 | I134: * | J134: 1.250501275e-163
B135: 115 | C135: 0.9368457896 | F135: 0.957266594 | G135: 1.719810947 | H135: 0.09091653601 | I135: * | J135: 0
B136: 116 | C136: 0.5492448803 | F136: 0.5579134371 | G136: 0.1456811207 | H136: 0.3947312886 | I136: * | J136: 3.279254767e-45
B137: 117 | C137: 0.05875739902 | F137: 0.2278139171 | G137: -0.7460655243 | H137: 0.3020250203 | I137: * | J137: 0
B138: 118 | C138: 0.2270373093 | F138: 0.3090583675 | G138: -0.4985211937 | H138: 0.352325356 | I138: * | J138: 0
B139: 119 | C139: 0.8288981558 | F139: 0.3565252981 | G139: -0.3677621471 | H139: 0.3728559856 | I139: * | J139: 8.155396525e-293
B140: 120 | C140: 0.01425647097 | F140: 0.2114978254 | G140: -0.801234934 | H140: 0.2894052734 | I140: * | J140: 0
B141: 121 | C141: 0.35286408 | F141: 0.3556754179 | G141: -0.3700424843 | H141: 0.3725424629 | I141: * | J141: 1.811614071e-296
B142: 122 | C142: 0.9118012681 | F142: 0.3398613368 | G142: -0.412841596 | H142: 0.3663531116 | I142: * | J142: 0
B143: 123 | C143: 0.6223976126 | F143: 0.1917457525 | G143: -0.8714811297 | H143: 0.2728922602 | I143: * | J143: 0
B144: 124 | C144: 0.2787954427 | F144: 0.3941328246 | G144: -0.2685634404 | H144: 0.3848114927 | I144: * | J144: 9.562972417e-156
B145: 125 | C145: 0.9575979576 | F145: 0.2879176857 | G145: -0.5594782492 | H145: 0.3411454037 | I145: * | J145: 0
B146: 126 | C146: 0.6031216917 | F146: 0.2630984667 | G146: -0.6338220927 | H146: 0.3263438314 | I146: * | J146: 0
B147: 127 | C147: 0.1130945131 | F147: 0.5267263144 | G147: 0.06704312555 | H147: 0.3980467081 | I147: * | J147: 6.928158679e-09
B148: 128 | C148: 0.9115272623 | F148: 0.2085851621 | G148: -0.8113402106 | H148: 0.2870568492 | I148: * | J148: 0
B149: 129 | C149: =RAND() -> 0.7295157614 | F149: 0.5236037343 | G149: =_xlfn.NORM.INV(F149,0,1) -> 0.05920034923 | H149: =_xlfn.NORM.DIST(G149,0,1,FALSE) -> 0.3982438098 | I149: * | J149: 9.785684575e-07
B150: 130 | C150: 0.3943792779 | F150: 0.758886698 | G150: 0.7027258673 | H150: 0.3116575296 | I150: * | J150: 0
B151: 131 | C151: 0.177636155 | F151: 0.7294658646 | G151: 0.6111983572 | H151: 0.3309724138 | I151: * | J151: 0
B152: 132 | C152: 0.8064062761 | F152: 0.8957583751 | G152: 1.257747052 | H152: 0.1808834538 | I152: * | J152: 0
B153: 133 | C153: 0.06587294204 | F153: 0.1372569795 | G153: -1.092726368 | H153: 0.2195963938 | I153: * | J153: 0
B154: 134 | C154: 0.9632836507 | F154: 0.173200946 | G154: -0.9415913657 | H154: 0.2560876057 | I154: * | J154: 0
B155: 135 | C155: 0.7669158263 | F155: 0.3334112905 | G155: -0.4305129054 | H155: 0.3636333446 | I155: * | J155: 0
B156: 136 | C156: 0.01063704332 | F156: 0.009314369021 | G156: -2.352878138 | H156: 0.02504812513 | I156: * | J156: 0
B157: 137 | C157: 0.8654589995 | F157: 0.673293708 | G157: 0.4490264392 | H157: 0.3606847738 | I157: * | J157: 0
B158: 138 | C158: 0.5366222255 | F158: 0.7161155455 | G158: 0.5713404179 | H158: 0.3388650038 | I158: * | J158: 0
B159: 139 | C159: 0.3423697952 | F159: 0.7071376451 | G159: 0.5450418866 | H159: 0.3438760995 | I159: * | J159: 0
B160: 140 | C160: 0.6954699101 | F160: 0.08386284957 | G160: -1.379548514 | H160: 0.1540442185 | I160: * | J160: 0
B161: 141 | C161: 0.5890292769 | F161: 0.8185347221 | G161: 0.9097951446 | H161: 0.2637371975 | I161: * | J161: 0
B162: 142 | C162: 0.7380239049 | F162: 0.4820036635 | G162: -0.04512543612 | H162: 0.398536303 | I162: * | J162: 0.001510532148
B163: 143 | C163: 0.8554243332 | F163: 0.08776597639 | G163: -1.354641035 | H163: 0.159379887 | I163: * | J163: 0
B164: 144 | C164: 0.3850251282 | F164: 0.2699494417 | G164: -0.6129659061 | H164: 0.3306145333 | I164: * | J164: 0
B165: 145 | C165: 0.541231887 | F165: 0.813573751 | G165: 0.8911429273 | H165: 0.2682042688 | I165: * | J165: 0
B166: 146 | C166: 0.9030464202 | F166: 0.9620310161 | G166: 1.774757311 | H166: 0.08259383081 | I166: * | J166: 0
B167: 147 | C167: 0.6195017836 | F167: 0.1576805465 | G167: -1.00403635 | H167: 0.2409940513 | I167: * | J167: 0
B168: 148 | C168: 0.7244590291 | F168: 0.1268880295 | G168: -1.141225588 | H168: 0.2080167957 | I168: * | J168: 0
B169: 149 | C169: 0.4165125156 | F169: 0.2418885797 | G169: -0.7002404415 | H169: 0.3122013736 | I169: * | J169: 0
B170: 150 | C170: 0.7108844459 | F170: 0.1478553625 | G170: -1.045675831 | H170: 0.2309261064 | I170: * | J170: 0
B171: 151 | C171: 0.133128563 | F171: 0.4999933562 | G171: -1.665346808e-05 | H171: 0.3989422803 | I171: * | J171: 39.89417272
B172: 152 | C172: 0.6484871889 | F172: 0.8555574316 | G172: 1.060570496 | H172: 0.2273320804 | I172: * | J172: 0
B173: 153 | C173: 0.5691566435 | F173: 0.20864921 | G173: -0.8111171115 | H173: 0.2871088067 | I173: * | J173: 0
B174: 154 | C174: 0.3586247393 | F174: 0.1950901756 | G174: -0.8592903422 | H174: 0.2757864404 | I174: * | J174: 0
B175: 155 | C175: 0.7945339841 | F175: 0.6080847791 | G175: 0.2743307678 | H175: 0.3842095323 | I175: * | J175: 1.519172604e-162
B176: 156 | C176: 0.5381679235 | F176: 0.2861961356 | G176: -0.5645317903 | H176: 0.3401778859 | I176: * | J176: 0
B177: 157 | C177: 0.1571434583 | F177: 0.3940493376 | G177: -0.2687804024 | H177: 0.3847890621 | I177: * | J177: 5.338701691e-156
B178: 158 | C178: 0.9947291032 | F178: 0.6805890557 | G178: 0.4693466318 | H178: 0.3573349636 | I178: * | J178: 0
B179: 159 | C179: 0.1549953816 | F179: 0.330943301 | G179: -0.4373099201 | H179: 0.3625624599 | I179: * | J179: 0
B180: 160 | C180: 0.4970793049 | F180: 0.9355446089 | G180: 1.518411151 | H180: 0.1259683309 | I180: * | J180: 0
B181: 161 | C181: 0.7009673817 | F181: 0.8612179261 | G181: 1.085807545 | H181: 0.2212576222 | I181: * | J181: 0
B182: 162 | C182: 0.7910775541 | F182: 0.9772581062 | G182: 2.000152607 | H182: 0.05397448963 | I182: * | J182: 0
B183: 163 | C183: 0.9473578405 | F183: 0.4867300676 | G183: -0.03326892387 | H183: 0.3987215626 | I183: * | J183: 0.1575716782
B184: 164 | C184: 0.6635096955 | F184: 0.3511651259 | G184: -0.3821767693 | H184: 0.3708461195 | I184: * | J184: 0
B185: 165 | C185: 0.5119579006 | F185: 0.4628808563 | G185: -0.09317855273 | H185: 0.3972141772 | I185: * | J185: =_xlfn.NORM.DIST(G185,0,1/100,FALSE) -> 5.593190519e-18
B186: 166 | C186: 0.3954069265 | F186: 0.7963153217 | G186: 0.8285318649 | H186: 0.2830388649 | I186: * | J186: 0
B187: 167 | C187: 0.3005339965 | F187: 0.5086775305 | G187: 0.02175305872 | H187: 0.3988479027 | I187: * | J187: 3.74437171
B188: 168 | C188: 0.6804741897 | F188: 0.8855437968 | G188: 1.20316518 | H188: 0.1934489243 | I188: * | J188: 0
B189: 169 | C189: 0.1437454645 | F189: 0.1174535525 | G189: -1.187812966 | H189: 0.1970321523 | I189: * | J189: 0
B190: 170 | C190: 0.6668340073 | F190: 0.9692834098 | G190: 1.870364772 | H190: 0.06938596092 | I190: * | J190: 0
B191: 171 | C191: 0.7641241548 | F191: 0.2432351629 | G191: -0.6959337409 | H191: 0.3131414044 | I191: * | J191: 0
B192: 172 | C192: 0.8789685493 | F192: 0.6412639867 | G192: 0.3618394278 | H192: 0.3736624538 | I192: * | J192: 1.97181669e-283
B193: 173 | C193: 0.8675057061 | F193: 0.9283013487 | G193: 1.463256147 | H193: 0.13676409 | I193: * | J193: 0
B194: 174 | C194: 0.4717601951 | F194: 0.1990991217 | G194: -0.8448434645 | H194: 0.2792022713 | I194: * | J194: 0
B195: 175 | C195: 0.8264395769 | F195: 0.7038164998 | G195: 0.5354090979 | H195: 0.345670253 | I195: * | J195: 0
B196: 176 | C196: 0.3439750844 | F196: 0.5558286744 | G196: 0.1404016538 | H196: 0.3950294952 | I196: * | J196: 6.244391322e-42
B197: 177 | C197: 0.9418331778 | F197: 0.1418568862 | G197: -1.072013937 | H197: 0.2245750176 | I197: * | J197: 0
B198: 178 | C198: 0.5138473792 | F198: 0.171836848 | G198: -0.946931479 | H198: 0.2547995437 | I198: * | J198: 0
B199: 179 | C199: 0.2514895684 | F199: 0.2195144509 | G199: -0.7738341041 | H199: 0.2957182478 | I199: * | J199: 0
B200: 180 | C200: 0.6674793032 | F200: 0.3135245689 | G200: -0.4858843883 | H200: 0.3545236035 | I200: * | J200: 0
B201: 181 | C201: 0.6928084487 | F201: 0.2177573881 | G201: -0.7797895197 | H201: 0.2943533447 | I201: * | J201: 0
B202: 182 | C202: 0.6595034324 | F202: 0.8151927956 | G202: 0.8971958697 | H202: 0.2667565731 | I202: * | J202: 0
B203: 183 | C203: 0.9878651328 | F203: 0.1271041522 | G203: -1.140187235 | H203: 0.2082633282 | I203: * | J203: 0
B204: 184 | C204: 0.4668375601 | F204: 0.2901303042 | G204: -0.5530040915 | H204: 0.3423761489 | I204: * | J204: 0
B205: 185 | C205: 0.7151594986 | F205: 0.1115862981 | G205: -1.218135209 | H205: 0.189974538 | I205: * | J205: 0
B206: 186 | C206: 0.5037897911 | F206: 0.7792799871 | G206: 0.7697637848 | H206: 0.296648698 | I206: * | J206: 0
B207: 187 | C207: 0.2649855753 | F207: 0.9253784973 | G207: 1.442210478 | H207: 0.141010057 | I207: * | J207: 0
B208: 188 | C208: 0.2744831416 | F208: 0.3012123825 | G208: -0.5209167521 | H208: 0.3483262757 | I208: * | J208: 0
B209: 189 | C209: 0.5620252286 | F209: 0.3812229716 | G209: -0.3022703971 | H209: 0.3811271511 | I209: * | J209: 1.58174712e-197
B210: 190 | C210: 0.5907370636 | F210: 0.8572451252 | G210: 1.068023859 | H210: 0.2255358811 | I210: * | J210: 0
B211: 191 | C211: 0.6094977468 | F211: 0.7387819906 | G211: 0.6395948695 | H211: 0.3251465316 | I211: * | J211: 0
B212: 192 | C212: 0.07392996735 | F212: 0.6216283725 | G212: 0.3097602851 | H212: 0.3802546001 | I212: * | J212: 1.757996496e-207
B213: 193 | C213: =RAND() -> 0.3660604472 | F213: 0.9384597753 | G213: =_xlfn.NORM.INV(F213,0,1) -> 1.541971788 | H213: =_xlfn.NORM.DIST(G213,0,1,FALSE) -> 0.1215077744 | I213: * | J213: 0
B214: 194 | C214: 0.9228279008 | F214: 0.5664674502 | G214: 0.1673875768 | H214: 0.3933923443 | I214: * | J214: 5.745017594e-60
B215: 195 | C215: 0.09732785375 | F215: 0.06779000751 | G215: -1.492454583 | H215: 0.1309880902 | I215: * | J215: 0
B216: 196 | C216: 0.4531980105 | F216: 0.9660016078 | G216: 1.825028131 | H216: 0.07544869635 | I216: * | J216: 0
... 4284 more rows

Sheet All
G1: 7 | H1: 8 | J1: 10 | O1: 15 | T1: 20 | AE1: 31 | AF1: 32
I18: 20 | AE18: 10
K19: 10個の平均 | T19: 20個の平均
B20: No | C20: 乱数 | F20: 対象列 | I20: =COUNTA(I21:I10020) -> 2000 | K20: 1000個の標本 | P20: =FREQUENCY(L21:L320,N21:N42) -> 0 | T20: 100個の標本 | Y20: =FREQUENCY(U21:U120,W21:W41) -> 1 | AJ20: =FREQUENCY(AF21:AF120,AH21:AH43) -> 8
B21: 1 | C21: =RAND() -> 0.3672029127 | F21: 0.7300965543 | G21: =_xlfn.NORM.INV(F21,0,1) -> 0.6131050346 | H21: =_xlfn.NORM.DIST(G21,0,1,FALSE) -> 0.3305863361 | J21: =_xlfn.NORM.DIST(G21,0,1/SQRT(10),FALSE) -> 0.1926009391 | K21: -0.01112747616 | L21: -0.3879574405 | N21: -1.5 | O21: =P21/$I$18 -> 0.55 | P21: 11 | S21: =_xlfn.NORM.DIST(G21,0,1/SQRT(20),FALSE) -> 0.04158356629 | T21: 0.06505978181 | U21: 0.2312789091 | W21: -1 | X21: =Y21/10 -> 0 | Y21: 0 | AD21: =_xlfn.NORM.DIST(G21,0,1/SQRT(50),FALSE) -> 0.0002339573752 | AE21: -0.6209657361 | AF21: -1.314468319 | AH21: -1.5 | AI21: =AJ21/$AE$18 -> 1.1 | AJ21: 11
B22: 2 | C22: 0.2468588013 | F22: 0.327473009 | G22: =_xlfn.NORM.INV(F22,0,1) -> -0.4469017256 | H22: =_xlfn.NORM.DIST(G22,0,1,FALSE) -> 0.3610282354 | J22: =_xlfn.NORM.DIST(G22,0,1/SQRT(10),FALSE) -> 0.4647518144 | K22: 0.06081372791 | L22: 0.1581639977 | N22: -1 | O22: =P22/$I$18 -> 0.2 | P22: 4 | S22: 0.2421291737 | T22: -0.3706683118 | U22: 0.1886064637 | W22: -0.9 | X22: 0.1 | Y22: 1 | AD22: 0.01914036471 | AE22: -0.6930565434 | AF22: -1.242772861 | AH22: -1 | AI22: =AJ22/$AE$18 -> 0.1 | AJ22: 1
B23: 3 | C23: 0.6589423179 | F23: 0.4483754503 | G23: -0.1297668378 | H23: 0.3955974009 | J23: 1.159694783 | K23: -0.6794597835 | L23: -1.110021661 | N23: -0.9 | O23: 0.35 | P23: 7 | S23: 1.507621558 | T23: -0.8402333731 | U23: -0.5475782777 | W23: -0.8 | X23: 0.1 | Y23: 1 | AD23: 1.851668574 | AE23: -0.01786756166 | AF23: -0.1409555671 | AH23: -0.9 | AI23: =AJ23/$AE$18 -> 0.3 | AJ23: 3
B24: 4 | C24: 0.4795657705 | F24: 0.780278979 | G24: 0.773135756 | H24: 0.2958780266 | J24: 0.06352381066 | K24: 0.1554944035 | L24: 0.3420367405 | N24: -0.8 | O24: 0.25 | P24: 5 | S24: 0.004523535649 | T24: 0.1920453762 | U24: 0.05657119719 | W24: -0.7 | X24: 0.2 | Y24: 2 | AD24: 9.13119152e-07 | AE24: 0.6420793396 | AF24: -0.2040853401 | AH24: -0.8 | AI24: 0.5 | AJ24: 5
B25: 5 | C25: 0.3485927981 | F25: 0.4485691729 | G25: -0.1292771571 | H25: 0.3956224922 | J25: 1.160430546 | K25: 0.09424447938 | L25: -0.1289260371 | N25: -0.7 | O25: 0.55 | P25: 11 | S25: 1.509535172 | T25: -0.4439023674 | U25: -0.2034380542 | W25: -0.6 | X25: 0.6 | Y25: 6 | AD25: 1.857549946 | AE25: 1.147653284 | AF25: 1.143386183 | AH25: -0.7 | AI25: 0.5 | AJ25: 5
B26: 6 | C26: 0.9812526574 | F26: 0.8736936591 | G26: 1.144026416 | H26: 0.2073521437 | J26: 0.001815075539 | K26: 0.518998981 | L26: 1.394020333 | N26: -0.6 | O26: 0.6 | P26: 12 | S26: 3.693127831e-06 | T26: 0.5685773607 | U26: 0.7336076865 | W26: -0.5 | X26: 0.3 | Y26: 3 | AD26: 1.739074789e-14 | AE26: -0.6302571844 | AF26: -2.047870795 | AH26: -0.6 | AI26: 0.2 | AJ26: 2
B27: 7 | C27: 0.6794367227 | F27: 0.419818793 | G27: -0.2023570717 | H27: 0.3908573085 | J27: =_xlfn.NORM.DIST(G27,0,1/SQRT(10),FALSE) -> 1.027996838 | K27: 0.05543199507 | L27: 0.4174959655 | N27: -0.5 | O27: 0.55 | P27: 11 | S27: 1.18464572 | T27: 0.4771744877 | U27: -0.2115812255 | W27: -0.4 | X27: 0.4 | Y27: 4 | AD27: 1.013453047 | AE27: 0.6146981772 | AF27: -0.1080613859 | AH27: -0.5 | AI27: 0.3 | AJ27: 3
B28: 8 | C28: 0.1568545019 | F28: 0.997744593 | G28: 2.840038138 | H28: 0.007070339043 | J28: 3.856664027e-18 | K28: -0.5878320868 | L28: -1.407309996 | N28: -0.4 | O28: 0.95 | P28: 19 | S28: 1.667356804e-35 | T28: 0.6599507289 | U28: 1.029390618 | W28: -0.3 | X28: 1.2 | Y28: 12 | AD28: 7.531886624e-88 | AE28: -1.326867834 | AF28: -1.000286529 | AH28: -0.4 | AI28: 0.3 | AJ28: 3
B29: 9 | C29: 0.1154176991 | F29: 0.04869507056 | G29: -1.657640049 | H29: 0.1009809091 | J29: 1.362078602e-06 | K29: 0.1171547533 | L29: -0.2577151033 | N29: -0.3 | O29: 1.3 | P29: 26 | S29: 2.079741092e-12 | T29: 0.3910459241 | U29: 0.5035885573 | W29: -0.2 | X29: 1 | Y29: 10 | AD29: 4.138620368e-30 | AE29: -0.1407537795 | AF29: 0.08271274596 | AH29: -0.3 | AI29: 0.4 | AJ29: 4
B30: 10 | C30: 0.8531768669 | F30: 0.7919493073 | G30: 0.8132035135 | H30: 0.2866227149 | J30: 0.04622910234 | K30: -0.004348327759 | L30: -0.216418556 | N30: -0.2 | O30: 1.25 | P30: 25 | S30: 0.002395718867 | T30: 0.1044000101 | U30: 0.004363209219 | W30: -0.1 | X30: 1.2 | Y30: 12 | AD30: 1.863897568e-07 | AE30: -0.2299230012 | AF30: -0.489186496 | AH30: -0.2 | AI30: 0.7 | AJ30: 7
B31: 11 | C31: 0.1453035853 | F31: 0.2624305175 | G31: -0.6358701881 | H31: 0.3259197866 | J31: 0.1670770046 | K31: 0.1344230969 | L31: 0.004353924343 | N31: -0.1 | O31: 0.7 | P31: 14 | S31: 0.03129235821 | T31: 0.2599739826 | U31: 0.02706111281 | W31: 0 | X31: 1.1 | Y31: 11 | AD31: 0.0001149286067 | AE31: -0.4830425108 | AF31: -1.067021528 | AH31: -0.1 | AI31: 0.4 | AJ31: 4
B32: 12 | C32: 0.2372372358 | F32: 0.3318240153 | G32: -0.4348820688 | H32: 0.3629465357 | J32: 0.4900449999 | K32: 0.007128500668 | L32: 0.1117366466 | N32: 0 | O32: 0.8 | P32: 16 | S32: 0.2692011164 | T32: 0.4745853185 | U32: 0.3185911651 | W32: 0.1 | X32: 1 | Y32: 10 | AD32: 0.02494735749 | AE32: -1.776580317 | AF32: -1.953899478 | AH32: 0 | AI32: 0.3 | AJ32: 3
B33: 13 | C33: 0.2852681797 | F33: 0.8875123774 | G33: 1.213404399 | H33: 0.191070339 | J33: 0.0008012022309 | K33: -0.1535205008 | L33: 0.197943517 | N33: 0.1 | O33: 1.3 | P33: 26 | S33: 7.195968139e-07 | T33: -0.04450498139 | U33: 0.03191028356 | W33: 0.2 | X33: 0.9 | Y33: 9 | AD33: 2.914442479e-16 | AE33: 0.9793836827 | AF33: 0.37845262 | AH33: 0.1 | AI33: 0.2 | AJ33: 2
B34: 14 | C34: 0.7285012456 | F34: 0.7058666818 | G34: 0.5413496037 | H34: 0.3445664807 | J34: 0.2914336387 | K34: -0.1058190963 | L34: -0.134695619 | N34: 0.2 | O34: 1.05 | P34: 21 | S34: 0.09521037799 | T34: 0.1398085537 | U34: 0.2330179783 | W34: 0.3 | X34: 0.6 | Y34: 6 | AD34: 0.001855851115 | AE34: 0.7243628606 | AF34: 1.136771252 | AH34: 0.2 | AI34: 0 | AJ34: 0
B35: 15 | C35: 0.4659945243 | F35: 0.302996339 | G35: -0.5158020394 | H35: 0.3492510043 | I35: * | J35: 0.3335692777 | K35: 0.06167474036 | L35: 0.3654035398 | N35: 0.3 | O35: 0.9 | P35: 18 | S35: 0.1247317515 | T35: 0.06425079002 | U35: -0.03675630632 | W35: 0.4 | X35: 0.1 | Y35: 1 | AD35: 0.00364564991 | AE35: -0.0377528928 | AF35: 0.0960724656 | AH35: 0.3 | AI35: 0.5 | AJ35: 5
B36: 16 | C36: 0.7186727402 | F36: 0.3726590983 | G36: -0.3248188245 | H36: 0.3784421085 | J36: 0.7443958491 | K36: -0.0220558638 | L36: 0.0002677764468 | N36: 0.4 | O36: 0.95 | P36: 19 | S36: 0.6211733535 | T36: -0.1793565597 | U36: -0.41318473 | W36: 0.5 | X36: 0.8 | Y36: 8 | AD36: 0.2017736511 | AE36: -0.2769238288 | AF36: -0.666078266 | AH36: 0.4 | AI36: 0.5 | AJ36: 5
B37: 17 | C37: 0.3849998497 | F37: 0.3665755121 | G37: -0.3409369809 | H37: 0.3764170609 | J37: 0.7055087457 | K37: -0.1751317242 | L37: -0.7459641448 | N37: 0.5 | O37: 0.7 | P37: 14 | S37: 0.5579685692 | T37: -0.1338068885 | U37: 0.1185391336 | W37: 0.6 | X37: 0.1 | Y37: 1 | AD37: 0.154296739 | AE37: -0.5313910034 | AF37: -0.1928875115 | AH37: 0.5 | AI37: 0.3 | AJ37: 3
B38: 18 | C38: 0.6301525765 | F38: 0.8187773271 | G38: 0.9107154038 | H38: 0.263516365 | J38: 0.01994735511 | K38: 0.05254022132 | L38: 0.5283234155 | N38: 0.6 | O38: 0.65 | P38: 13 | S38: 0.0004460418111 | T38: -0.1888303605 | U38: -0.1011168235 | W38: 0.7 | X38: 0.1 | Y38: 1 | AD38: 2.787862405e-09 | AE38: 0.7642939231 | AF38: 3.007752559 | AH38: 0.6 | AI38: 0.2 | AJ38: 2
B39: 19 | C39: 0.3251010588 | F39: 0.0579263654 | G39: -1.572421934 | H39: 0.1158807189 | I39: * | J39: 5.394127613e-06 | K39: 0.08103204789 | L39: 0.3641468974 | N39: 0.7 | O39: 0.4 | P39: 8 | S39: 3.261725172e-11 | T39: 0.2128113599 | U39: 0.1367364536 | W39: 0.8 | X39: 0 | Y39: 0 | AD39: 4.031352943e-27 | AE39: 0.6945685213 | AF39: 1.076447765 | AH39: 0.7 | AI39: 0 | AJ39: 0
B40: 20 | C40: 0.5497474956 | F40: 0.8688304792 | G40: 1.120879774 | H40: 0.2128592209 | J40: 0.002359033399 | K40: 0.006921175459 | L40: -0.1525632912 | N40: 0.8 | O40: 0.4 | P40: 8 | S40: 6.238398469e-06 | T40: 0.773600537 | U40: 0.5609915405 | W40: 0.9 | X40: 0 | Y40: 0 | AD40: =_xlfn.NORM.DIST(G49,0,1/SQRT(50),FALSE) -> 8.940807568e-30 | AE40: -0.04149021236 | AF40: -0.3220641512 | AH40: 0.8 | AI40: 0.1 | AJ40: 1
B41: 21 | C41: 0.08629560218 | F41: 0.5120582571 | G41: 0.03023017191 | H41: 0.3987600327 | J41: 1.255814915 | K41: -0.5218972164 | L41: 0.1114948518 | N41: 0.9 | O41: 0.15 | P41: 3 | S41: 1.767893935 | T41: -0.230366418 | U41: 0.03063108646 | W41: 1 | X41: 0.1 | Y41: 1 | AD41: =_xlfn.NORM.DIST(G41,0,1/SQRT(50),FALSE) -> 2.757229544 | AE41: -0.5501655547 | AF41: -1.04378941 | AH41: 0.9 | AI41: 0.4 | AJ41: 4
B42: 22 | C42: 0.3175156752 | F42: 0.5710429655 | G42: 0.1790300975 | H42: 0.3925998335 | J42: 1.074757585 | K42: -0.1243922109 | L42: -0.2203729591 | N42: 1 | O42: 0.45 | P42: 9 | S42: 1.294869406 | T42: 0.4644792102 | U42: 0.5677121727 | X42: =SUM(X21:X41) -> 9.9 | Y42: =SUM(Y21:Y41) -> 99 | AD42: 1.265893977 | AE42: 1.725817497 | AF42: 2.899033227 | AH42: 1 | AI42: 0.9 | AJ42: 9
B43: 23 | C43: 0.3829223533 | F43: 0.1650412609 | G43: -0.9739476722 | H43: 0.2482731898 | J43: 0.01099278283 | K43: 0.05954364209 | L43: 0.2719491533 | S43: 0.0001354628563 | T43: -0.0540271867 | U43: -0.1167909973 | AD43: 1.417042842e-10 | AE43: 0.2876259389 | AF43: 0.4235502732 | AH43: 1.5 | AI43: 1 | AJ43: 10
B44: 24 | C44: 0.1593724288 | F44: 0.3083856565 | G44: -0.5004314501 | H44: 0.3519893529 | J44: 0.3606655631 | K44: 0.3191583029 | L44: 0.291924125 | S44: 0.1458190574 | T44: 0.3246299582 | U44: 0.5579866148 | AD44: 0.005387262344 | AE44: 0.6920288972 | AF44: 0.5657629711
B45: 25 | C45: 0.05681105565 | F45: 0.5957517487 | G45: 0.2423660961 | H45: 0.38739548 | J45: 0.9404915551 | K45: -0.1034309857 | L45: -0.07658890177 | S45: 0.9915502596 | T45: 0.5146426063 | U45: 0.3134139143 | AD45: 0.6495599508 | AE45: -0.9284789959 | AF45: -1.952898695
B46: 26 | C46: 0.07274611612 | F46: 0.6397722399 | G46: 0.3578500669 | H46: 0.3741992504 | J46: 0.6650258688 | K46: 0.1345230031 | L46: 0.4425678668 | S46: 0.4957720173 | T46: 0.1354761906 | U46: 0.1098746802 | AD46: 0.1148252593 | AE46: -0.6870963354 | AF46: -1.978652622
B47: 27 | C47: 0.1772080517 | F47: 0.7335768758 | G47: 0.6236670779 | H47: 0.3284341738 | J47: 0.1804233749 | K47: 0.1345163347 | L47: -0.1848931043 | S47: 0.03649140092 | T47: -0.9796448449 | U47: -1.178157224 | AD47: 0.0001687752461 | AE47: -0.2977383726 | AF47: -0.8566164509
B48: 28 | C48: 0.629736145 | F48: 0.4526256507 | G48: -0.119030362 | H48: 0.3961261148 | J48: 1.175287593 | K48: 0.6527130737 | L48: 0.7065894448 | S48: 1.548435913 | T48: 0.03864529145 | U48: 0.1974781842 | AD48: 1.979545539 | AE48: -0.606765612 | AF48: -0.5804307273
B49: 29 | C49: 0.1664201777 | F49: 0.9503565251 | G49: 1.648320355 | H49: 0.1025485914 | J49: 1.588935989e-06 | K49: -0.1982511993 | L49: -0.6918805788 | S49: 2.830203968e-12 | T49: -0.2469106837 | U49: -0.2672570836 | AD49: 8.940807568e-30 | AE49: 0.6981089501 | AF49: 0.03130541494
B50: 30 | C50: 0.7451919666 | F50: 0.9819731055 | G50: 2.096320278 | H50: 0.04432449201 | I50: * | J50: 3.616155331e-10 | K50: 0.08732117865 | L50: 0.2891655768 | S50: 1.465882251e-19 | T50: -0.3180399726 | U50: 0.08942917048 | AD50: 5.4585856e-48 | AE50: -0.1251115502 | AF50: -0.3332478999
B51: 31 | C51: 0.7383125299 | F51: 0.7217826101 | G51: 0.5881452841 | H51: 0.335579641 | J51: 0.2237512438 | K51: -0.02763339937 | L51: -0.2382832949 | S51: 0.05612235008 | T51: 0.1895017084 | U51: -0.0695639092 | AD51: 0.0004950761786 | AE51: 0.4730333285 | AF51: -0.1168540126
B52: 32 | C52: 0.4394991587 | F52: 0.3179524168 | G52: -0.4734322394 | H52: 0.3566474301 | J52: 0.4113394828 | K52: 0.03246973271 | L52: 0.01048143333 | S52: 0.1896730935 | T52: 0.02015204098 | U52: 0.02213888854 | AD52: 0.01039553219 | AE52: 0.9054911375 | AF52: 0.6211138602
B53: 33 | C53: 0.3430810938 | F53: 0.6829098112 | G53: 0.4758512184 | H53: 0.356238181 | I53: * | J53: 0.4066437041 | K53: -0.1206734465 | L53: -0.1010438105 | S53: 0.1853672629 | T53: -0.5019807107 | U53: -0.5949560169 | AD53: 0.009815558194 | AE53: 1.317216544 | AF53: 2.017250623
B54: 34 | C54: 0.2686317663 | F54: 0.8528652014 | G54: 1.048801261 | H54: 0.2301715047 | J54: 0.005156143268 | K54: 0.01446482122 | L54: -0.2152426217 | S54: 2.980265012e-05 | T54: 0.03611268146 | U54: 0.08566552023 | AD54: 3.217137474e-12 | AE54: -0.2508339879 | AF54: -0.6404719046
B55: 35 | C55: 0.03771642443 | F55: 0.1505527555 | G55: -1.03406557 | H55: 0.2337310148 | J55: 0.006011361617 | K55: -0.1893398116 | L55: 0.1819127505 | S55: 4.050891769e-05 | T55: -0.05974701528 | U55: -0.001975462352 | AD55: 6.92961344e-12 | AE55: 1.396143107 | AF55: 1.721745485
B56: 36 | C56: 0.7711706123 | F56: 0.639855241 | G56: 0.3580718858 | H56: 0.3741695392 | I56: * | J56: 0.6644980312 | K56: 0.1704480166 | L56: 0.2067155028 | S56: 0.4949853314 | T56: 0.1159404594 | U56: -0.0241837828 | AD56: 0.1143702924 | AE56: -0.8900102764 | AF56: -0.3890817082
B57: 37 | C57: 0.3081041401 | F57: 0.3885346904 | G57: -0.2831401815 | H57: 0.3832672646 | J57: 0.8449415727 | K57: -0.07542679304 | L57: -0.0380037381 | S57: 0.8003100848 | T57: 0.00559074637 | U57: -0.07462768327 | AD57: 0.3801702537 | AE57: -0.9199298476 | AF57: -1.099819239
B58: 38 | C58: 0.6642430559 | F58: 0.1071337071 | G58: -1.241916385 | H58: 0.1844979943 | J58: 0.0005645805335 | K58: 0.2122066094 | L58: 0.1834022093 | S58: 3.573195114e-07 | T58: -0.2806273223 | U58: -0.5017380222 | AD58: 5.063773103e-17 | AE58: 0.3443420071 | AF58: -0.7072075372
B59: 39 | C59: 0.1647826612 | F59: 0.7004971303 | G59: 0.5258308477 | H59: 0.3474315633 | J59: 0.3165935867 | K59: 0.2024422664 | L59: -0.1261140476 | S59: 0.1123593344 | T59: 0.631475971 | U59: 0.6683273958 | AD59: 0.002807729752 | AE59: 0.2648943348 | AF59: 0.426105713
B60: 40 | C60: 0.1317832055 | F60: 0.3376668222 | G60: -0.4188392133 | H60: 0.3654405465 | J60: 0.5247793347 | K60: -0.120242587 | L60: -0.1825729947 | S60: 0.3087154617 | T60: 0.07336856838 | U60: 0.03776904656 | AD60: 0.03513406188 | AE60: 0.1238628252 | AF60: 0.9780667688
B61: 41 | C61: 0.5085802229 | F61: 0.2057183049 | G61: -0.8213681322 | H61: 0.284716498 | I61: * | J61: 0.04324498398 | K61: -0.5812618188 | L61: -1.045787611 | S61: 0.002096410919 | T61: 0.3975639492 | U61: 0.4855392772 | AD61: 1.335129653e-07 | AE61: -0.02823022664 | AF61: 1.314431215
B62: 42 | C62: 0.2552969984 | F62: 0.9863690548 | G62: 2.207747346 | H62: 0.03487403516 | J62: 3.287240038e-11 | K62: -0.2980083501 | L62: -0.3046399007 | S62: 1.211344768e-21 | T62: -0.03270773243 | U62: -0.274945225 | AD62: 3.388455827e-53 | AE62: -0.5917511426 | AF62: -1.515556945
B63: 43 | C63: 0.7716136204 | F63: 0.5079940225 | G63: 0.02003938406 | H63: 0.3988621854 | J63: 1.259035723 | K63: -0.7075155895 | L63: -1.040910092 | S63: 1.776973852 | T63: -0.4448192423 | U63: -0.4129507113 | AD63: 2.792768916 | AE63: -0.06574456548 | AF63: 1.213345467
B64: 44 | C64: 0.9380102919 | F64: 0.7707069328 | G64: 0.741176988 | H64: 0.3031249455 | J64: 0.0809144687 | K64: 0.1724633081 | L64: 0.4423759874 | O64: =SUM(O22:O63) -> 14.45 | P64: =SUM(P22:P63) -> 289 | S64: 0.007339345044 | T64: -0.00694155446 | U64: -0.07279198852 | AD64: 3.061791922e-06 | AE64: 0.7987183177 | AF64: 2.026085452
B65: 45 | C65: 0.4289147807 | F65: 0.2747605718 | G65: -0.5984778358 | H65: 0.333528689 | I65: * | J65: 0.2104463376 | K65: 0.09717818104 | L65: 0.1270014283 | S65: 0.04964639018 | T65: -0.3014680374 | U65: -0.2422304519 | AD65: 0.0003643775399 | AE65: 0.3502712361 | AF65: -0.1722154366
B66: 46 | C66: 0.9853072039 | F66: 0.8061065676 | G66: 0.8636378502 | H66: 0.2747554908 | J66: 0.03028818222 | K66: -0.2630954115 | L66: 0.1981358867 | S66: 0.001028374622 | T66: -0.4188630002 | U66: -0.7193554347 | AD66: 2.250146455e-08 | AE66: -1.124341706 | AF66: -2.262535511
B67: 47 | C67: 0.6645571814 | F67: 0.6571967132 | G67: 0.404824425 | H67: 0.3675558714 | J67: 0.5559593705 | K67: 0.5283561783 | L67: 0.2936939721 | S67: 0.3464902681 | T67: -0.5114840469 | U67: -0.1990576264 | AD67: 0.04688781681 | AE67: -0.03927625008 | AF67: 0.3685100442
B68: 48 | C68: 0.2671773222 | F68: 0.2769959829 | G68: -0.591788887 | H68: 0.3348590518 | J68: 0.2189928013 | K68: 0.07944888661 | L68: -0.2167654144 | S68: 0.05376066227 | T68: -0.0578374872 | U68: 0.2719303008 | AD68: 0.0004446250573 | AE68: -0.09279901545 | AF68: -1.095478819
B69: 49 | C69: 0.1598221196 | F69: 0.5068395987 | G69: 0.01714517138 | H69: 0.3988836488 | J69: 1.259713392 | K69: 0.3387478363 | L69: 0.7945897142 | S69: 1.778887261 | T69: -0.7793435544 | U69: -0.348296581 | AD69: 2.800292979 | AE69: 0.5933986859 | AF69: 0.3975212862
B70: 50 | C70: 0.01200079886 | F70: 0.1655696032 | G70: -0.9718218046 | H70: 0.2487872058 | J70: 0.01122250563 | K70: 0.5165086763 | L70: 0.6117747692 | S70: 0.0001411837118 | T70: 0.6403677003 | U70: 0.3199736553 | AD70: 1.571425868e-10 | AE70: -0.5285240466 | AF70: -1.422090565
B71: 51 | C71: 0.7478289667 | F71: 0.4370972318 | G71: -0.1583329267 | H71: 0.3939728853 | J71: 1.112942529 | K71: -0.295052922 | L71: -0.9135796714 | S71: 1.388514467 | T71: -0.2540631704 | U71: 0.1044346447 | AD71: 1.507330307 | AE71: -0.4486448476 | AF71: -1.275355362
B72: 52 | C72: 0.5064031984 | F72: 0.8430578432 | G72: 1.007105011 | H72: 0.2402515488 | J72: 0.007915372696 | K72: -0.06752743803 | L72: 0.308822748 | S72: 7.023404297e-05 | T72: 0.01488886988 | U72: 0.1305021351 | AD72: 2.742846991e-11 | AE72: -0.3108514953 | AF72: 0.3610566466
B73: 53 | C73: 0.3839765651 | F73: 0.6192334938 | G73: 0.3034682863 | H73: 0.3809889017 | J73: 0.7960359023 | K73: 0.03667585859 | L73: -0.004259837257 | S73: 0.7103464967 | T73: -0.4172364399 | U73: -0.5506774507 | AD73: 0.2821681665 | AE73: -0.2144348128 | AF73: -0.01768314177
B74: 54 | C74: 0.3879765068 | F74: 0.09624833088 | G74: -1.303228796 | H74: 0.1706499015 | J74: 0.0002587437249 | K74: 0.2537683817 | L74: 0.8252867447 | S74: 7.504894372e-08 | T74: -0.3832334979 | U74: -0.6383056893 | AD74: 1.023749893e-18 | AE74: -0.3210846449 | AF74: -0.7012462202
B75: 55 | C75: 0.9668686196 | F75: 0.9847808851 | G75: 2.164340459 | H75: 0.03834529885 | I75: * | J75: 8.490449373e-11 | K75: -0.03346750819 | L75: -0.1453395622 | S75: 8.081021931e-21 | T75: -0.4124047778 | U75: 0.05384834413 | AD75: 3.894916238e-51 | AE75: 0.3744921411 | AF75: 0.4516750008
B76: 56 | C76: 0.2361200431 | F76: 0.4882404379 | G76: -0.02948112089 | H76: 0.3987689504 | J76: 1.25609579 | K76: 0.1546470207 | L76: 0.04287347878 | S76: 1.768684834 | T76: -0.4043883304 | U76: -0.612053511 | AD76: 2.76031432 | AE76: 0.8910674115 | AF76: 1.97527274
B77: 57 | C77: 0.8261928863 | F77: 0.6714372544 | G77: 0.4438853302 | H77: 0.3615135966 | I77: * | J77: 0.471037807 | K77: 0.1799977572 | L77: 0.4547539288 | S77: 0.2487232964 | T77: -0.7090231922 | U77: -0.8198831523 | AD77: 0.02047027 | AE77: 0.3187358182 | AF77: -0.1105095711
B78: 58 | C78: 0.1246825036 | F78: 0.4384708881 | G78: -0.1548472044 | H78: 0.394187986 | J78: 1.119033907 | K78: 0.5890048586 | L78: 0.4796713934 | S78: 1.403755347 | T78: 0.5270411038 | U78: 0.5409598951 | AD78: 1.549034063 | AE78: 0.2887281076 | AF78: 1.29743275
B79: 59 | C79: 0.07726118343 | F79: 0.8896166093 | G79: 1.224491737 | H79: 0.188505416 | I79: * | J79: 0.0006999189187 | K79: -0.02432117891 | L79: 0.5270847028 | S79: 5.491618978e-07 | T79: 0.4366591827 | U79: 0.1193660185 | AD79: 1.482802815e-16 | AE79: -0.3324707525 | AF79: -0.7179761816
B80: 60 | C80: 0.704309612 | F80: 0.8464998057 | G80: 1.021536366 | H80: 0.2367603556 | I80: * | J80: 0.006837529979 | K80: 0.1976707828 | L80: 0.4919337752 | S80: 5.240870385e-05 | T80: 0.1349445253 | U80: -0.2548627631 | AD80: 1.319292084e-11 | AE80: 0.03044253522 | AF80: -0.02295765636
B81: 61 | C81: 0.2540483214 | F81: 0.1213441249 | G81: -1.168293864 | H81: 0.2016153088 | J81: 0.001371022118 | K81: -0.4568497861 | L81: -0.504131184 | S81: 2.107142245e-06 | T81: -0.2859055747 | U81: -0.2982322873 | AD81: 4.276288961e-15 | AE81: -0.2343065689 | AF81: -0.2166926216
B82: 62 | C82: 0.7857319768 | F82: 0.4718403142 | G82: -0.07064458122 | H82: 0.3979480294 | J82: 1.23047556 | K82: 0.07452077696 | L82: 0.671259049 | S82: 1.697269927 | T82: 0.6905805824 | U82: 0.5626987768 | AD82: 2.490059356 | AE82: 0.749896966 | AF82: 0.3586295122
B83: 63 | C83: 0.8532140082 | F83: 0.1643288966 | G83: -0.9768209688 | H83: 0.2475783613 | I83: * | J83: 0.0106889796 | K83: 0.3934789973 | L83: 0.3769008517 | S83: 0.0001280788527 | T83: -0.2600869167 | U83: 0.238777631 | AD83: 1.23175967e-10 | AE83: -0.9378459559 | AF83: -0.9641456032
B84: 64 | C84: 0.1734806887 | F84: 0.1248511441 | G84: -1.151072797 | H84: 0.20568224 | J84: 0.00167408437 | K84: -0.5405004974 | L84: -0.2786546123 | S84: 3.141663132e-06 | T84: -0.1276322296 | U84: 0.2792929636 | AD84: 1.160730637e-14 | AE84: -0.04986566265 | AF84: -0.1218447675
B85: 65 | C85: =RAND() -> 0.5393743187 | F85: 0.8088052575 | G85: 0.873502058 | H85: 0.2724115088 | J85: 0.02780122448 | K85: 0.001538724668 | L85: 0.04522761855 | S85: =_xlfn.NORM.DIST(G85,0,1/SQRT(20),FALSE) -> 0.0008664286027 | T85: 0.4902887348 | U85: 0.1117676499 | AD85: 1.46610259e-08 | AE85: -0.8757822294 | AF85: -0.07205935485
B86: 66 | C86: 0.8367022468 | F86: 0.660293287 | G86: =_xlfn.NORM.INV(F86,0,1) -> 0.4132636949 | H86: =_xlfn.NORM.DIST(G86,0,1,FALSE) -> 0.3662892438 | J86: 0.5370949447 | K86: -0.5235651993 | L86: -0.3551590149 | S86: 0.3233754614 | T86: -0.1512946668 | U86: -0.1899859465 | AD86: 0.03945481962 | AE86: 0.1486265224 | AF86: -0.8829287223
B87: 67 | C87: 0.8840290246 | F87: 0.6320754233 | G87: 0.3373551985 | H87: 0.3768745905 | J87: 0.7141311596 | K87: 0.007389763509 | L87: -0.5781616323 | S87: 0.5716903981 | T87: 0.206781328 | U87: 0.3117620644 | AD87: 0.1639587709 | AE87: 0.3913849681 | AF87: 1.270365489
B88: 68 | C88: 0.9984212591 | F88: 0.5159493849 | G88: 0.03998983503 | H88: 0.3986234163 | J88: 1.251519082 | K88: -0.2794254585 | L88: -0.2946216049 | S88: 1.755819561 | T88: -0.2585070781 | U88: -0.2275967202 | AD88: 2.710392062 | AE88: 0.9473146006 | AF88: 1.046291393
B89: 69 | C89: 0.2862083266 | F89: 0.8131355867 | G89: 0.8895104185 | H89: 0.2685943781 | J89: 0.02414229712 | K89: -0.3154747757 | L89: -0.6645029727 | S89: 0.0006533743983 | T89: 0.6262002172 | U89: 0.3017294169 | AD89: 7.239985422e-09 | AE89: 0.2784037814 | AF89: 1.935014469
B90: 70 | C90: 0.05399215254 | F90: 0.5212420651 | G90: =_xlfn.NORM.INV(F90,0,1) -> 0.05327114576 | H90: =_xlfn.NORM.DIST(G90,0,1,FALSE) -> 0.3983766196 | J90: 1.2437922 | K90: -0.0520955706 | L90: -0.4732722222 | S90: 1.734205622 | T90: -0.7063277933 | U90: -0.5525160168 | AD90: 2.627749024 | AE90: -0.6880436807 | AF90: -0.5977653894
B91: 71 | C91: 0.9682967457 | F91: 0.267799005 | G91: -0.6194833153 | H91: 0.329289386 | J91: 0.1851768663 | K91: -0.2879448439 | L91: -0.6015624855 | S91: 0.03843955867 | T91: -0.4233966997 | U91: -0.3018522174 | AD91: 0.0001922110676 | AE91: 0.3732953321 | AF91: 0.1917149195
B92: 72 | C92: 0.2559309366 | F92: 0.7693849381 | G92: 0.7368227873 | H92: 0.3041018979 | J92: 0.08356043923 | K92: 0.1355396925 | L92: 0.6514089949 | S92: 0.007827198726 | T92: 0.004332026831 | U92: 0.2542246589 | AD92: 3.596237039e-06 | AE92: -0.5340551747 | AF92: -0.6083962964
B93: 73 | C93: 0.7701833461 | F93: 0.01212504729 | G93: -2.253143625 | H93: 0.03151578868 | J93: 1.194238877e-11 | K93: 0.2447794277 | L93: 0.9412191034 | S93: 1.598774975e-22 | T93: 0.2778855638 | U93: -0.1029190145 | AD93: 2.144375138e-55 | AE93: 0.2479488314 | AF93: 2.742157778
B94: 74 | C94: 0.4082462921 | F94: 0.6507433577 | G94: 0.3873281546 | H94: 0.3701118274 | J94: 0.5958528826 | K94: 0.6882167714 | L94: 0.4067648935 | S94: 0.3979999536 | T94: -0.6183488988 | U94: -0.3752547459 | AD94: 0.0663040356 | AE94: -0.6130662616 | AF94: -1.688546634
B95: 75 | C95: 0.7258568329 | F95: 0.4105250804 | G95: -0.2261944838 | H95: 0.3888659853 | I95: * | J95: 0.9768074696 | K95: -0.1606983915 | L95: 0.1671339649 | S95: 1.069603649 | T95: -0.1135992302 | U95: -0.06071674732 | AD95: 0.7850360468 | AE95: 0.2356065979 | AF95: 1.604430769
B96: 76 | C96: 0.8638184661 | F96: 0.7644796392 | G96: 0.7207867618 | H96: 0.3076768266 | J96: 0.09391982682 | K96: 0.3856308447 | L96: 0.3325552405 | S96: 0.009888251373 | T96: 0.01235509718 | U96: -0.2197499021 | AD96: 6.451061089e-06 | AE96: 0.1788977874 | AF96: -0.0778069394
B97: 77 | C97: 0.1559436676 | F97: 0.8147469486 | G97: 0.895525758 | H97: 0.2671562129 | J97: 0.02288032513 | K97: -0.5050057342 | L97: -0.6344523812 | S97: 0.0005868529808 | T97: 0.0316130312 | U97: -0.3349855193 | AD97: 5.535485226e-09 | AE97: -0.7159682173 | AF97: -1.403250246
B98: 78 | C98: 0.3737386661 | F98: 0.9111837298 | G98: 1.348080351 | H98: 0.1607992077 | I98: * | J98: 0.000142773778 | K98: -0.1032139683 | L98: 0.06443392766 | S98: 2.285082244e-08 | T98: 0.03016984305 | U98: 0.2658170827 | AD98: 5.237053348e-20 | AE98: 0.2837098912 | AF98: 0.5527593993
B99: 79 | C99: 0.2760895436 | F99: 0.3753238873 | G99: -0.3177853362 | H99: 0.3792983072 | J99: 0.7614097831 | K99: 0.1845805484 | L99: 0.2726590655 | S99: 0.6498929672 | T99: -0.08504124654 | U99: -0.2205386973 | AD99: 0.2259108045 | AE99: -0.3296591485 | AF99: -0.4261629656
B100: 80 | C100: 0.8701096815 | F100: 0.3892850773 | G100: -0.2811828544 | H100: 0.3834789948 | J100: 0.849620946 | K100: 0.001250917248 | L100: 0.06147497613 | S100: 0.8091990298 | T100: -0.09429540286 | U100: -0.1575056988 | AD100: 0.3908146114 | AE100: 0.7942378827 | AF100: 1.592670541
B101: 81 | C101: 0.5899209769 | F101: 0.5981060527 | G101: 0.2484478762 | H101: 0.3868177192 | J101: 0.9265588445 | K101: -0.06916465131 | L101: -0.3836775458 | S101: 0.9623896504 | T101: 0.6193301025 | U101: 0.5639491122 | AD101: 0.6028506989 | AE101: -0.1425935267 | AF101: -0.697052705
B102: 82 | C102: 0.604149403 | F102: 0.2028630849 | G102: -0.8314381236 | H102: 0.2823569552 | J102: 0.03979186624 | K102: 0.2436138237 | L102: 0.1937534804 | S102: 0.001774980344 | T102: -0.6965850747 | U102: -0.5529060733 | AD102: 8.806762393e-08 | AE102: -0.02225173763 | AF102: -0.7069579532
B103: 83 | C103: 0.9703660078 | F103: 0.6614970343 | G103: 0.4165522643 | H103: 0.3657897999 | J103: 0.5298163027 | K103: 0.080832005 | L103: 0.3499546716 | S103: 0.3146701645 | T103: 0.02533218367 | U103: 0.5828233336 | AD103: 0.03685287099 | AE103: -0.326142484 | AF103: -1.483798032
B104: 84 | C104: 0.4877814181 | F104: 0.9143874803 | G104: 1.368278112 | H104: 0.1564480882 | I104: * | J104: 0.0001085205567 | K104: 0.09844376543 | L104: 0.8848634627 | S104: 1.32016726e-08 | T104: -0.2199230452 | U104: -0.108457494 | AD104: 1.328632293e-20 | AE104: 0.1805901287 | AF104: 0.9494720313
B105: 85 | C105: 0.9518069614 | F105: 0.08959353807 | G105: -1.343262234 | H105: 0.1618451527 | J105: 0.0001523373422 | K105: -0.05476524663 | L105: -0.3530802792 | S105: 2.601463163e-08 | T105: -0.5905377707 | U105: -0.466176922 | AD105: =_xlfn.NORM.DIST(G105,0,1/SQRT(50),FALSE) -> 7.242301664e-20 | AE105: 0.2228664913 | AF105: -0.2494725237
B106: 86 | C106: 0.06255474139 | F106: 0.8003339136 | G106: 0.8428145438 | H106: 0.2796806924 | I106: * | J106: 0.03617714321 | K106: 0.3706358326 | L106: 0.6198023297 | S106: 0.00146714646 | T106: -0.2379266904 | U106: -0.163154054 | AD106: 5.470362222e-08 | AE106: -0.6527672139 | AF106: 0.1876635801
B107: 87 | C107: 0.1513876827 | F107: 0.2345892189 | G107: -0.7238164353 | H107: 0.3070042619 | I107: * | J107: 0.09188686869 | K107: -0.3241088374 | L107: -0.1414905338 | S107: 0.009464808598 | T107: -0.4794731795 | U107: -0.04795313864 | AD107: 5.782451496e-06 | AE107: -0.5708035682 | AF107: 0.4640268054
B108: 88 | C108: 0.2649507903 | F108: 0.5358334448 | G108: 0.08994224509 | H108: 0.3973318962 | J108: 1.211556596 | K108: 0.06896085175 | L108: -0.5831041015 | S108: 1.645479003 | T108: 0.3421087862 | U108: -0.0211581573 | AD108: 2.304428677 | AE108: -0.09358045571 | AF108: 0.6127531752
B109: 89 | C109: 0.4155498611 | F109: 0.6286581763 | G109: 0.3283015829 | H109: 0.3780119395 | J109: 0.7359775722 | K109: 0.002646688484 | L109: 0.03287164105 | S109: 0.6072032567 | T109: -0.6712086596 | U109: 0.0161304989 | AD109: 0.1906196375 | AE109: 0.8890568272 | AF109: 0.8205112272
B110: 90 | C110: 0.8177102816 | F110: 0.4104957103 | G110: -0.226270012 | H110: 0.3888593409 | I110: * | J110: 0.9766405777 | K110: 0.367660931 | L110: 0.5338041516 | S110: 1.069238187 | T110: 0.07852581283 | U110: -0.2216554785 | AD110: 0.7843656412 | AE110: -0.7336503284 | AF110: -1.604647286
B111: 91 | C111: 0.8003746932 | F111: 0.1726839657 | G111: -0.9436120517 | H111: 0.2556002994 | J111: 0.01470357663 | K111: -0.02985447007 | L111: -0.3035615102 | S111: 0.0002423544009 | T111: -0.1954243738 | U111: -0.2842887103 | AD111: 6.066800094e-10 | AE111: 0.6085332756 | AF111: 0.9903388719
B112: 92 | C112: 0.9485315177 | F112: 0.1942671686 | G112: -0.862278398 | H112: 0.2750780094 | J112: 0.03064560057 | K112: -0.676417145 | L112: -0.01799240944 | S112: 0.001052788677 | T112: -0.0896752559 | U112: -0.03937040882 | AD112: 2.386082318e-08 | AE112: 0.4148571392 | AF112: 0.9114784075
B113: 93 | C113: 0.458017795 | F113: 0.9797085232 | G113: 2.047765793 | H113: 0.04901588227 | J113: 9.889575487e-10 | K113: 0.414408408 | L113: 0.8277477054 | S113: 1.096377796e-18 | T113: 0.1904188426 | U113: -0.1838848757 | AD113: 8.350894319e-46 | AE113: 0.4560513986 | AF113: -0.2808247778
B114: 94 | C114: 0.0139409987 | F114: 0.09720116061 | G114: -1.297665449 | H114: 0.1718890029 | I114: * | J114: 0.0002781572167 | K114: -0.5014450191 | L114: -0.6122005092 | S114: 8.673324517e-08 | T114: 0.1141573438 | U114: 0.2599433197 | AD114: 1.469929138e-18 | AE114: -0.3309169263 | AF114: -0.7841319579
B115: 95 | C115: 0.2043020809 | F115: 0.1461881415 | G115: -1.052923002 | H115: 0.2291767001 | J115: 0.004937578626 | K115: -0.1206613231 | L115: -0.1879287966 | S115: 2.732958147e-05 | T115: -0.358090408 | U115: -0.02341987849 | AD115: 2.590686493e-12 | AE115: -0.06303556014 | AF115: 0.4146145372
B116: 96 | C116: 0.9388722576 | F116: 0.6669672637 | G116: 0.4315541716 | H116: 0.3634701751 | J116: 0.4971611789 | K116: -0.2783717193 | L116: -1.179241951 | S116: 0.2770762814 | T116: 0.2578279407 | U116: 0.3546277816 | AD116: 0.02681209718 | AE116: 0.4032068712 | AF116: 1.452918739
B117: 97 | C117: 0.3898208184 | F117: 0.4504088568 | G117: -0.1246284381 | H117: 0.3958560448 | I117: * | J117: 1.167299283 | K117: 0.2950350747 | L117: 0.6563250053 | S117: 1.527458324 | T117: 0.184630946 | U117: 0.2010590615 | AD117: 1.913180002 | AE117: 0.1606066093 | AF117: -0.4671595234
B118: 98 | C118: 0.4533899773 | F118: 0.7128342194 | G118: 0.5616836716 | H118: 0.3407239001 | J118: 0.2605165934 | K118: -0.169109127 | L118: -0.4710480782 | S118: 0.07608091257 | T118: -0.3472723891 | U118: -0.03449396976 | AD118: 0.001059306633 | AE118: 0.08430667929 | AF118: 0.5092629186
B119: 99 | C119: 0.9633258899 | F119: 0.05338580488 | G119: -1.612875266 | H119: 0.1086501876 | J119: 2.832136713e-06 | K119: 0.194778592 | L119: -0.3003432167 | S119: 8.991525075e-12 | T119: 0.1705199072 | U119: -0.1869837175 | AD119: 1.60848053e-28 | AE119: -0.9762716365 | AF119: -0.8211116492
B120: 100 | C120: 0.2269047646 | F120: 0.6319897022 | G120: 0.3371277547 | H120: 0.3769034992 | J120: 0.7146791333 | K120: -0.4298224141 | L120: -0.3680524378 | S120: 0.5725680842 | T120: 0.100864212 | U120: 0.1293377561 | AD120: 0.1645887888 | AE120: -0.2552298329 | AF120: -0.6427972298
B121: 101 | C121: 0.2439717706 | F121: 0.5416146423 | G121: =_xlfn.NORM.INV(F121,0,1) -> 0.1045023349 | H121: =_xlfn.NORM.DIST(G121,0,1,FALSE) -> 0.3967698449 | J121: 1.194527038 | K121: -0.1659107357 | L121: -0.1459226148 | S121: 1.599546615 | AD121: 2.146963502
B122: 102 | C122: 0.7303771488 | F122: 0.4363312159 | G122: -0.1602775639 | H122: 0.393850855 | J122: 1.109500069 | K122: 0.6923451088 | L122: 1.084693533 | S122: 1.37993808 | AD122: 1.48416234
B123: 103 | C123: 0.2136255748 | F123: 0.01200718969 | G123: -2.256899115 | H123: 0.03125001758 | I123: * | J123: 1.097266369e-11 | K123: 0.1941316842 | L123: 0.1879663393 | S123: 1.34967458e-22 | AD123: 1.404122762e-55
B124: 104 | C124: 0.2869585121 | F124: 0.2479720569 | G124: -0.6808852313 | H124: 0.3164022657 | J124: 0.1242239272 | K124: -0.0159304029 | L124: 0.5734371617 | S124: 0.01729877865 | AD124: 2.611385647e-05
B125: 105 | C125: 0.660282263 | F125: 0.2212688424 | G125: -0.7679150009 | H125: 0.2970706595 | J125: 0.06613129267 | K125: -0.3841830656 | L125: -0.2807470758 | S125: 0.00490251528 | AD125: 1.116554172e-06
B126: 106 | C126: 0.6399200096 | F126: 0.09940629273 | G126: -1.284941906 | H126: 0.1747364597 | I126: * | J126: 0.0003278270094 | K126: 0.1270022587 | L126: 0.698733848 | S126: 1.204742956e-07 | AD126: 3.342476775e-18
B127: 107 | C127: 0.5075577816 | F127: 0.4318946729 | G127: -0.1715525094 | H127: 0.3931147736 | J127: 1.088937767 | K127: -0.3085365958 | L127: -0.3108745322 | S127: 1.329263419 | AD127: 1.351636908
B128: 108 | C128: 0.4690896703 | F128: 0.7997289034 | G128: 0.8406532938 | H128: 0.2801899499 | J128: 0.0368412997 | K128: -0.215902543 | L128: -0.3689100468 | S128: 0.001521510024 | AD128: 5.991277754e-08
B129: 109 | C129: 0.5173589764 | F129: 0.476538646 | G129: -0.05884283256 | H129: 0.3982522133 | I129: * | J129: 1.239913499 | K129: 0.05089235464 | L129: 0.6164070746 | S129: 1.723406429 | AD129: 2.587031284
B130: 110 | C130: 0.7428727695 | F130: 0.2740171337 | G130: -0.6007083338 | H130: 0.3330829289 | J130: 0.2076505837 | K130: -0.6432424074 | L130: -0.4822896529 | S130: 0.0483360597 | AD130: 0.0003408085799
B131: 111 | C131: 0.5231878854 | F131: 0.7603838351 | G131: 0.7075378016 | H131: 0.3106018526 | I131: * | J131: 0.103240435 | K131: -0.2346876586 | L131: -0.431320283 | S131: 0.01194825778 | AD131: 1.035365926e-05
B132: 112 | C132: 0.7104909955 | F132: 0.7074635254 | G132: 0.5459897993 | H132: 0.3436983267 | J132: 0.2841735058 | K132: 0.2578650807 | L132: -0.2691727872 | S132: 0.09052574391 | AD132: 0.001635922271
B133: 113 | C133: 0.5857849239 | F133: 0.8728825814 | G133: 1.140123537 | H133: 0.208278454 | I133: * | J133: 0.001897810571 | K133: 0.3050158129 | L133: 0.3214450631 | S133: 4.037482519e-06 | AD133: 2.173246787e-14
B134: 114 | C134: 0.9607508838 | F134: 0.6817934921 | G134: 0.472719916 | H134: 0.3567676346 | J134: 0.4127279658 | K134: -0.04795872841 | L134: -0.2952299509 | S134: 0.1909557438 | AD134: 0.0105721721
B135: 115 | C135: 0.3110704859 | F135: 0.7757865321 | G135: 0.7580401689 | H135: 0.2993173246 | I135: * | J135: 0.07130630868 | K135: 0.09429443292 | L135: -0.2026122288 | S135: 0.005699816073 | AD135: 1.627363283e-06
B136: 116 | C136: 0.4473886683 | F136: 0.8901011191 | G136: 1.227066063 | H136: 0.1879115144 | J136: 0.0006781774337 | K136: -0.1491399447 | L136: 0.1100570934 | S136: 5.15574704e-07 | AD136: 1.266372327e-16
B137: 117 | C137: 0.7388758992 | F137: 0.7387705264 | G137: 0.6395596112 | H137: 0.3251538639 | I137: * | J137: 0.1631919003 | K137: -0.009324785211 | L137: 0.3748798517 | S137: 0.0298539727 | AD137: 0.0001021733745
B138: 118 | C138: 0.5650826351 | F138: 0.7805157534 | G138: 0.7739362469 | H138: 0.2956948731 | J138: 0.06313168107 | K138: -0.4077023325 | L138: -0.3278372125 | S138: 0.00446786086 | AD138: 8.852817434e-07
B139: 119 | C139: 0.07654098114 | F139: 0.1113874403 | G139: -1.219182637 | H139: 0.1897321982 | J139: 0.000746826624 | K139: 0.1883392887 | L139: 0.4183847763 | S139: 6.252367772e-07 | AD139: 2.050896286e-16
B140: 120 | C140: 0.001916334105 | F140: 0.8623669725 | G140: 1.091015517 | H140: 0.2200069897 | J140: 0.003282269174 | K140: -0.08207871985 | L140: 0.1821201052 | S140: 1.20768402e-05 | AD140: 3.362913593e-13
B141: 121 | C141: 0.4064659124 | F141: 0.9480228498 | G141: 1.625978165 | H141: 0.1063690073 | J141: 2.290659143e-06 | K141: 0.07272950688 | L141: -0.1083583105 | S141: 5.882011529e-12 | AD141: 5.567331574e-29
B142: 122 | C142: 0.5730947567 | F142: 0.3654766418 | G142: -0.3438577281 | H142: 0.3760408109 | J142: 0.6984884242 | K142: 0.5428902285 | L142: 0.8721624406 | S142: 0.5469194372 | AD142: 0.1467711863
B143: 123 | C143: 0.05599398583 | F143: 0.4525629129 | G143: -0.1191887417 | H143: 0.3961186421 | J143: 1.175065902 | K143: 0.4791540631 | L143: 1.288823934 | S143: 1.547851812 | AD143: 1.977679259
B144: 124 | C144: 0.3002076509 | F144: 0.25784261 | G144: -0.6500108394 | H144: 0.3229700841 | J144: 0.1525570822 | K144: -0.2230970309 | L144: -0.2483108246 | S144: 0.02608973572 | AD144: 7.294686104e-05
B145: 125 | C145: 0.9192164648 | F145: 0.4959122097 | G145: -0.01024674996 | H145: 0.3989213373 | J145: 1.260904138 | K145: 0.04891754025 | L145: -0.06124515483 | S145: 1.782251842 | AD145: 2.813552929
B146: 126 | C146: 0.6855771541 | F146: 0.1154590235 | G146: -1.197997354 | H146: 0.1946528889 | J146: 0.0009647570122 | K146: -0.2590446861 | L146: -0.1018303006 | S146: 1.043375945e-06 | AD146: 7.377928774e-16
B147: 127 | C147: 0.8133526405 | F147: 0.5677355493 | G147: 0.1706119493 | H147: 0.393178036 | J147: 1.090691422 | K147: -0.06060018935 | L147: -0.3021776396 | S147: 1.333548229 | AD147: 1.362555578
B148: 128 | C148: 0.4820533424 | F148: 0.3271710096 | G148: -0.44773838 | H148: 0.360893145 | J148: 0.4630157208 | K148: 0.4381565415 | L148: 0.4096387172 | S148: 0.2403235915 | AD148: 0.01878552873
B149: 129 | C149: =RAND() -> 0.1992392088 | F149: 0.119227065 | G149: -1.178859492 | H149: 0.1991307999 | I149: * | J149: 0.001211138445 | K149: 0.1987624448 | L149: 0.5686230796 | S149: =_xlfn.NORM.DIST(G149,0,1/SQRT(20),FALSE) -> 1.644343373e-06 | AD149: 2.300454721e-15
B150: 130 | C150: 0.8134770651 | F150: 0.8973596985 | G150: 1.266649616 | H150: 0.1788622794 | I150: * | J150: 0.0004139968324 | K150: 0.04659796401 | L150: 0.2346763166 | S150: 1.921316748e-07 | AD150: 1.073568673e-17
B151: 131 | C151: 0.6148592565 | F151: 0.2420421 | G151: -0.6997487914 | H151: 0.3123088369 | J151: 0.1090566461 | K151: -0.3315727773 | L151: -0.5556114592 | S151: 0.01333242678 | AD151: 1.361775218e-05
B152: 132 | C152: 0.3505406775 | F152: 0.3594077941 | G152: -0.3600421834 | H152: 0.3739049269 | J152: 0.6598136346 | K152: -0.1024208001 | L152: -0.2634871094 | S152: 0.4880311055 | AD152: 0.1103954483
B153: 133 | C153: 0.9208640422 | F153: 0.4953892355 | G153: -0.01155773007 | H153: 0.3989156357 | I153: * | J153: 1.260723935 | K153: 0.2289355132 | L153: 0.08728882956 | S153: 1.781742454 | AD153: 2.811542996
B154: 134 | C154: 0.2187830662 | F154: 0.04671510622 | G154: -1.677574407 | H154: 0.09767921562 | J154: 9.768571116e-07 | K154: 0.2781583242 | L154: 0.2975097595 | S154: 1.069712368e-12 | AD154: 7.852355472e-31
B155: 135 | C155: 0.325462018 | F155: 0.155360645 | G155: -1.013709709 | H155: 0.2386535834 | J155: 0.007404385221 | K155: 0.3615960049 | L155: 0.3984210548 | S155: 6.145863957e-05 | AD155: 1.964670687e-11
B156: 136 | C156: 0.2628947666 | F156: 0.8311846771 | G156: 0.9588572852 | H156: 0.2519203835 | J156: 0.01271869331 | K156: 0.2303868664 | L156: 0.1562882339 | S156: 0.0001813384596 | AD156: 2.938036687e-10
B157: 137 | C157: 0.1288617639 | F157: 0.8045674418 | G157: 0.8580495264 | H157: 0.276080434 | J157: 0.03178086388 | K157: 0.06419564784 | L157: 0.2806325654 | S157: 0.001132234355 | AD157: 2.862023727e-08
B158: 138 | C158: 0.7847177878 | F158: 0.8165790286 | G158: 0.9024046672 | H158: 0.2655092431 | J158: 0.02150828856 | K158: -0.2530318286 | L158: 0.4458387443 | S158: 0.000518581048 | AD158: 4.063254373e-09
B159: 139 | C159: 0.9131006303 | F159: 0.3734962058 | G159: -0.3226076339 | H159: 0.3787130912 | I159: * | J159: 0.7497432879 | K159: -0.2950364688 | L159: -0.2315499004 | S159: 0.630129925 | AD159: 0.2091258268
B160: 140 | C160: 0.7429276271 | F160: 0.06596254395 | G160: -1.506553719 | H160: 0.1282478464 | J160: 1.486997428e-05 | K160: -0.4318418421 | L160: -0.7513415563 | S160: 2.478707991e-10 | AD160: 6.417942562e-25
B161: 141 | C161: 0.347737558 | F161: 0.1414589216 | G161: -1.073787702 | H161: 0.2241480412 | J161: 0.003955112917 | K161: -0.1615502743 | L161: 0.23522047 | S161: 1.753568381e-05 | AD161: 8.543565905e-13
B162: 142 | C162: 0.5173510469 | F162: 0.5634979426 | G162: 0.1598438069 | H162: 0.3938782 | I162: * | J162: 1.110270634 | K162: 0.5674873409 | L162: 0.6131687733 | S162: 1.381855523 | AD162: 1.489323373
B163: 143 | C163: 0.4891853232 | F163: 0.978257557 | G163: 2.019022451 | H163: 0.05196606539 | J163: 1.774221192e-09 | K163: -0.2327031344 | L163: -0.6075780309 | S163: 3.528746469e-18 | AD163: 1.551970816e-44
B164: 144 | C164: 0.2874577324 | F164: 0.859435966 | G164: 1.07778869 | H164: 0.2231853329 | J164: 0.003788487982 | K164: -0.000522023158 | L164: 0.088462767 | S164: 1.608928556e-05 | AD164: 6.889287489e-13
B165: 145 | C165: 0.3857312042 | F165: 0.8354775257 | G165: 0.9760393825 | H165: 0.2477673764 | J165: 0.01077086616 | K165: 0.4136608159 | L165: 1.153638079 | S165: 0.0001300487526 | AD165: 1.279669698e-10
B166: 146 | C166: 0.1221472196 | F166: 0.7843057358 | G166: 0.786817806 | H166: 0.2927372989 | J166: 0.05709394068 | K166: 0.5174577432 | L166: 0.7286126915 | S166: 0.003654138222 | AD166: 5.355436034e-07
B167: 147 | C167: 0.1590015646 | F167: 0.09065802755 | G167: -1.336713863 | H167: 0.1632715508 | J167: 0.000166308553 | K167: 0.1416835165 | L167: 0.288831762 | S167: 3.100516893e-08 | AD167: 1.123098025e-19
B168: 148 | C168: 0.311146696 | F168: 0.08864646449 | G168: -1.349137115 | H168: 0.1605702062 | J168: 0.0001407534532 | K168: 0.4795512889 | L168: 1.182972758 | S168: 2.220869548e-08 | AD168: 4.87685712e-20
B169: 149 | C169: 0.559678029 | F169: 0.6363463228 | G169: 0.348709576 | H169: 0.3754095493 | J169: 0.6868510458 | K169: -0.5428723715 | L169: -0.5811352315 | S169: 0.5288470179 | AD169: =_xlfn.NORM.DIST(G169,0,1/SQRT(50),FALSE) -> 0.1349452363
B170: 150 | C170: 0.6149765188 | F170: 0.6089647787 | G170: 0.2766219056 | H170: 0.3839671133 | J170: 0.8604976622 | K170: 0.1136609035 | L170: 0.4620763942 | S170: 0.8300501293 | AD170: 0.4164791005
B171: 151 | C171: 0.5857950733 | F171: 0.1440482124 | G171: -1.062306808 | H171: 0.2269134957 | J171: 0.004471082371 | K171: -0.3948708374 | L171: -0.4708856416 | S171: 2.240940234e-05 | AD171: 1.577277448e-12
B172: 152 | C172: 0.150690208 | F172: 0.7200628991 | G172: 0.5830283706 | H172: 0.3365866788 | J172: 0.2305571769 | K172: -0.4029113448 | L172: -0.8845071109 | S172: 0.05958846846 | AD172: 0.0005750928488
B173: 153 | C173: 0.7081565806 | F173: 0.9965845134 | G173: 2.704974014 | H173: 0.01028179172 | J173: 1.631163256e-16 | K173: 0.4808319063 | L173: 1.03139719 | S173: 2.982632814e-32 | AD173: 1.019370092e-79
B174: 154 | C174: 0.1299295625 | F174: 0.2398691027 | G174: -0.7067236889 | H174: 0.3107807127 | J174: 0.1038364879 | K174: -0.2525888743 | L174: -0.5736336743 | S174: 0.01208662124 | AD174: 1.065601175e-05
B175: 155 | C175: 0.02425582585 | F175: 0.009070813348 | G175: -2.362714761 | H175: 0.02447387506 | J175: 9.524381728e-13 | K175: -0.1472847802 | L175: -0.1034845319 | S175: 1.016900635e-24 | AD175: 6.918766992e-61
B176: 156 | C176: 0.6038251968 | F176: 0.9016261385 | G176: 1.290872989 | H176: 0.1734067878 | J176: 0.0003037178674 | K176: -0.1015680547 | L176: 0.1187429619 | S176: 1.034059706e-07 | AD176: 2.281373789e-18
B177: 157 | C177: 0.5516901821 | F177: 0.6729074377 | G177: 0.4479557606 | H177: 0.3608580126 | J177: 0.4625651792 | K177: -0.5056620402 | L177: -1.016425393 | S177: 0.2398561211 | AD177: 0.0186943093
B178: 158 | C178: 0.9076750289 | F178: 0.825568802 | G178: 0.9367981523 | H178: 0.2572430497 | I178: * | J178: 0.0156763844 | K178: 0.3254154781 | L178: 0.3116894572 | S178: 0.0002754842284 | AD178: 8.357459096e-10
B179: 159 | C179: 0.24127247 | F179: 0.8556513714 | G179: 1.060983814 | H179: 0.2272324311 | J179: 0.004534324073 | K179: 0.05745412754 | L179: 0.4129620174 | S179: 2.304783015e-05 | AD179: 1.692027904e-12
B180: 160 | C180: 0.2632904209 | F180: 0.730093498 | G180: 0.6130957896 | H180: 0.33058821 | J180: 0.1926118562 | K180: 0.3610036888 | L180: -0.10617543 | S180: 0.04158828058 | AD180: 0.0002340236896
B181: 161 | C181: 0.95308641 | F181: 0.5154665053 | G181: 0.03877849622 | H181: 0.3986424341 | J181: 1.252116293 | K181: -0.3259796663 | L181: -0.9152281495 | S181: 1.757495679 | AD181: 2.71686509
B182: 162 | C182: 0.4009868958 | F182: 0.9019845427 | G182: 1.292942593 | H182: 0.1729437627 | J182: 0.000295704848 | K182: 0.5372824003 | L182: 0.6352762166 | S182: 9.80216077e-08 | AD182: 1.995891654e-18
B183: 163 | C183: 0.3680188586 | F183: 0.7129969145 | G183: 0.5621612342 | H183: 0.3406324781 | J183: 0.2598184262 | K183: -0.5499050414 | L183: -1.109943702 | S183: 0.07567367536 | AD183: 0.001045188151
B184: 164 | C184: 0.4445412505 | F184: 0.9201509716 | G184: 1.406087792 | H184: 0.1484540237 | J184: 6.422870122e-05 | K184: 0.5454509239 | L184: 1.098440744 | S184: 4.624483267e-09 | AD184: 9.649180705e-22
B185: 165 | C185: 0.1361096001 | F185: 0.6873207269 | G185: =_xlfn.NORM.INV(F185,0,1) -> 0.4882700872 | H185: =_xlfn.NORM.DIST(G185,0,1,FALSE) -> 0.3541118794 | I185: * | J185: 0.3830137548 | K185: -0.4913735236 | L185: -0.8770097295 | S185: 0.1644499225 | AD185: 0.00727640045
B186: 166 | C186: 0.5103998962 | F186: 0.4764409403 | G186: -0.05908817072 | H186: 0.398246452 | J186: 1.23973414 | K186: 0.0227472575 | L186: -0.1302608509 | S186: 1.722907868 | AD186: 2.585160698
B187: 167 | C187: 0.1090247653 | F187: 0.6854926305 | G187: 0.4831140775 | H187: 0.3549997694 | J187: 0.3927264184 | K187: -0.269814872 | L187: -0.5754333454 | S187: 0.1728960876 | AD187: 0.008246987254
B188: 168 | C188: 0.8303592022 | F188: 0.8681089029 | G188: 1.117496268 | H188: 0.2136667997 | J188: 0.002450077714 | K188: -0.3215487877 | L188: -0.8347633325 | S188: 6.729218837e-06 | AD188: 7.793706356e-14
B189: 169 | C189: 0.1017558446 | F189: 0.1174439289 | G189: -1.18786181 | H189: 0.197020721 | J189: 0.001088750704 | K189: -0.1915775509 | L189: 0.3662972185 | S189: 1.328806762e-06 | AD189: 1.350476348e-15
B190: 170 | C190: 0.6214884396 | F190: 0.5447719777 | G190: 0.1124633289 | H190: 0.39642733 | J190: 1.18425515 | K190: 0.1623007671 | L190: -0.4286549655 | S190: 1.572155488 | AD190: 2.056227434
B191: 171 | C191: 0.8185988657 | F191: 0.2135939361 | G191: -0.7940129846 | H191: 0.2910771743 | J191: 0.05393751212 | K191: 0.01151056617 | L191: 0.1207272117 | S191: 0.003261269983 | AD191: 4.029946605e-07
B192: 172 | C192: 0.3135389236 | F192: 0.01749087494 | G192: -2.108569592 | H192: 0.04319755441 | J192: 2.795123559e-10 | K192: -0.4299022032 | L192: -0.2012023002 | S192: 8.758040584e-20 | AD192: 1.506086072e-48
B193: 173 | C193: 0.3749536898 | F193: 0.5473653517 | G193: 0.1190076481 | H193: 0.3961271857 | J193: 1.175319366 | K193: -0.1149206467 | L193: -0.6007780542 | S193: 1.548519635 | AD193: 1.979813131
B194: 174 | C194: 0.4354390537 | F194: 0.4309383008 | G194: -0.173985826 | H194: 0.3929495421 | J194: 1.08436946 | K194: -0.2731489933 | L194: -0.4552468267 | S194: 1.318133772 | AD194: 1.323521885
B195: 175 | C195: 0.6393792865 | F195: 0.229849103 | G195: -0.7393438874 | H195: 0.3035365568 | I195: * | J195: 0.08201993873 | K195: 0.2932948427 | L195: 0.513530757 | S195: 0.007541258243 | AD195: 3.276739688e-06
B196: 176 | C196: 0.7006010057 | F196: 0.1164634961 | G196: -1.19285289 | H196: 0.195853658 | J196: 0.001025950201 | K196: -0.3075515745 | L196: -0.2893460876 | S196: 1.179933397e-06 | AD196: 1.003404728e-15
B197: 177 | C197: 0.5940019073 | F197: 0.6985906056 | G197: 0.5203512394 | H197: 0.3484288468 | J197: 0.3257995225 | K197: 0.2492899982 | L197: 0.4123835176 | S197: 0.1189887272 | AD197: 0.00324038756
B198: 178 | C198: 0.9209371358 | F198: 0.1405068744 | G198: -1.078044833 | H198: 0.2231237197 | J198: 0.003778042346 | K198: 0.1567979053 | L198: 0.3496305956 | S198: 1.600068498e-05 | AD198: 6.794833917e-13
B199: 179 | C199: 0.5536590056 | F199: 0.3807113361 | G199: -0.3036130971 | H199: 0.3809721554 | J199: 0.7956860739 | K199: 0.4888203747 | L199: 0.6718142224 | S199: 0.7097222917 | AD199: 0.2815486987
B200: 180 | C200: 0.3075549982 | F200: 0.7246692478 | G200: 0.5967691695 | H200: 0.3338694422 | J200: 0.2126062968 | K200: 0.1186659867 | L200: 0.2724170594 | S200: 0.05067073198 | AD200: 0.0003834646675
B201: 181 | C201: 0.2743152911 | F201: 0.8265212165 | G201: 0.9405069879 | H201: 0.2563490644 | J201: 0.01514003138 | K201: -0.6643845078 | L201: -0.8236699921 | S201: 0.0002569558342 | AD201: 7.022287658e-10
B202: 182 | C202: 0.4080531628 | F202: 0.8752886686 | G202: 1.151752814 | H202: 0.2055212579 | J202: 0.001661027802 | K202: 0.1190895299 | L202: 0.32714621 | S202: 3.092849128e-06 | AD202: 1.116167177e-14
B203: 183 | C203: 0.2776647178 | F203: 0.3300643085 | G203: -0.4397355979 | H203: 0.3621770019 | J203: 0.4797534433 | K203: -0.07241353422 | L203: -0.2324295399 | S203: 0.2580127293 | AD203: 0.02243547357
B204: 184 | C204: 0.5761220269 | F204: 0.2090464031 | G204: -0.8097344633 | H204: 0.2874307022 | J204: 0.04754895381 | K204: 0.2140789788 | L204: 0.5883489393 | S204: 0.002534468301 | AD204: 2.145603991e-07
B205: 185 | C205: 0.701294774 | F205: 0.3045692947 | G205: -0.5113034503 | H205: 0.3500587987 | J205: 0.3413653122 | K205: -0.1317112267 | L205: -0.1184664698 | S205: 0.1306302351 | AD205: 0.004092057052
B206: 186 | C206: 0.9813325797 | F206: 0.02224487569 | G206: -2.009446988 | H206: 0.05297807495 | J206: 2.151647592e-09 | K206: -0.08528638546 | L206: -0.5154440317 | S206: 5.189759299e-18 | AD206: 4.070993868e-44
B207: 187 | C207: 0.6148528137 | F207: 0.5738000194 | G207: 0.1860571286 | H207: 0.392096553 | J207: 1.061059288 | K207: -0.4960326349 | L207: -0.5845304317 | S207: 1.2620723 | AD207: 1.187252237
B208: 188 | C208: 0.3567198444 | F208: 0.9487352885 | G208: 1.632712758 | H208: 0.1052082028 | J208: 2.052605214e-06 | K208: -0.2597857082 | L208: -0.03530128707 | S208: 4.722976531e-12 | AD208: 3.21641351e-29
B209: 189 | C209: 0.825166233 | F209: 0.9174736521 | G209: 1.388277057 | H209: 0.1521946285 | J209: 8.237637096e-05 | K209: 0.02718226521 | L209: 0.4873467956 | S209: 7.606944417e-09 | AD209: 3.348559469e-21
B210: 190 | C210: 0.5401772747 | F210: 0.2516550804 | G210: -0.669290539 | H210: 0.3188886024 | J210: 0.1343381548 | K210: 0.03875161315 | L210: 0.1490484589 | S210: 0.02023036366 | AD210: 3.862261127e-05
B211: 191 | C211: 0.1868445979 | F211: 0.117289371 | G211: -1.188646651 | H211: 0.1968370669 | J211: 0.001078644309 | K211: 0.05660126331 | L211: 0.5950517385 | S211: 1.304251799e-06 | AD211: 1.28894985e-15
B212: 192 | C212: 0.8976576581 | F212: 0.1685963874 | G212: -0.9597267137 | H212: 0.2517103605 | J212: 0.012613056 | K212: 0.103193757 | L212: -0.1380888133 | S212: 0.0001783386931 | AD212: 2.81803484e-10
B213: 193 | C213: =RAND() -> 0.259637761 | F213: 0.4476938186 | G213: -0.1314900752 | H213: 0.3955083604 | J213: 1.157087201 | K213: 0.2507947356 | L213: 0.4414970586 | S213: =_xlfn.NORM.DIST(G213,0,1/SQRT(20),FALSE) -> 1.500849385 | AD213: 1.830944534
B214: 194 | C214: 0.8385809028 | F214: 0.5616692836 | G214: 0.1552028104 | H214: 0.3941662559 | J214: 1.118417178 | K214: 0.05352796861 | L214: -0.05807854936 | S214: 1.402208481 | AD214: 1.544770199
B215: 195 | C215: 0.8151439079 | F215: 0.03605139222 | G215: -1.798468574 | H215: 0.07916799714 | J215: 1.194829637e-07 | K215: -0.01251108014 | L215: -0.2825153344 | S215: 1.600357116e-14 | AD215: 2.149684236e-35
B216: 196 | C216: 0.7420491625 | F216: 0.03266413258 | G216: -1.843005105 | H216: 0.07300170795 | J216: 5.310551414e-08 | K216: 0.1895046552 | L216: 0.05965962063 | S216: 3.161434349e-15 | AD216: 3.728574524e-37
... 4284 more rows
